{"text_format":"1","workbook":"xlsx","n_sheets":27,"sheets":["Cover","AD ST History","Contents","1-Introduction","2-Instructions","Default Feedstock Inputs List","3-Digester Inputs","4-Emissions Inputs","5-Annual Summary","6-Biogas Production","7-Digestate Production","8-Emission Reductions","9-Feedstock Characteristics","10-Feedstock Toxicity Info","11-Calibration Factors","12-OrganEcs Input Sheet","13-MCF","14-References","15-Help","16-Methodology","17-Manure Related Reductions","18-Other Wastes Reductions","19-Storage","20-Methane Gen. & Utilization","21-Electricity Use","22-Flaring & Leakage","23-Look up values"],"not_rendered":{"charts":2,"images":2,"macros":1,"external_links":0,"defined_names":175,"comments":0,"pivot_tables":0},"unopened":[],"bounds":{"document_bytes":16777216,"sheet_cells":100000,"rows_first":2000,"rows_last":500,"rows_between":2000,"halvings":0,"cell_chars":16384,"cell_head_chars":4096},"cells_cut":0,"cells_raw":0,"read":"whole","date_system":"1900"}

{"sheet":"Cover","index":0,"n_rows":124,"n_cols":4,"rows_kept":124,"cut":false,"hidden":false,"merged":[]}
[]
[]
[]
[]
[]
[]
[]
[]
[]
[]
[]
[]
[]
[]
[]
[]
[]
[]
[]
[]
[]
[]
[]
[]
[]
[]
[]
[]
[]
[]
[]
[]
[]
[]
[]
[]
[]
[]
[]
[]
[]
[]
[]
[]
[]
[]
[]
[]
[]
[]
[]
[]
[]
[]
[]
[]
[]
[]
[]
[]
[]
[]
[]
[]
[]
[]
[]
[]
[]
[]
[]
[]
[]
[]
[]
[]
[]
[]
[]
[]
[]
[]
[]
[]
[]
[]
[]
[]
[]
[]
[]
[]
[]
[]
[]
[]
[]
[]
[]
[]
[]
[]
[]
[]
[]
[]
[]
[]
[]
[]
[]
[]
[]
[]
[]
[]
[]
[]
[]
[]
[]
[]
[]
[null,null,null,"V1.0"]

{"sheet":"AD ST History","index":1,"n_rows":1,"n_cols":1,"rows_kept":1,"cut":false,"hidden":false,"merged":[]}
["Anaerobic Digestion Screening Tool History"]

{"sheet":"Contents","index":2,"n_rows":19,"n_cols":2,"rows_kept":19,"cut":false,"hidden":true,"merged":[]}
[null,"Content"]
[]
[null,"Introduction"]
[null,"Instructions"]
[null,"Tool Concept Notes"]
[null,"Default Feedstocks Inputs List"]
[null,"Gas to Volume"]
[null,"Digester Inputs"]
[null,"Emissions Inputs"]
[null,"Biogas Production"]
[null,"Digestate Production"]
[null,"Annual Summary"]
[null,"Estimated Emissions Reductions"]
[null,"Feedstocks Characteristics"]
[null,"Feedstocks Toxicity Info"]
[null,"OrganEcs Input Sheet"]
[null,"MCF"]
[null,"References"]
[null,"Help"]

{"sheet":"1-Introduction","index":3,"n_rows":1,"n_cols":1,"rows_kept":1,"cut":false,"hidden":false,"merged":[]}
["Introduction to the Anaerobic Digestion (AD) Screening Tool"]

{"sheet":"2-Instructions","index":4,"n_rows":1,"n_cols":1,"rows_kept":1,"cut":false,"hidden":false,"merged":[]}
["Tool Instructions"]

{"sheet":"Default Feedstock Inputs List","index":5,"n_rows":32,"n_cols":10,"rows_kept":32,"cut":false,"hidden":true,"merged":[[2,1,2,9]]}
[null,"Default Feedstocks Inputs List"]
[]
[null,"This sheet lists all default Feedstocks inputs available for the user to select.\n"]
[null,"Fruit and Vegetable Feedstocks","Livestock Excreted Feedstocks","Other Organic Municipal Feedstocks","Kitchen Feedstocks and Food Scraps","Energy and Cash Crops","Garden Feedstock","Dairy Feedstocks","Seafood Feedstock Silages","Other Inputs"]
[null,"Alfalfa","Adolescents Pigs","Composite Wastewater","Boiled Rice","Agave (Agave sisalana)","Water Hyacinths","Dairy Wastewater","Cuttle Fish Waste Silage","Added Water"]
[null,"Bananas","Boar (200 kg.)","Corrugated Cardboard","Bread Feedstocks","De-oiled Cake","Branches","Whey - Acid Cheese","Mackerel Fish Waste Silage"]
[null,"Broccoli","Broiler Chicken","Diverted Municipal Waste (All Organics)","Brewery Grain Feedstocks","Palms (Decanter Cake)","Grass","Whey - Sweet Cheese","Pacific Saury Fish Waste Silage"]
[null,"Cabbage","Calf","Diverted Municipal Waste (Food Only)","Cooked Meat","Palms (Empty Fruit)","Leaves"]
[null,"Carrot Root","Calf In Shelter (200 -350 kg.)","Folding Cartons","Mixed Cafeteria or Canteen Waste","Palms (Pressed Fibers)","Wood"]
[null,"Cauliflower","Cattle With Corn Supplement to Diet","Graywater","Mixed Food Waste With Non‐Veg.","Pressmud"]
[null,"Chinese Cabbage (Pak-Choi)","Cattle With Other Diet Supplements","Human Waste","Mixed Vegetable Waste Only","Rapeseed Meal"]
[null,"Coffee Grounds","Cattle with Primarily Grain/Grass Diet","Junk Mail & Paper",null,"Sugar Beet Tops"]
[null,"Kale","Dry Dairy Cow","Magazines",null,"Sugarcane Pretreated (Bagasse)"]
[null,"Lettuce","Duck","Newsprint",null,"Sugarcane Untreated (Bagasse)"]
[null,"Maize (Early Harvest Or Milk Ripeness)","Heifer","Office Paper",null,"Sunflower Meal"]
[null,"Maize (Middle Harvest Or Wax Ripeness) ","Horse","Paper Bags And Sacks"]
[null,"Maize Cob","Lactating Cow","Paper Non‐Recyclable"]
[null,"Onions","Lamb/Sheep/Goat","Raw Sewage Sludge"]
[null,"Orange Pulp","Piglets","Septage Tank Wastewater"]
[null,"Orange, Flesh","Poultry Chicken","Textiles"]
[null,"Potato Peel","Swine - Gestating (190 kg.)"]
[null,"Potato, Top, Mature","Swine - Lactating (190 kg.)"]
[null,"Pumpkins","Turkey Female"]
[null,"Rice Husk","Turkey Male"]
[null,"Rice Residue (Dried)","Veal"]
[null,"Rice Straw"]
[null,"Spinach"]
[null,"Sweet Corn"]
[null,"Tea Leaves"]
[null,"Tomatoes"]
[null,"Tomatoes (Solid Waste)"]
[null,"Wheat Straw"]

{"sheet":"3-Digester Inputs","index":6,"n_rows":151,"n_cols":57,"rows_kept":151,"cut":false,"hidden":false,"merged":[[13,0,13,4],[14,0,14,4],[39,4,39,5],[34,4,34,5],[38,4,38,5],[13,5,13,14],[95,2,95,6],[14,5,14,16],[53,1,53,3],[44,1,44,2],[43,1,43,2],[41,3,41,5],[33,4,33,5],[35,4,35,5],[36,4,36,5],[37,4,37,5],[40,4,40,5],[43,4,43,5],[44,4,44,5],[42,4,42,5]]}
["Anaerobic Digester Feedstock Inputs"]
[]
[]
[null,"Project Name"]
[null,"City/Municipality"]
[null,"Country"]
[]
[null,"General Information & Questions","Answer"]
[null,"Is the planned AD a wet or dry system? ","Dry"]
[null,"What will the reactor temperature be? ","Mesophilic"]
[null,"Will the system installation include post-digestion dewatering equipment?","CHOOSE ONE"]
[null,"If \"Yes\", what is the solid capture efficiency of the dewatering equipment?"]
[]
["Note: In the Feedstock List column, select from either General or Specific. Select General from the Feedstock list to show general categories in the Feedstock Type column to streamline data entry. If the user knows specific animal waste or food products, select Specific from the Feedstock List to show the full list of option in the Feedstock Type column.",null,null,null,null,"Note:  For more accurate results, the user may wish to override the default assumptions with site-specific information, if known. Type over any value in a yellow cell to override the default value. The RESET buttons below each category reset the original default values for that category. "]
["Feedstock Stream Information",null,null,null,null,"Feedstock Characteristics",null,null,null,null,null,null,null,null,null,null,null,null,null,"Mass",null,null,null,null,null,"Nitrogen",null,null,null,null,null,"C/N ratio",null,null,null,null,null,"Moisture",null,null,null,null,null,"VS",null,null,null,null,null,"Methane Yield"]
["Feedstock List","Feedstock Type","Feedstock Totals","Units","User Notes","Moisture Content (% w.b.)","Total Solids (% w.b)","Volatile Solids (% w.b)","Inert Material and Ash (% w.b.)","Nitrogen Content (d.w.)","Carbon Content (d.w.)","Feedstock Density (kg/m3)","Proteins (% of TS)","Fats (% of TS)","Sugars and Starches (% of TS)","VS (kg)","TS (kg)",null,"Category","Yard Waste","Food Waste","Manure","Sewage Sludge","Mixed Paper","Corrugated\nCardboard","Yard Waste","Food Waste","Manure","Sewage Sludge","Mixed Paper","Corrugated\nCardboard","Yard Waste","Food Waste","Manure","Sewage Sludge","Mixed Paper","Corrugated\nCardboard","Yard Waste","Food Waste","Manure","Sewage Sludge","Mixed Paper","Corrugated\nCardboard","Yard Waste","Food Waste","Manure","Sewage Sludge","Mixed Paper","Corrugated\nCardboard","Yard Waste","Food Waste","Manure","Sewage Sludge","Mixed Paper","Corrugated\nCardboard",null,"Feedstock Totals (kg/day)"]
["General",null,null,"kg/day",null,{"$f":"IFERROR(VLOOKUP(B17,'9-Feedstock Characteristics'!$A$8:$W$127,2,FALSE),\"-\")","v":"-"},{"$f":"IFERROR(VLOOKUP(B17,'9-Feedstock Characteristics'!$A$8:$W$127,3,FALSE),\"-\")","v":"-"},{"$f":"IFERROR(VLOOKUP(B17,'9-Feedstock Characteristics'!$A$8:$W$127,7,FALSE),\"-\")","v":"-"},{"$f":"IFERROR(VLOOKUP(B17,'9-Feedstock Characteristics'!$A$8:$W$127,8,FALSE),\"-\")","v":"-"},{"$f":"IFERROR(VLOOKUP(B17,'9-Feedstock Characteristics'!$A$8:$W$127,12,FALSE)/(1-F17),\"-\")","v":"-"},{"$f":"IFERROR((H17/(1-F17))*0.55,\"\")","v":""},{"$f":"IF(C17=0,\"-\",IF(ReactorType=\"Dry\",VLOOKUP(B17,'9-Feedstock Characteristics'!$A$8:$W$127,18,FALSE),VLOOKUP(B17,'9-Feedstock Characteristics'!$A$8:$W$127,18,FALSE)*((C17/(DensityofWater*VLOOKUP(B17,'9-Feedstock Characteristics'!$A$8:$W$127,19,FALSE)))/Chosen_Reactor_Volume)+DensityofWater*((Chosen_Reactor_Volume-(C17/(DensityofWater*VLOOKUP(B17,'9-Feedstock Characteristics'!$A$8:$W$127,19,FALSE))))/Chosen_Reactor_Volume)))","v":"-"},{"$f":"IFERROR(VLOOKUP(B17,'9-Feedstock Characteristics'!$A$8:$W$127,15,FALSE),\"-\")","v":"-"},{"$f":"IFERROR(VLOOKUP(B17,'9-Feedstock Characteristics'!$A$8:$W$127,14,FALSE),\"-\")","v":"-"},{"$f":"IFERROR(VLOOKUP(B17,'9-Feedstock Characteristics'!$A$8:$W$127,13,FALSE),\"-\")","v":"-"},{"$f":"IFERROR(BE17*H17,\"\")","v":""},{"$f":"IFERROR(BE17*G17,\"\")","v":""},null,{"$f":"VLOOKUP(B17,Waste_Item_Table,21,FALSE)","v":{"$error":"#N/A"}},{"$f":"IFERROR(IF($S17=T$16,$BE17,\"\"),\"\")","v":""},"",{"$f":"IFERROR(IF($S17=V$16,$BE17,\"\"),\"\")","v":""},"","","",{"$f":"IFERROR(IF($S17=Z$16,$J17,\"\"),\"\")","v":""},"","","","","",{"$f":"IFERROR(IF($S17=AF$16,$K17/$J17,\"\"),\"\")","v":""},"","","","","",{"$f":"IFERROR(IF($S17=AL$16,$F17,\"\"),\"\")","v":""},"","","","","",{"$f":"IFERROR(IF($S17=AR$16,$H17,\"\"),\"\")","v":""},"","","","","",{"$f":"IFERROR(IF($S17=AX$16,'6-Biogas Production'!$Q58,\"\"),\"\")","v":""},{"$f":"IFERROR(IF($S17=AY$16,'6-Biogas Production'!$Q58,\"\"),\"\")","v":""},{"$f":"IFERROR(IF($S17=AZ$16,'6-Biogas Production'!$Q58,\"\"),\"\")","v":""},{"$f":"IFERROR(IF($S17=BA$16,'6-Biogas Production'!$Q58,\"\"),\"\")","v":""},{"$f":"IFERROR(IF($S17=BB$16,'6-Biogas Production'!$Q58,\"\"),\"\")","v":""},{"$f":"IFERROR(IF($S17=BC$16,'6-Biogas Production'!$Q58,\"\"),\"\")","v":""},null,{"$f":"C17*VLOOKUP(D17,'23-Look up values'!$A$4:$B$9,2,FALSE)","v":0}]
["General",null,null,"kg/day",null,{"$f":"IFERROR(VLOOKUP(B18,'9-Feedstock Characteristics'!$A$8:$W$127,2,FALSE),\"-\")","v":"-"},{"$f":"IFERROR(VLOOKUP(B18,'9-Feedstock Characteristics'!$A$8:$W$127,3,FALSE),\"-\")","v":"-"},{"$f":"IFERROR(VLOOKUP(B18,'9-Feedstock Characteristics'!$A$8:$W$127,7,FALSE),\"-\")","v":"-"},{"$f":"IFERROR(VLOOKUP(B18,'9-Feedstock Characteristics'!$A$8:$W$127,8,FALSE),\"-\")","v":"-"},{"$f":"IFERROR(VLOOKUP(B18,'9-Feedstock Characteristics'!$A$8:$W$127,12,FALSE)/(1-F18),\"-\")","v":"-"},"",{"$f":"IF(C18=0,\"-\",IF(ReactorType=\"Dry\",VLOOKUP(B18,'9-Feedstock Characteristics'!$A$8:$W$127,18,FALSE),VLOOKUP(B18,'9-Feedstock Characteristics'!$A$8:$W$127,18,FALSE)*((C18/(DensityofWater*VLOOKUP(B18,'9-Feedstock Characteristics'!$A$8:$W$127,19,FALSE)))/Chosen_Reactor_Volume)+DensityofWater*((Chosen_Reactor_Volume-(C18/(DensityofWater*VLOOKUP(B18,'9-Feedstock Characteristics'!$A$8:$W$127,19,FALSE))))/Chosen_Reactor_Volume)))","v":"-"},{"$f":"IFERROR(VLOOKUP(B18,'9-Feedstock Characteristics'!$A$8:$W$127,15,FALSE),\"-\")","v":"-"},{"$f":"IFERROR(VLOOKUP(B18,'9-Feedstock Characteristics'!$A$8:$W$127,14,FALSE),\"-\")","v":"-"},{"$f":"IFERROR(VLOOKUP(B18,'9-Feedstock Characteristics'!$A$8:$W$127,13,FALSE),\"-\")","v":"-"},"","",null,{"$error":"#N/A"},"",{"$f":"IFERROR(IF($S18=U$16,$BE18,\"\"),\"\")","v":""},"","","","",{"$f":"IFERROR(IF($S18=Z$16,$J18,\"\"),\"\")","v":""},{"$f":"IFERROR(IF($S18=AA$16,$J18,\"\"),\"\")","v":""},"","","","",{"$f":"IFERROR(IF($S18=AF$16,$K18/$J18,\"\"),\"\")","v":""},{"$f":"IFERROR(IF($S18=AG$16,$K18/$J18,\"\"),\"\")","v":""},"","","","",{"$f":"IFERROR(IF($S18=AL$16,$F18,\"\"),\"\")","v":""},{"$f":"IFERROR(IF($S18=AM$16,$F18,\"\"),\"\")","v":""},"","","","",{"$f":"IFERROR(IF($S18=AR$16,$H18,\"\"),\"\")","v":""},{"$f":"IFERROR(IF($S18=AS$16,$H18,\"\"),\"\")","v":""},"","","","",{"$f":"IFERROR(IF($S18=AX$16,'6-Biogas Production'!$Q59,\"\"),\"\")","v":""},{"$f":"IFERROR(IF($S18=AY$16,'6-Biogas Production'!$Q59,\"\"),\"\")","v":""},{"$f":"IFERROR(IF($S18=AZ$16,'6-Biogas Production'!$Q59,\"\"),\"\")","v":""},{"$f":"IFERROR(IF($S18=BA$16,'6-Biogas Production'!$Q59,\"\"),\"\")","v":""},{"$f":"IFERROR(IF($S18=BB$16,'6-Biogas Production'!$Q59,\"\"),\"\")","v":""},{"$f":"IFERROR(IF($S18=BC$16,'6-Biogas Production'!$Q59,\"\"),\"\")","v":""},null,{"$f":"C18*VLOOKUP(D18,'23-Look up values'!$A$4:$B$9,2,FALSE)","v":0}]
["General",null,null,"kg/day",null,{"$f":"IFERROR(VLOOKUP(B19,'9-Feedstock Characteristics'!$A$8:$W$127,2,FALSE),\"-\")","v":"-"},{"$f":"IFERROR(VLOOKUP(B19,'9-Feedstock Characteristics'!$A$8:$W$127,3,FALSE),\"-\")","v":"-"},{"$f":"IFERROR(VLOOKUP(B19,'9-Feedstock Characteristics'!$A$8:$W$127,7,FALSE),\"-\")","v":"-"},{"$f":"IFERROR(VLOOKUP(B19,'9-Feedstock Characteristics'!$A$8:$W$127,8,FALSE),\"-\")","v":"-"},{"$f":"IFERROR(VLOOKUP(B19,'9-Feedstock Characteristics'!$A$8:$W$127,12,FALSE)/(1-F19),\"-\")","v":"-"},"",{"$f":"IF(C19=0,\"-\",IF(ReactorType=\"Dry\",VLOOKUP(B19,'9-Feedstock Characteristics'!$A$8:$W$127,18,FALSE),VLOOKUP(B19,'9-Feedstock Characteristics'!$A$8:$W$127,18,FALSE)*((C19/(DensityofWater*VLOOKUP(B19,'9-Feedstock Characteristics'!$A$8:$W$127,19,FALSE)))/Chosen_Reactor_Volume)+DensityofWater*((Chosen_Reactor_Volume-(C19/(DensityofWater*VLOOKUP(B19,'9-Feedstock Characteristics'!$A$8:$W$127,19,FALSE))))/Chosen_Reactor_Volume)))","v":"-"},{"$f":"IFERROR(VLOOKUP(B19,'9-Feedstock Characteristics'!$A$8:$W$127,15,FALSE),\"-\")","v":"-"},{"$f":"IFERROR(VLOOKUP(B19,'9-Feedstock Characteristics'!$A$8:$W$127,14,FALSE),\"-\")","v":"-"},{"$f":"IFERROR(VLOOKUP(B19,'9-Feedstock Characteristics'!$A$8:$W$127,13,FALSE),\"-\")","v":"-"},"","",null,{"$error":"#N/A"},"","","","","","","","","","","","","","","","","","","","","","","","","","","","","","",{"$f":"IFERROR(IF($S19=AX$16,'6-Biogas Production'!$Q60,\"\"),\"\")","v":""},{"$f":"IFERROR(IF($S19=AY$16,'6-Biogas Production'!$Q60,\"\"),\"\")","v":""},{"$f":"IFERROR(IF($S19=AZ$16,'6-Biogas Production'!$Q60,\"\"),\"\")","v":""},{"$f":"IFERROR(IF($S19=BA$16,'6-Biogas Production'!$Q60,\"\"),\"\")","v":""},{"$f":"IFERROR(IF($S19=BB$16,'6-Biogas Production'!$Q60,\"\"),\"\")","v":""},{"$f":"IFERROR(IF($S19=BC$16,'6-Biogas Production'!$Q60,\"\"),\"\")","v":""},null,{"$f":"C19*VLOOKUP(D19,'23-Look up values'!$A$4:$B$9,2,FALSE)","v":0}]
["Specific",null,null,"kg/day",null,{"$f":"IFERROR(VLOOKUP(B20,'9-Feedstock Characteristics'!$A$8:$W$127,2,FALSE),\"-\")","v":"-"},{"$f":"IFERROR(VLOOKUP(B20,'9-Feedstock Characteristics'!$A$8:$W$127,3,FALSE),\"-\")","v":"-"},{"$f":"IFERROR(VLOOKUP(B20,'9-Feedstock Characteristics'!$A$8:$W$127,7,FALSE),\"-\")","v":"-"},{"$f":"IFERROR(VLOOKUP(B20,'9-Feedstock Characteristics'!$A$8:$W$127,8,FALSE),\"-\")","v":"-"},{"$f":"IFERROR(VLOOKUP(B20,'9-Feedstock Characteristics'!$A$8:$W$127,12,FALSE)/(1-F20),\"-\")","v":"-"},"",{"$f":"IF(C20=0,\"-\",IF(ReactorType=\"Dry\",VLOOKUP(B20,'9-Feedstock Characteristics'!$A$8:$W$127,18,FALSE),VLOOKUP(B20,'9-Feedstock Characteristics'!$A$8:$W$127,18,FALSE)*((C20/(DensityofWater*VLOOKUP(B20,'9-Feedstock Characteristics'!$A$8:$W$127,19,FALSE)))/Chosen_Reactor_Volume)+DensityofWater*((Chosen_Reactor_Volume-(C20/(DensityofWater*VLOOKUP(B20,'9-Feedstock Characteristics'!$A$8:$W$127,19,FALSE))))/Chosen_Reactor_Volume)))","v":"-"},{"$f":"IFERROR(VLOOKUP(B20,'9-Feedstock Characteristics'!$A$8:$W$127,15,FALSE),\"-\")","v":"-"},{"$f":"IFERROR(VLOOKUP(B20,'9-Feedstock Characteristics'!$A$8:$W$127,14,FALSE),\"-\")","v":"-"},{"$f":"IFERROR(VLOOKUP(B20,'9-Feedstock Characteristics'!$A$8:$W$127,13,FALSE),\"-\")","v":"-"},"","",null,{"$error":"#N/A"},"","","","","","","","","","","","","","","","","","","","","","","","","","","","","","",{"$f":"IFERROR(IF($S20=AX$16,'6-Biogas Production'!$Q61,\"\"),\"\")","v":""},{"$f":"IFERROR(IF($S20=AY$16,'6-Biogas Production'!$Q61,\"\"),\"\")","v":""},{"$f":"IFERROR(IF($S20=AZ$16,'6-Biogas Production'!$Q61,\"\"),\"\")","v":""},{"$f":"IFERROR(IF($S20=BA$16,'6-Biogas Production'!$Q61,\"\"),\"\")","v":""},{"$f":"IFERROR(IF($S20=BB$16,'6-Biogas Production'!$Q61,\"\"),\"\")","v":""},{"$f":"IFERROR(IF($S20=BC$16,'6-Biogas Production'!$Q61,\"\"),\"\")","v":""},null,{"$f":"C20*VLOOKUP(D20,'23-Look up values'!$A$4:$B$9,2,FALSE)","v":0}]
["General",null,null,"kg/day",null,{"$f":"IFERROR(VLOOKUP(B21,'9-Feedstock Characteristics'!$A$8:$W$127,2,FALSE),\"-\")","v":"-"},{"$f":"IFERROR(VLOOKUP(B21,'9-Feedstock Characteristics'!$A$8:$W$127,3,FALSE),\"-\")","v":"-"},{"$f":"IFERROR(VLOOKUP(B21,'9-Feedstock Characteristics'!$A$8:$W$127,7,FALSE),\"-\")","v":"-"},{"$f":"IFERROR(VLOOKUP(B21,'9-Feedstock Characteristics'!$A$8:$W$127,8,FALSE),\"-\")","v":"-"},{"$f":"IFERROR(VLOOKUP(B21,'9-Feedstock Characteristics'!$A$8:$W$127,12,FALSE)/(1-F21),\"-\")","v":"-"},"",{"$f":"IF(C21=0,\"-\",IF(ReactorType=\"Dry\",VLOOKUP(B21,'9-Feedstock Characteristics'!$A$8:$W$127,18,FALSE),VLOOKUP(B21,'9-Feedstock Characteristics'!$A$8:$W$127,18,FALSE)*((C21/(DensityofWater*VLOOKUP(B21,'9-Feedstock Characteristics'!$A$8:$W$127,19,FALSE)))/Chosen_Reactor_Volume)+DensityofWater*((Chosen_Reactor_Volume-(C21/(DensityofWater*VLOOKUP(B21,'9-Feedstock Characteristics'!$A$8:$W$127,19,FALSE))))/Chosen_Reactor_Volume)))","v":"-"},{"$f":"IFERROR(VLOOKUP(B21,'9-Feedstock Characteristics'!$A$8:$W$127,15,FALSE),\"-\")","v":"-"},{"$f":"IFERROR(VLOOKUP(B21,'9-Feedstock Characteristics'!$A$8:$W$127,14,FALSE),\"-\")","v":"-"},{"$f":"IFERROR(VLOOKUP(B21,'9-Feedstock Characteristics'!$A$8:$W$127,13,FALSE),\"-\")","v":"-"},"","",null,{"$f":"VLOOKUP(B21,Waste_Item_Table,21,FALSE)","v":{"$error":"#N/A"}},"","","","","","","","","","","","","","","","","","","","","","","","","","","","","","",{"$f":"IFERROR(IF($S21=AX$16,'6-Biogas Production'!$Q62,\"\"),\"\")","v":""},{"$f":"IFERROR(IF($S21=AY$16,'6-Biogas Production'!$Q62,\"\"),\"\")","v":""},{"$f":"IFERROR(IF($S21=AZ$16,'6-Biogas Production'!$Q62,\"\"),\"\")","v":""},{"$f":"IFERROR(IF($S21=BA$16,'6-Biogas Production'!$Q62,\"\"),\"\")","v":""},{"$f":"IFERROR(IF($S21=BB$16,'6-Biogas Production'!$Q62,\"\"),\"\")","v":""},{"$f":"IFERROR(IF($S21=BC$16,'6-Biogas Production'!$Q62,\"\"),\"\")","v":""},null,{"$f":"C21*VLOOKUP(D21,'23-Look up values'!$A$4:$B$9,2,FALSE)","v":0}]
["General",null,null,"kg/day",null,{"$f":"IFERROR(VLOOKUP(B22,'9-Feedstock Characteristics'!$A$8:$W$127,2,FALSE),\"-\")","v":"-"},{"$f":"IFERROR(VLOOKUP(B22,'9-Feedstock Characteristics'!$A$8:$W$127,3,FALSE),\"-\")","v":"-"},{"$f":"IFERROR(VLOOKUP(B22,'9-Feedstock Characteristics'!$A$8:$W$127,7,FALSE),\"-\")","v":"-"},{"$f":"IFERROR(VLOOKUP(B22,'9-Feedstock Characteristics'!$A$8:$W$127,8,FALSE),\"-\")","v":"-"},{"$f":"IFERROR(VLOOKUP(B22,'9-Feedstock Characteristics'!$A$8:$W$127,12,FALSE)/(1-F22),\"-\")","v":"-"},"",{"$f":"IF(C22=0,\"-\",IF(ReactorType=\"Dry\",VLOOKUP(B22,'9-Feedstock Characteristics'!$A$8:$W$127,18,FALSE),VLOOKUP(B22,'9-Feedstock Characteristics'!$A$8:$W$127,18,FALSE)*((C22/(DensityofWater*VLOOKUP(B22,'9-Feedstock Characteristics'!$A$8:$W$127,19,FALSE)))/Chosen_Reactor_Volume)+DensityofWater*((Chosen_Reactor_Volume-(C22/(DensityofWater*VLOOKUP(B22,'9-Feedstock Characteristics'!$A$8:$W$127,19,FALSE))))/Chosen_Reactor_Volume)))","v":"-"},{"$f":"IFERROR(VLOOKUP(B22,'9-Feedstock Characteristics'!$A$8:$W$127,15,FALSE),\"-\")","v":"-"},{"$f":"IFERROR(VLOOKUP(B22,'9-Feedstock Characteristics'!$A$8:$W$127,14,FALSE),\"-\")","v":"-"},{"$f":"IFERROR(VLOOKUP(B22,'9-Feedstock Characteristics'!$A$8:$W$127,13,FALSE),\"-\")","v":"-"},"","",null,{"$error":"#N/A"},"","","","","","","","","","","","","","","","","","","","","","","","","","","","","","",{"$f":"IFERROR(IF($S22=AX$16,'6-Biogas Production'!$Q63,\"\"),\"\")","v":""},{"$f":"IFERROR(IF($S22=AY$16,'6-Biogas Production'!$Q63,\"\"),\"\")","v":""},{"$f":"IFERROR(IF($S22=AZ$16,'6-Biogas Production'!$Q63,\"\"),\"\")","v":""},{"$f":"IFERROR(IF($S22=BA$16,'6-Biogas Production'!$Q63,\"\"),\"\")","v":""},{"$f":"IFERROR(IF($S22=BB$16,'6-Biogas Production'!$Q63,\"\"),\"\")","v":""},{"$f":"IFERROR(IF($S22=BC$16,'6-Biogas Production'!$Q63,\"\"),\"\")","v":""},null,{"$f":"C22*VLOOKUP(D22,'23-Look up values'!$A$4:$B$9,2,FALSE)","v":0}]
["General",null,null,"kg/day",null,{"$f":"IFERROR(VLOOKUP(B23,'9-Feedstock Characteristics'!$A$8:$W$127,2,FALSE),\"-\")","v":"-"},{"$f":"IFERROR(VLOOKUP(B23,'9-Feedstock Characteristics'!$A$8:$W$127,3,FALSE),\"-\")","v":"-"},{"$f":"IFERROR(VLOOKUP(B23,'9-Feedstock Characteristics'!$A$8:$W$127,7,FALSE),\"-\")","v":"-"},{"$f":"IFERROR(VLOOKUP(B23,'9-Feedstock Characteristics'!$A$8:$W$127,8,FALSE),\"-\")","v":"-"},{"$f":"IFERROR(VLOOKUP(B23,'9-Feedstock Characteristics'!$A$8:$W$127,12,FALSE)/(1-F23),\"-\")","v":"-"},"",{"$f":"IF(C23=0,\"-\",IF(ReactorType=\"Dry\",VLOOKUP(B23,'9-Feedstock Characteristics'!$A$8:$W$127,18,FALSE),VLOOKUP(B23,'9-Feedstock Characteristics'!$A$8:$W$127,18,FALSE)*((C23/(DensityofWater*VLOOKUP(B23,'9-Feedstock Characteristics'!$A$8:$W$127,19,FALSE)))/Chosen_Reactor_Volume)+DensityofWater*((Chosen_Reactor_Volume-(C23/(DensityofWater*VLOOKUP(B23,'9-Feedstock Characteristics'!$A$8:$W$127,19,FALSE))))/Chosen_Reactor_Volume)))","v":"-"},{"$f":"IFERROR(VLOOKUP(B23,'9-Feedstock Characteristics'!$A$8:$W$127,15,FALSE),\"-\")","v":"-"},{"$f":"IFERROR(VLOOKUP(B23,'9-Feedstock Characteristics'!$A$8:$W$127,14,FALSE),\"-\")","v":"-"},{"$f":"IFERROR(VLOOKUP(B23,'9-Feedstock Characteristics'!$A$8:$W$127,13,FALSE),\"-\")","v":"-"},"","",null,{"$error":"#N/A"},"","","","","","","","","","","","","","","","","","","","","","","","","","","","","","",{"$f":"IFERROR(IF($S23=AX$16,'6-Biogas Production'!$Q64,\"\"),\"\")","v":""},{"$f":"IFERROR(IF($S23=AY$16,'6-Biogas Production'!$Q64,\"\"),\"\")","v":""},{"$f":"IFERROR(IF($S23=AZ$16,'6-Biogas Production'!$Q64,\"\"),\"\")","v":""},{"$f":"IFERROR(IF($S23=BA$16,'6-Biogas Production'!$Q64,\"\"),\"\")","v":""},{"$f":"IFERROR(IF($S23=BB$16,'6-Biogas Production'!$Q64,\"\"),\"\")","v":""},{"$f":"IFERROR(IF($S23=BC$16,'6-Biogas Production'!$Q64,\"\"),\"\")","v":""},null,{"$f":"C23*VLOOKUP(D23,'23-Look up values'!$A$4:$B$9,2,FALSE)","v":0}]
["General",null,null,"kg/day",null,{"$f":"IFERROR(VLOOKUP(B24,'9-Feedstock Characteristics'!$A$8:$W$127,2,FALSE),\"-\")","v":"-"},{"$f":"IFERROR(VLOOKUP(B24,'9-Feedstock Characteristics'!$A$8:$W$127,3,FALSE),\"-\")","v":"-"},{"$f":"IFERROR(VLOOKUP(B24,'9-Feedstock Characteristics'!$A$8:$W$127,7,FALSE),\"-\")","v":"-"},{"$f":"IFERROR(VLOOKUP(B24,'9-Feedstock Characteristics'!$A$8:$W$127,8,FALSE),\"-\")","v":"-"},{"$f":"IFERROR(VLOOKUP(B24,'9-Feedstock Characteristics'!$A$8:$W$127,12,FALSE)/(1-F24),\"-\")","v":"-"},"",{"$f":"IF(C24=0,\"-\",IF(ReactorType=\"Dry\",VLOOKUP(B24,'9-Feedstock Characteristics'!$A$8:$W$127,18,FALSE),VLOOKUP(B24,'9-Feedstock Characteristics'!$A$8:$W$127,18,FALSE)*((C24/(DensityofWater*VLOOKUP(B24,'9-Feedstock Characteristics'!$A$8:$W$127,19,FALSE)))/Chosen_Reactor_Volume)+DensityofWater*((Chosen_Reactor_Volume-(C24/(DensityofWater*VLOOKUP(B24,'9-Feedstock Characteristics'!$A$8:$W$127,19,FALSE))))/Chosen_Reactor_Volume)))","v":"-"},{"$f":"IFERROR(VLOOKUP(B24,'9-Feedstock Characteristics'!$A$8:$W$127,15,FALSE),\"-\")","v":"-"},{"$f":"IFERROR(VLOOKUP(B24,'9-Feedstock Characteristics'!$A$8:$W$127,14,FALSE),\"-\")","v":"-"},{"$f":"IFERROR(VLOOKUP(B24,'9-Feedstock Characteristics'!$A$8:$W$127,13,FALSE),\"-\")","v":"-"},"","",null,{"$error":"#N/A"},"","","","","","","","","","","","","","","","","","","","","","","","","","","","","","",{"$f":"IFERROR(IF($S24=AX$16,'6-Biogas Production'!$Q65,\"\"),\"\")","v":""},{"$f":"IFERROR(IF($S24=AY$16,'6-Biogas Production'!$Q65,\"\"),\"\")","v":""},{"$f":"IFERROR(IF($S24=AZ$16,'6-Biogas Production'!$Q65,\"\"),\"\")","v":""},{"$f":"IFERROR(IF($S24=BA$16,'6-Biogas Production'!$Q65,\"\"),\"\")","v":""},{"$f":"IFERROR(IF($S24=BB$16,'6-Biogas Production'!$Q65,\"\"),\"\")","v":""},{"$f":"IFERROR(IF($S24=BC$16,'6-Biogas Production'!$Q65,\"\"),\"\")","v":""},null,{"$f":"C24*VLOOKUP(D24,'23-Look up values'!$A$4:$B$9,2,FALSE)","v":0}]
["General",null,null,"kg/day",null,{"$f":"IFERROR(VLOOKUP(B25,'9-Feedstock Characteristics'!$A$8:$W$127,2,FALSE),\"-\")","v":"-"},{"$f":"IFERROR(VLOOKUP(B25,'9-Feedstock Characteristics'!$A$8:$W$127,3,FALSE),\"-\")","v":"-"},{"$f":"IFERROR(VLOOKUP(B25,'9-Feedstock Characteristics'!$A$8:$W$127,7,FALSE),\"-\")","v":"-"},{"$f":"IFERROR(VLOOKUP(B25,'9-Feedstock Characteristics'!$A$8:$W$127,8,FALSE),\"-\")","v":"-"},{"$f":"IFERROR(VLOOKUP(B25,'9-Feedstock Characteristics'!$A$8:$W$127,12,FALSE)/(1-F25),\"-\")","v":"-"},"",{"$f":"IF(C25=0,\"-\",IF(ReactorType=\"Dry\",VLOOKUP(B25,'9-Feedstock Characteristics'!$A$8:$W$127,18,FALSE),VLOOKUP(B25,'9-Feedstock Characteristics'!$A$8:$W$127,18,FALSE)*((C25/(DensityofWater*VLOOKUP(B25,'9-Feedstock Characteristics'!$A$8:$W$127,19,FALSE)))/Chosen_Reactor_Volume)+DensityofWater*((Chosen_Reactor_Volume-(C25/(DensityofWater*VLOOKUP(B25,'9-Feedstock Characteristics'!$A$8:$W$127,19,FALSE))))/Chosen_Reactor_Volume)))","v":"-"},{"$f":"IFERROR(VLOOKUP(B25,'9-Feedstock Characteristics'!$A$8:$W$127,15,FALSE),\"-\")","v":"-"},{"$f":"IFERROR(VLOOKUP(B25,'9-Feedstock Characteristics'!$A$8:$W$127,14,FALSE),\"-\")","v":"-"},{"$f":"IFERROR(VLOOKUP(B25,'9-Feedstock Characteristics'!$A$8:$W$127,13,FALSE),\"-\")","v":"-"},"","",null,{"$error":"#N/A"},"","","","","","","","","","","","","","","","","","","","","","","","","","","","","","",{"$f":"IFERROR(IF($S25=AX$16,'6-Biogas Production'!$Q66,\"\"),\"\")","v":""},{"$f":"IFERROR(IF($S25=AY$16,'6-Biogas Production'!$Q66,\"\"),\"\")","v":""},{"$f":"IFERROR(IF($S25=AZ$16,'6-Biogas Production'!$Q66,\"\"),\"\")","v":""},{"$f":"IFERROR(IF($S25=BA$16,'6-Biogas Production'!$Q66,\"\"),\"\")","v":""},{"$f":"IFERROR(IF($S25=BB$16,'6-Biogas Production'!$Q66,\"\"),\"\")","v":""},{"$f":"IFERROR(IF($S25=BC$16,'6-Biogas Production'!$Q66,\"\"),\"\")","v":""},null,{"$f":"C25*VLOOKUP(D25,'23-Look up values'!$A$4:$B$9,2,FALSE)","v":0}]
["General",null,null,"kg/day",null,{"$f":"IFERROR(VLOOKUP(B26,'9-Feedstock Characteristics'!$A$8:$W$127,2,FALSE),\"-\")","v":"-"},{"$f":"IFERROR(VLOOKUP(B26,'9-Feedstock Characteristics'!$A$8:$W$127,3,FALSE),\"-\")","v":"-"},{"$f":"IFERROR(VLOOKUP(B26,'9-Feedstock Characteristics'!$A$8:$W$127,7,FALSE),\"-\")","v":"-"},{"$f":"IFERROR(VLOOKUP(B26,'9-Feedstock Characteristics'!$A$8:$W$127,8,FALSE),\"-\")","v":"-"},{"$f":"IFERROR(VLOOKUP(B26,'9-Feedstock Characteristics'!$A$8:$W$127,12,FALSE)/(1-F26),\"-\")","v":"-"},"",{"$f":"IF(C26=0,\"-\",IF(ReactorType=\"Dry\",VLOOKUP(B26,'9-Feedstock Characteristics'!$A$8:$W$127,18,FALSE),VLOOKUP(B26,'9-Feedstock Characteristics'!$A$8:$W$127,18,FALSE)*((C26/(DensityofWater*VLOOKUP(B26,'9-Feedstock Characteristics'!$A$8:$W$127,19,FALSE)))/Chosen_Reactor_Volume)+DensityofWater*((Chosen_Reactor_Volume-(C26/(DensityofWater*VLOOKUP(B26,'9-Feedstock Characteristics'!$A$8:$W$127,19,FALSE))))/Chosen_Reactor_Volume)))","v":"-"},{"$f":"IFERROR(VLOOKUP(B26,'9-Feedstock Characteristics'!$A$8:$W$127,15,FALSE),\"-\")","v":"-"},{"$f":"IFERROR(VLOOKUP(B26,'9-Feedstock Characteristics'!$A$8:$W$127,14,FALSE),\"-\")","v":"-"},{"$f":"IFERROR(VLOOKUP(B26,'9-Feedstock Characteristics'!$A$8:$W$127,13,FALSE),\"-\")","v":"-"},"","",null,{"$error":"#N/A"},"","","","","","","","","","","","","","","","","","","","","","","","","","","","","","",{"$f":"IFERROR(IF($S26=AX$16,'6-Biogas Production'!$Q67,\"\"),\"\")","v":""},{"$f":"IFERROR(IF($S26=AY$16,'6-Biogas Production'!$Q67,\"\"),\"\")","v":""},{"$f":"IFERROR(IF($S26=AZ$16,'6-Biogas Production'!$Q67,\"\"),\"\")","v":""},{"$f":"IFERROR(IF($S26=BA$16,'6-Biogas Production'!$Q67,\"\"),\"\")","v":""},{"$f":"IFERROR(IF($S26=BB$16,'6-Biogas Production'!$Q67,\"\"),\"\")","v":""},{"$f":"IFERROR(IF($S26=BC$16,'6-Biogas Production'!$Q67,\"\"),\"\")","v":""},null,{"$f":"C26*VLOOKUP(D26,'23-Look up values'!$A$4:$B$9,2,FALSE)","v":0}]
["General",null,null,"kg/day",null,{"$f":"IFERROR(VLOOKUP(B27,'9-Feedstock Characteristics'!$A$8:$W$127,2,FALSE),\"-\")","v":"-"},{"$f":"IFERROR(VLOOKUP(B27,'9-Feedstock Characteristics'!$A$8:$W$127,3,FALSE),\"-\")","v":"-"},{"$f":"IFERROR(VLOOKUP(B27,'9-Feedstock Characteristics'!$A$8:$W$127,7,FALSE),\"-\")","v":"-"},{"$f":"IFERROR(VLOOKUP(B27,'9-Feedstock Characteristics'!$A$8:$W$127,8,FALSE),\"-\")","v":"-"},{"$f":"IFERROR(VLOOKUP(B27,'9-Feedstock Characteristics'!$A$8:$W$127,12,FALSE)/(1-F27),\"-\")","v":"-"},"",{"$f":"IF(C27=0,\"-\",IF(ReactorType=\"Dry\",VLOOKUP(B27,'9-Feedstock Characteristics'!$A$8:$W$127,18,FALSE),VLOOKUP(B27,'9-Feedstock Characteristics'!$A$8:$W$127,18,FALSE)*((C27/(DensityofWater*VLOOKUP(B27,'9-Feedstock Characteristics'!$A$8:$W$127,19,FALSE)))/Chosen_Reactor_Volume)+DensityofWater*((Chosen_Reactor_Volume-(C27/(DensityofWater*VLOOKUP(B27,'9-Feedstock Characteristics'!$A$8:$W$127,19,FALSE))))/Chosen_Reactor_Volume)))","v":"-"},{"$f":"IFERROR(VLOOKUP(B27,'9-Feedstock Characteristics'!$A$8:$W$127,15,FALSE),\"-\")","v":"-"},{"$f":"IFERROR(VLOOKUP(B27,'9-Feedstock Characteristics'!$A$8:$W$127,14,FALSE),\"-\")","v":"-"},{"$f":"IFERROR(VLOOKUP(B27,'9-Feedstock Characteristics'!$A$8:$W$127,13,FALSE),\"-\")","v":"-"},"","",null,{"$error":"#N/A"},"","","","","","","","","","","","","","","","","","","","","","","","","","","","","","",{"$f":"IFERROR(IF($S27=AX$16,'6-Biogas Production'!$Q68,\"\"),\"\")","v":""},{"$f":"IFERROR(IF($S27=AY$16,'6-Biogas Production'!$Q68,\"\"),\"\")","v":""},{"$f":"IFERROR(IF($S27=AZ$16,'6-Biogas Production'!$Q68,\"\"),\"\")","v":""},{"$f":"IFERROR(IF($S27=BA$16,'6-Biogas Production'!$Q68,\"\"),\"\")","v":""},{"$f":"IFERROR(IF($S27=BB$16,'6-Biogas Production'!$Q68,\"\"),\"\")","v":""},{"$f":"IFERROR(IF($S27=BC$16,'6-Biogas Production'!$Q68,\"\"),\"\")","v":""},null,{"$f":"C27*VLOOKUP(D27,'23-Look up values'!$A$4:$B$9,2,FALSE)","v":0}]
["General",null,null,"kg/day",null,{"$f":"IFERROR(VLOOKUP(B28,'9-Feedstock Characteristics'!$A$8:$W$127,2,FALSE),\"-\")","v":"-"},{"$f":"IFERROR(VLOOKUP(B28,'9-Feedstock Characteristics'!$A$8:$W$127,3,FALSE),\"-\")","v":"-"},{"$f":"IFERROR(VLOOKUP(B28,'9-Feedstock Characteristics'!$A$8:$W$127,7,FALSE),\"-\")","v":"-"},{"$f":"IFERROR(VLOOKUP(B28,'9-Feedstock Characteristics'!$A$8:$W$127,8,FALSE),\"-\")","v":"-"},{"$f":"IFERROR(VLOOKUP(B28,'9-Feedstock Characteristics'!$A$8:$W$127,12,FALSE)/(1-F28),\"-\")","v":"-"},"",{"$f":"IF(C28=0,\"-\",IF(ReactorType=\"Dry\",VLOOKUP(B28,'9-Feedstock Characteristics'!$A$8:$W$127,18,FALSE),VLOOKUP(B28,'9-Feedstock Characteristics'!$A$8:$W$127,18,FALSE)*((C28/(DensityofWater*VLOOKUP(B28,'9-Feedstock Characteristics'!$A$8:$W$127,19,FALSE)))/Chosen_Reactor_Volume)+DensityofWater*((Chosen_Reactor_Volume-(C28/(DensityofWater*VLOOKUP(B28,'9-Feedstock Characteristics'!$A$8:$W$127,19,FALSE))))/Chosen_Reactor_Volume)))","v":"-"},{"$f":"IFERROR(VLOOKUP(B28,'9-Feedstock Characteristics'!$A$8:$W$127,15,FALSE),\"-\")","v":"-"},{"$f":"IFERROR(VLOOKUP(B28,'9-Feedstock Characteristics'!$A$8:$W$127,14,FALSE),\"-\")","v":"-"},{"$f":"IFERROR(VLOOKUP(B28,'9-Feedstock Characteristics'!$A$8:$W$127,13,FALSE),\"-\")","v":"-"},"","",null,{"$error":"#N/A"},"","","","","","","","","","","","","","","","","","","","","","","","","","","","","","",{"$f":"IFERROR(IF($S28=AX$16,'6-Biogas Production'!$Q69,\"\"),\"\")","v":""},{"$f":"IFERROR(IF($S28=AY$16,'6-Biogas Production'!$Q69,\"\"),\"\")","v":""},{"$f":"IFERROR(IF($S28=AZ$16,'6-Biogas Production'!$Q69,\"\"),\"\")","v":""},{"$f":"IFERROR(IF($S28=BA$16,'6-Biogas Production'!$Q69,\"\"),\"\")","v":""},{"$f":"IFERROR(IF($S28=BB$16,'6-Biogas Production'!$Q69,\"\"),\"\")","v":""},{"$f":"IFERROR(IF($S28=BC$16,'6-Biogas Production'!$Q69,\"\"),\"\")","v":""},null,{"$f":"C28*VLOOKUP(D28,'23-Look up values'!$A$4:$B$9,2,FALSE)","v":0}]
["General",null,null,"kg/day",null,{"$f":"IFERROR(VLOOKUP(B29,'9-Feedstock Characteristics'!$A$8:$W$127,2,FALSE),\"-\")","v":"-"},{"$f":"IFERROR(VLOOKUP(B29,'9-Feedstock Characteristics'!$A$8:$W$127,3,FALSE),\"-\")","v":"-"},{"$f":"IFERROR(VLOOKUP(B29,'9-Feedstock Characteristics'!$A$8:$W$127,7,FALSE),\"-\")","v":"-"},{"$f":"IFERROR(VLOOKUP(B29,'9-Feedstock Characteristics'!$A$8:$W$127,8,FALSE),\"-\")","v":"-"},{"$f":"IFERROR(VLOOKUP(B29,'9-Feedstock Characteristics'!$A$8:$W$127,12,FALSE)/(1-F29),\"-\")","v":"-"},"",{"$f":"IF(C29=0,\"-\",IF(ReactorType=\"Dry\",VLOOKUP(B29,'9-Feedstock Characteristics'!$A$8:$W$127,18,FALSE),VLOOKUP(B29,'9-Feedstock Characteristics'!$A$8:$W$127,18,FALSE)*((C29/(DensityofWater*VLOOKUP(B29,'9-Feedstock Characteristics'!$A$8:$W$127,19,FALSE)))/Chosen_Reactor_Volume)+DensityofWater*((Chosen_Reactor_Volume-(C29/(DensityofWater*VLOOKUP(B29,'9-Feedstock Characteristics'!$A$8:$W$127,19,FALSE))))/Chosen_Reactor_Volume)))","v":"-"},{"$f":"IFERROR(VLOOKUP(B29,'9-Feedstock Characteristics'!$A$8:$W$127,15,FALSE),\"-\")","v":"-"},{"$f":"IFERROR(VLOOKUP(B29,'9-Feedstock Characteristics'!$A$8:$W$127,14,FALSE),\"-\")","v":"-"},{"$f":"IFERROR(VLOOKUP(B29,'9-Feedstock Characteristics'!$A$8:$W$127,13,FALSE),\"-\")","v":"-"},"","",null,{"$error":"#N/A"},"","","","","","","","","","","","","","","","","","","","","","","","","","","","","","",{"$f":"IFERROR(IF($S29=AX$16,'6-Biogas Production'!$Q70,\"\"),\"\")","v":""},{"$f":"IFERROR(IF($S29=AY$16,'6-Biogas Production'!$Q70,\"\"),\"\")","v":""},{"$f":"IFERROR(IF($S29=AZ$16,'6-Biogas Production'!$Q70,\"\"),\"\")","v":""},{"$f":"IFERROR(IF($S29=BA$16,'6-Biogas Production'!$Q70,\"\"),\"\")","v":""},{"$f":"IFERROR(IF($S29=BB$16,'6-Biogas Production'!$Q70,\"\"),\"\")","v":""},{"$f":"IFERROR(IF($S29=BC$16,'6-Biogas Production'!$Q70,\"\"),\"\")","v":""},null,{"$f":"C29*VLOOKUP(D29,'23-Look up values'!$A$4:$B$9,2,FALSE)","v":0}]
["General",null,null,"kg/day",null,{"$f":"IFERROR(VLOOKUP(B30,'9-Feedstock Characteristics'!$A$8:$W$127,2,FALSE),\"-\")","v":"-"},{"$f":"IFERROR(VLOOKUP(B30,'9-Feedstock Characteristics'!$A$8:$W$127,3,FALSE),\"-\")","v":"-"},{"$f":"IFERROR(VLOOKUP(B30,'9-Feedstock Characteristics'!$A$8:$W$127,7,FALSE),\"-\")","v":"-"},{"$f":"IFERROR(VLOOKUP(B30,'9-Feedstock Characteristics'!$A$8:$W$127,8,FALSE),\"-\")","v":"-"},{"$f":"IFERROR(VLOOKUP(B30,'9-Feedstock Characteristics'!$A$8:$W$127,12,FALSE)/(1-F30),\"-\")","v":"-"},"",{"$f":"IF(C30=0,\"-\",IF(ReactorType=\"Dry\",VLOOKUP(B30,'9-Feedstock Characteristics'!$A$8:$W$127,18,FALSE),VLOOKUP(B30,'9-Feedstock Characteristics'!$A$8:$W$127,18,FALSE)*((C30/(DensityofWater*VLOOKUP(B30,'9-Feedstock Characteristics'!$A$8:$W$127,19,FALSE)))/Chosen_Reactor_Volume)+DensityofWater*((Chosen_Reactor_Volume-(C30/(DensityofWater*VLOOKUP(B30,'9-Feedstock Characteristics'!$A$8:$W$127,19,FALSE))))/Chosen_Reactor_Volume)))","v":"-"},{"$f":"IFERROR(VLOOKUP(B30,'9-Feedstock Characteristics'!$A$8:$W$127,15,FALSE),\"-\")","v":"-"},{"$f":"IFERROR(VLOOKUP(B30,'9-Feedstock Characteristics'!$A$8:$W$127,14,FALSE),\"-\")","v":"-"},{"$f":"IFERROR(VLOOKUP(B30,'9-Feedstock Characteristics'!$A$8:$W$127,13,FALSE),\"-\")","v":"-"},"","",null,{"$error":"#N/A"},"","","","","","","","","","","","","","","","","","","","","","","","","","","","","","",{"$f":"IFERROR(IF($S30=AX$16,'6-Biogas Production'!$Q71,\"\"),\"\")","v":""},{"$f":"IFERROR(IF($S30=AY$16,'6-Biogas Production'!$Q71,\"\"),\"\")","v":""},{"$f":"IFERROR(IF($S30=AZ$16,'6-Biogas Production'!$Q71,\"\"),\"\")","v":""},{"$f":"IFERROR(IF($S30=BA$16,'6-Biogas Production'!$Q71,\"\"),\"\")","v":""},{"$f":"IFERROR(IF($S30=BB$16,'6-Biogas Production'!$Q71,\"\"),\"\")","v":""},{"$f":"IFERROR(IF($S30=BC$16,'6-Biogas Production'!$Q71,\"\"),\"\")","v":""},null,{"$f":"C30*VLOOKUP(D30,'23-Look up values'!$A$4:$B$9,2,FALSE)","v":0}]
["General",null,null,"kg/day",null,{"$f":"IFERROR(VLOOKUP(B31,'9-Feedstock Characteristics'!$A$8:$W$127,2,FALSE),\"-\")","v":"-"},{"$f":"IFERROR(VLOOKUP(B31,'9-Feedstock Characteristics'!$A$8:$W$127,3,FALSE),\"-\")","v":"-"},{"$f":"IFERROR(VLOOKUP(B31,'9-Feedstock Characteristics'!$A$8:$W$127,7,FALSE),\"-\")","v":"-"},{"$f":"IFERROR(VLOOKUP(B31,'9-Feedstock Characteristics'!$A$8:$W$127,8,FALSE),\"-\")","v":"-"},{"$f":"IFERROR(VLOOKUP(B31,'9-Feedstock Characteristics'!$A$8:$W$127,12,FALSE)/(1-F31),\"-\")","v":"-"},"",{"$f":"IF(C31=0,\"-\",IF(ReactorType=\"Dry\",VLOOKUP(B31,'9-Feedstock Characteristics'!$A$8:$W$127,18,FALSE),VLOOKUP(B31,'9-Feedstock Characteristics'!$A$8:$W$127,18,FALSE)*((C31/(DensityofWater*VLOOKUP(B31,'9-Feedstock Characteristics'!$A$8:$W$127,19,FALSE)))/Chosen_Reactor_Volume)+DensityofWater*((Chosen_Reactor_Volume-(C31/(DensityofWater*VLOOKUP(B31,'9-Feedstock Characteristics'!$A$8:$W$127,19,FALSE))))/Chosen_Reactor_Volume)))","v":"-"},{"$f":"IFERROR(VLOOKUP(B31,'9-Feedstock Characteristics'!$A$8:$W$127,15,FALSE),\"-\")","v":"-"},{"$f":"IFERROR(VLOOKUP(B31,'9-Feedstock Characteristics'!$A$8:$W$127,14,FALSE),\"-\")","v":"-"},{"$f":"IFERROR(VLOOKUP(B31,'9-Feedstock Characteristics'!$A$8:$W$127,13,FALSE),\"-\")","v":"-"},"","",null,{"$error":"#N/A"},"","","","","","","","","","","","","","","","","","","","","","","","","","","","","","",{"$f":"IFERROR(IF($S31=AX$16,'6-Biogas Production'!$Q72,\"\"),\"\")","v":""},{"$f":"IFERROR(IF($S31=AY$16,'6-Biogas Production'!$Q72,\"\"),\"\")","v":""},{"$f":"IFERROR(IF($S31=AZ$16,'6-Biogas Production'!$Q72,\"\"),\"\")","v":""},{"$f":"IFERROR(IF($S31=BA$16,'6-Biogas Production'!$Q72,\"\"),\"\")","v":""},{"$f":"IFERROR(IF($S31=BB$16,'6-Biogas Production'!$Q72,\"\"),\"\")","v":""},{"$f":"IFERROR(IF($S31=BC$16,'6-Biogas Production'!$Q72,\"\"),\"\")","v":""},null,{"$f":"C31*VLOOKUP(D31,'23-Look up values'!$A$4:$B$9,2,FALSE)","v":0}]
[null,null,null,null,null,{"$f":"IFERROR(SUMPRODUCT($BE$17:$BE$31,$F$17:$F$31)/SUM($BE$17:$BE$31),\"\")","v":""},{"$f":"IFERROR(SUMPRODUCT($BE$17:$BE$31,$G$17:$G$31)/SUM($BE$17:$BE$31),\"\")","v":""},{"$f":"IFERROR(SUMPRODUCT($BE$17:$BE$31,$H$17:$H$31)/SUM($BE$17:$BE$31),\"\")","v":""},{"$f":"IFERROR(SUMPRODUCT($BE$17:$BE$31,$I$17:$I$31)/SUM($BE$17:$BE$31),\"\")","v":""},{"$f":"IFERROR(SUMPRODUCT($BE$17:$BE$31,$J$17:$J$31)/SUM($BE$17:$BE$31),\"\")","v":""},{"$f":"IFERROR(SUMPRODUCT($BE$17:$BE$31,$K$17:$K$31)/SUM($BE$17:$BE$31),\"\")","v":""},{"$f":"SUMPRODUCT($BE$17:$BE$31,$L$17:$L$31)/SUM($BE$17:$BE$31)","v":{"$error":"#DIV/0!"}},{"$f":"IFERROR(SUMPRODUCT($Q$17:$Q$31,$M$17:$M$31)/SUM($Q$17:$Q$31),\"\")","v":""},{"$f":"IFERROR(SUMPRODUCT($Q$17:$Q$31,$N$17:$N$31)/SUM($Q$17:$Q$31),\"\")","v":""},{"$f":"IFERROR(SUMPRODUCT($Q$17:$Q$31,$O$17:$O$31)/SUM($Q$17:$Q$31),\"\")","v":""},{"$f":"C32*H32","v":{"$error":"#VALUE!"}},{"$f":"C32*G32","v":{"$error":"#VALUE!"}},null,null,null,null,null,null,null,null,null,null,null,null,null,null,null,null,null,null,null,null,null,null,null,null,null,null,null,null,null,null,null,null,null,null,null,null,null,null,null,{"$f":"SUM(BE17:BE31)","v":0}]
[]
[null,"AD Waste Substrate Summary Information","Percent","Unit ","Notes"]
[null,"Moisture Content",{"$f":"IFERROR(SUMPRODUCT($BE$17:$BE$31,$F$17:$F$31)/SUM($BE$17:$BE$31),)","v":0},"% w.b."]
[null,"Total Solids (TS)",{"$f":"IFERROR(SUMPRODUCT($BE$17:$BE$31,$G$17:$G$31)/SUM($BE$17:$BE$31),)","v":0},"% w.b."]
[null,"Volatile Solids (VS)",{"$f":"IFERROR(SUMPRODUCT($BE$17:$BE$31,$H$17:$H$31)/SUM($BE$17:$BE$31),)","v":0},"% w.b."]
[null,"Inserts or Ash",{"$f":"IFERROR(SUMPRODUCT($BE$17:$BE$31,$I$17:$I$31)/SUM($BE$17:$BE$31),)","v":0},"% w.b."]
[null,"Bioreactor Design Summary Information","Value","Unit","Notes"]
[null,"Solid Retention Time",{"$f":"IFERROR(IF(ReactorType=\"Dry\",21,18)*IF(ReactorTemp=\"Psychrophilic\",4,IF(ReactorTemp=\"Mesophilic\",1,IF(ReactorTemp=\"Thermophilic\",0.7))),)","v":21},"days"]
[null,"Waste Stream C:N ratio",{"$f":"IFERROR(K32/J32,)","v":0},"ratio"]
[null,"Reccomendation Bioreactor Type",{"$f":"IFERROR(IF(TotalSolidsPercent<=0.03,\"Covered Lagoon\",IF(OR(TotalSolidsPercent>0.03,TotalSolidsPercent<=0.1),\"Complete Mix Digester\",IF(OR(TotalSolidsPercent>0.1,TotalSolidsPercent<=0.13),\"Plug Flow  Digester\",IF(OR(TotalSolidsPercent>0.18,TotalSolidsPercent<=0.5),\"Slurry Digester or High-Solids Fermentation Digester\",\"Solid Waste Digesters\")))),\"-\")","v":"Complete Mix Digester"},"Note: this reccomendation is not definitive. Most waste streams can be converted to a liquid, slurry, or dry solids reactor with additional processing. "]
[null,"Science & Error Check Box",null,"Results","Error Explanation"]
[null,"Does the reactor have the optimal mix of Total Solids based on system design?",null,{"$f":"IF(AND(ReactorType=\"Dry\",AND(C36<=40%,C36>=15%)),\"Yes\",IF(AND(ReactorType=\"Wet\",C36<=15%),\"Yes\",\"No\"))","v":"No"},{"$f":"IF(D44=\"No\",\"In typical dry reactors TS = 15-40%. In typical wet reactors TS <=15%.\",\"\")","v":"In typical dry reactors TS = 15-40%. In typical wet reactors TS <=15%."}]
[null,"Is the C:N ratio optimal for Anaerobic Digestion?",null,{"$f":"IF(OR(C41<25,C41>35),\"No\",\"Yes\")","v":"No"},{"$f":"IF(D45=\"No\",\"Typical healthy AD systems operate with a C:N ratio between 25 and 35.\",\"\")","v":"Typical healthy AD systems operate with a C:N ratio between 25 and 35."}]
[]
[]
[]
[]
[]
[]
[]
[]
[null,"Instructions: The model automatically recommends a default gas composition.  However, if the user desires, they may override AD Screening Tool's recommended default gas composition. The button to the right of the table resets the formulas for the default values. "]
[null,"Biogas Composition","Answer","Units"]
[null,"What will the composition of the planned AD System Substrate be composed of?",{"$f":"$I$97","v":""},null,null,null,null,null,null,null,null,null,null,{"$f":"IFERROR(IF(SUM(TotalProtein+TotalFats)<5%,$C$98,IF(TotalSugar<5%,$C$101,IF(SUM(TotalProtein+TotalFats)>66%,$C$100,IF(SUM(TotalProtein+TotalFats)>50%,$C$99,$C$98)))),\"-\")","v":"-"}]
[null,"Biogas Composition"]
[null,"Methane (CH4)",{"$f":"$I$99","v":"-"},"%",null,null,null,null,null,null,null,null,null,{"$f":"INDEX($M$86:$M$90,MATCH($N$56,$C$97:$C$101,0))","v":{"$error":"#N/A"}}]
[null,"Carbon Dioxide (CO2)",{"$f":"$I$100","v":"-"},"%",null,null,null,null,null,null,null,null,null,{"$f":"INDEX($N$86:$N$90,MATCH($N$56,$C$97:$C$101,0))","v":{"$error":"#N/A"}}]
[null,"Nitrogen (N2)",{"$f":"$I$101","v":"-"},"%",null,null,null,null,null,null,null,null,null,{"$f":"INDEX($O$86:$O$90,MATCH($N$56,$C$97:$C$101,0))","v":{"$error":"#N/A"}}]
[null,"Hydrogen Sulfide (H2S), Ammonia (NH3), Carbon Monoxide (CO)",{"$f":"$I$102","v":"-"},"%",null,null,null,null,null,null,null,null,null,{"$f":"INDEX($P$86:$P$90,MATCH($N$56,$C$97:$C$101,0))","v":{"$error":"#N/A"}}]
[null,"Total",{"$f":"SUM(C58:C61)","v":0}]
[null,"Biogas Density",{"$f":"1.18","v":1.18},"kg/m3"]
[]
[null,"Other Default Assumptions","Assumption","Units"]
[null,"Energy Content Methane",9.6111109999999993,"kWh/m3"]
[null,"Energy Content Biogas",6.5,"kWh/m3"]
[null,"Home Cooking Consumption",300,"liters/day"]
[null,"Home Heating Consumption",400,"liters/day"]
[null,"Gas Lamp Consumption",1500,"liters/day"]
[]
[]
[]
[]
[]
[]
[]
[]
[]
[]
[]
[]
[]
[]
[]
[null,null,null,null,null,null,null,null,null,null,null,"Substrate Composition Includes",null,null,null,"Hydrogen Sulfide (H2S), Ammonia (NH3), Carbon Monoxide (CO)"]
[null,null,null,null,null,null,null,null,null,null,null,"Mostly Sugars & Starches",null,null,null,1E-3]
[null,null,null,null,null,null,null,null,null,null,null,"Equal Parts Sugars, Starches, Proteins, & Fats",null,null,null,5.0000000000000001E-3]
[null,null,null,null,null,null,null,null,null,null,null,"Equal Parts Proteins, Fats, Sugars, Starches, & Oils",null,null,null,0.01]
[null,null,null,null,null,null,null,null,null,null,null,"Mostly Proteins & Oils",null,null,null,0.01]
[]
[]
[]
[]
[]
[null,null,"Biogas Composition Assumptions",null,null,null,null,null,"DO NOT DELETE TEXT"]
[null,null,"Substrate Composition Includes","Mostly Sugars & Starches","Equal Parts Sugars, Starches, Proteins, & Fats","Equal Parts Proteins, Fats, Sugars, Starches, & Oils","Mostly Proteins & Oils",null,{"$f":"IFERROR(IF(SUM(TotalProtein+TotalFats)<5%,$D$97,IF(SUM(TotalProtein+TotalFats)>50%,$E$97,IF(SUM(TotalProtein+TotalFats)>66%,$F$97,IF(TotalSugar<5%,$G$97,$D$97)))),\"\")","v":""}]
[null,null,"Methane",0.499,0.54500000000000004,0.59,0.68]
[null,null,"Carbon Dioxide",0.499,0.44500000000000001,0.39,0.28999999999999998,null,{"$f":"IFERROR(HLOOKUP($C$56,$C$97:$G$101,2,FALSE),\"-\")","v":"-"},{"$f":"MATCH(I97,D97:G97,0)","v":{"$error":"#N/A"}}]
[null,null,"Nitrogen (N2)",1E-3,5.0000000000000001E-3,0.01,0.02,null,{"$f":"IFERROR(HLOOKUP($C$56,$C$97:$G$101,3,FALSE),\"-\")","v":"-"}]
[null,null,"Hydrogen Sulfide (H2S), Ammonia (NH3), Carbon Monoxide (CO)",1E-3,5.0000000000000001E-3,0.01,0.01,null,{"$f":"IFERROR(HLOOKUP($C$56,$C$97:$G$101,4,FALSE),\"-\")","v":"-"}]
[null,null,null,null,null,null,null,null,{"$f":"IFERROR(HLOOKUP($C$56,$C$97:$G$101,5,FALSE),\"-\")","v":"-"}]
[]
[]
[]
[]
[]
[]
[]
[]
[]
[]
[]
[]
[null,"Macro Formulas do not edit or delete will be hidden with final publication of the tool"]
[null,"Poultry Chicken",{"$f":"BE17","v":0},null,null,{"$f":"IFERROR(VLOOKUP(B116,'9-Feedstock Characteristics'!$A$8:$W$127,2,FALSE),\"-\")","v":0.75},{"$f":"IFERROR(VLOOKUP(B116,'9-Feedstock Characteristics'!$A$8:$W$127,3,FALSE),\"-\")","v":0.25},{"$f":"IFERROR(VLOOKUP(B116,'9-Feedstock Characteristics'!$A$8:$W$127,7,FALSE),\"-\")","v":0.18333333333333332},{"$f":"IFERROR(VLOOKUP(B116,'9-Feedstock Characteristics'!$A$8:$W$127,8,FALSE),\"-\")","v":6.666666666666668E-2},{"$f":"IFERROR(VLOOKUP(B116,'9-Feedstock Characteristics'!$A$8:$W$127,12,FALSE)/(1-F116),\"-\")","v":7.3333333333333334E-2},{"$f":"IFERROR((H116/(1-F116))*0.55,\"\")","v":0.40333333333333332},{"$f":"IF(C116=0,\"-\",IF(ReactorType=\"Dry\",VLOOKUP(B116,'9-Feedstock Characteristics'!$A$8:$W$127,18,FALSE),VLOOKUP(B116,'9-Feedstock Characteristics'!$A$8:$W$127,18,FALSE)*((C116/(DensityofWater*VLOOKUP(B116,'9-Feedstock Characteristics'!$A$8:$W$127,19,FALSE)))/Chosen_Reactor_Volume)+DensityofWater*((Chosen_Reactor_Volume-(C116/(DensityofWater*VLOOKUP(B116,'9-Feedstock Characteristics'!$A$8:$W$127,19,FALSE))))/Chosen_Reactor_Volume)))","v":"-"},{"$f":"IFERROR(VLOOKUP(B116,'9-Feedstock Characteristics'!$A$8:$W$127,15,FALSE),\"-\")","v":0.13100000000000001},{"$f":"IFERROR(VLOOKUP(B116,'9-Feedstock Characteristics'!$A$8:$W$127,14,FALSE),\"-\")","v":2.7900000000000001E-2},{"$f":"IFERROR(VLOOKUP(B116,'9-Feedstock Characteristics'!$A$8:$W$127,13,FALSE),\"-\")","v":0.77443333333333331}]
[null,"Broiler Chicken",0,null,null,{"$f":"IFERROR(VLOOKUP(B117,'9-Feedstock Characteristics'!$A$8:$W$127,2,FALSE),\"-\")","v":0.74},{"$f":"IFERROR(VLOOKUP(B117,'9-Feedstock Characteristics'!$A$8:$W$127,3,FALSE),\"-\")","v":0.26},{"$f":"IFERROR(VLOOKUP(B117,'9-Feedstock Characteristics'!$A$8:$W$127,7,FALSE),\"-\")","v":0.2009090909090909},{"$f":"IFERROR(VLOOKUP(B117,'9-Feedstock Characteristics'!$A$8:$W$127,8,FALSE),\"-\")","v":5.9090909090909111E-2},{"$f":"IFERROR(VLOOKUP(B117,'9-Feedstock Characteristics'!$A$8:$W$127,12,FALSE)/(1-F117),\"-\")","v":4.3636363636363633E-2},{"$f":"IFERROR((H117/(1-F117))*0.55,\"\")","v":0.42500000000000004},{"$f":"IF(C117=0,\"-\",IF(ReactorType=\"Dry\",VLOOKUP(B117,'9-Feedstock Characteristics'!$A$8:$W$127,18,FALSE),VLOOKUP(B117,'9-Feedstock Characteristics'!$A$8:$W$127,18,FALSE)*((C117/(DensityofWater*VLOOKUP(B117,'9-Feedstock Characteristics'!$A$8:$W$127,19,FALSE)))/Chosen_Reactor_Volume)+DensityofWater*((Chosen_Reactor_Volume-(C117/(DensityofWater*VLOOKUP(B117,'9-Feedstock Characteristics'!$A$8:$W$127,19,FALSE))))/Chosen_Reactor_Volume)))","v":"-"},{"$f":"IFERROR(VLOOKUP(B117,'9-Feedstock Characteristics'!$A$8:$W$127,15,FALSE),\"-\")","v":0.13100000000000001},{"$f":"IFERROR(VLOOKUP(B117,'9-Feedstock Characteristics'!$A$8:$W$127,14,FALSE),\"-\")","v":2.7900000000000001E-2},{"$f":"IFERROR(VLOOKUP(B117,'9-Feedstock Characteristics'!$A$8:$W$127,13,FALSE),\"-\")","v":0.78200909090909088}]
[null,"Turkey male",0,null,null,{"$f":"IFERROR(VLOOKUP(B118,'9-Feedstock Characteristics'!$A$8:$W$127,2,FALSE),\"-\")","v":0.74},{"$f":"IFERROR(VLOOKUP(B118,'9-Feedstock Characteristics'!$A$8:$W$127,3,FALSE),\"-\")","v":0.26},{"$f":"IFERROR(VLOOKUP(B118,'9-Feedstock Characteristics'!$A$8:$W$127,7,FALSE),\"-\")","v":0.20977272727272728},{"$f":"IFERROR(VLOOKUP(B118,'9-Feedstock Characteristics'!$A$8:$W$127,8,FALSE),\"-\")","v":5.0227272727272732E-2},{"$f":"IFERROR(VLOOKUP(B118,'9-Feedstock Characteristics'!$A$8:$W$127,12,FALSE)/(1-F118),\"-\")","v":6.0227272727272733E-2},0.44375000000000003,{"$f":"IF(C118=0,\"-\",IF(ReactorType=\"Dry\",VLOOKUP(B118,'9-Feedstock Characteristics'!$A$8:$W$127,18,FALSE),VLOOKUP(B118,'9-Feedstock Characteristics'!$A$8:$W$127,18,FALSE)*((C118/(DensityofWater*VLOOKUP(B118,'9-Feedstock Characteristics'!$A$8:$W$127,19,FALSE)))/Chosen_Reactor_Volume)+DensityofWater*((Chosen_Reactor_Volume-(C118/(DensityofWater*VLOOKUP(B118,'9-Feedstock Characteristics'!$A$8:$W$127,19,FALSE))))/Chosen_Reactor_Volume)))","v":"-"},{"$f":"IFERROR(VLOOKUP(B118,'9-Feedstock Characteristics'!$A$8:$W$127,15,FALSE),\"-\")","v":0.13100000000000001},{"$f":"IFERROR(VLOOKUP(B118,'9-Feedstock Characteristics'!$A$8:$W$127,14,FALSE),\"-\")","v":2.7900000000000001E-2},{"$f":"IFERROR(VLOOKUP(B118,'9-Feedstock Characteristics'!$A$8:$W$127,13,FALSE),\"-\")","v":0.79087272727272717}]
[null,"Turkey female",0,null,null,{"$f":"IFERROR(VLOOKUP(B119,'9-Feedstock Characteristics'!$A$8:$W$127,2,FALSE),\"-\")","v":0.74},{"$f":"IFERROR(VLOOKUP(B119,'9-Feedstock Characteristics'!$A$8:$W$127,3,FALSE),\"-\")","v":0.26},{"$f":"IFERROR(VLOOKUP(B119,'9-Feedstock Characteristics'!$A$8:$W$127,7,FALSE),\"-\")","v":0.21233333333333337},{"$f":"IFERROR(VLOOKUP(B119,'9-Feedstock Characteristics'!$A$8:$W$127,8,FALSE),\"-\")","v":4.7666666666666635E-2},{"$f":"IFERROR(VLOOKUP(B119,'9-Feedstock Characteristics'!$A$8:$W$127,12,FALSE)/(1-F119),\"-\")","v":0.06},0.44916666666666677,{"$f":"IF(C119=0,\"-\",IF(ReactorType=\"Dry\",VLOOKUP(B119,'9-Feedstock Characteristics'!$A$8:$W$127,18,FALSE),VLOOKUP(B119,'9-Feedstock Characteristics'!$A$8:$W$127,18,FALSE)*((C119/(DensityofWater*VLOOKUP(B119,'9-Feedstock Characteristics'!$A$8:$W$127,19,FALSE)))/Chosen_Reactor_Volume)+DensityofWater*((Chosen_Reactor_Volume-(C119/(DensityofWater*VLOOKUP(B119,'9-Feedstock Characteristics'!$A$8:$W$127,19,FALSE))))/Chosen_Reactor_Volume)))","v":"-"},{"$f":"IFERROR(VLOOKUP(B119,'9-Feedstock Characteristics'!$A$8:$W$127,15,FALSE),\"-\")","v":0.13100000000000001},{"$f":"IFERROR(VLOOKUP(B119,'9-Feedstock Characteristics'!$A$8:$W$127,14,FALSE),\"-\")","v":2.7900000000000001E-2},{"$f":"IFERROR(VLOOKUP(B119,'9-Feedstock Characteristics'!$A$8:$W$127,13,FALSE),\"-\")","v":0.79343333333333332}]
[null,"Duck",0,null,null,{"$f":"IFERROR(VLOOKUP(B120,'9-Feedstock Characteristics'!$A$8:$W$127,2,FALSE),\"-\")","v":0.74},{"$f":"IFERROR(VLOOKUP(B120,'9-Feedstock Characteristics'!$A$8:$W$127,3,FALSE),\"-\")","v":0.26},{"$f":"IFERROR(VLOOKUP(B120,'9-Feedstock Characteristics'!$A$8:$W$127,7,FALSE),\"-\")","v":0.15407407407407406},{"$f":"IFERROR(VLOOKUP(B120,'9-Feedstock Characteristics'!$A$8:$W$127,8,FALSE),\"-\")","v":0.10592592592592595},{"$f":"IFERROR(VLOOKUP(B120,'9-Feedstock Characteristics'!$A$8:$W$127,12,FALSE)/(1-F120),\"-\")","v":3.7037037037037035E-2},0.32592592592592595,{"$f":"IF(C120=0,\"-\",IF(ReactorType=\"Dry\",VLOOKUP(B120,'9-Feedstock Characteristics'!$A$8:$W$127,18,FALSE),VLOOKUP(B120,'9-Feedstock Characteristics'!$A$8:$W$127,18,FALSE)*((C120/(DensityofWater*VLOOKUP(B120,'9-Feedstock Characteristics'!$A$8:$W$127,19,FALSE)))/Chosen_Reactor_Volume)+DensityofWater*((Chosen_Reactor_Volume-(C120/(DensityofWater*VLOOKUP(B120,'9-Feedstock Characteristics'!$A$8:$W$127,19,FALSE))))/Chosen_Reactor_Volume)))","v":"-"},{"$f":"IFERROR(VLOOKUP(B120,'9-Feedstock Characteristics'!$A$8:$W$127,15,FALSE),\"-\")","v":0.13100000000000001},{"$f":"IFERROR(VLOOKUP(B120,'9-Feedstock Characteristics'!$A$8:$W$127,14,FALSE),\"-\")","v":2.7900000000000001E-2},{"$f":"IFERROR(VLOOKUP(B120,'9-Feedstock Characteristics'!$A$8:$W$127,13,FALSE),\"-\")","v":0.73517407407407398}]
[null,"Lamb/Sheep",0,null,null,{"$f":"IFERROR(VLOOKUP(B121,'9-Feedstock Characteristics'!$A$8:$W$127,2,FALSE),\"-\")","v":"-"},{"$f":"IFERROR(VLOOKUP(B121,'9-Feedstock Characteristics'!$A$8:$W$127,3,FALSE),\"-\")","v":"-"},{"$f":"IFERROR(VLOOKUP(B121,'9-Feedstock Characteristics'!$A$8:$W$127,7,FALSE),\"-\")","v":"-"},{"$f":"IFERROR(VLOOKUP(B121,'9-Feedstock Characteristics'!$A$8:$W$127,8,FALSE),\"-\")","v":"-"},{"$f":"IFERROR(VLOOKUP(B121,'9-Feedstock Characteristics'!$A$8:$W$127,12,FALSE)/(1-F121),\"-\")","v":"-"},"",{"$f":"IF(C121=0,\"-\",IF(ReactorType=\"Dry\",VLOOKUP(B121,'9-Feedstock Characteristics'!$A$8:$W$127,18,FALSE),VLOOKUP(B121,'9-Feedstock Characteristics'!$A$8:$W$127,18,FALSE)*((C121/(DensityofWater*VLOOKUP(B121,'9-Feedstock Characteristics'!$A$8:$W$127,19,FALSE)))/Chosen_Reactor_Volume)+DensityofWater*((Chosen_Reactor_Volume-(C121/(DensityofWater*VLOOKUP(B121,'9-Feedstock Characteristics'!$A$8:$W$127,19,FALSE))))/Chosen_Reactor_Volume)))","v":"-"},{"$f":"IFERROR(VLOOKUP(B121,'9-Feedstock Characteristics'!$A$8:$W$127,15,FALSE),\"-\")","v":"-"},{"$f":"IFERROR(VLOOKUP(B121,'9-Feedstock Characteristics'!$A$8:$W$127,14,FALSE),\"-\")","v":"-"},{"$f":"IFERROR(VLOOKUP(B121,'9-Feedstock Characteristics'!$A$8:$W$127,13,FALSE),\"-\")","v":"-"}]
[null,"Veal",0,null,null,{"$f":"IFERROR(VLOOKUP(B122,'9-Feedstock Characteristics'!$A$8:$W$127,2,FALSE),\"-\")","v":0.98},{"$f":"IFERROR(VLOOKUP(B122,'9-Feedstock Characteristics'!$A$8:$W$127,3,FALSE),\"-\")","v":2.0000000000000018E-2},{"$f":"IFERROR(VLOOKUP(B122,'9-Feedstock Characteristics'!$A$8:$W$127,7,FALSE),\"-\")","v":1.1333333333333343E-2},{"$f":"IFERROR(VLOOKUP(B122,'9-Feedstock Characteristics'!$A$8:$W$127,8,FALSE),\"-\")","v":8.6666666666666749E-3},{"$f":"IFERROR(VLOOKUP(B122,'9-Feedstock Characteristics'!$A$8:$W$127,12,FALSE)/(1-F122),\"-\")","v":0.13333333333333333},0.3116666666666667,{"$f":"IF(C122=0,\"-\",IF(ReactorType=\"Dry\",VLOOKUP(B122,'9-Feedstock Characteristics'!$A$8:$W$127,18,FALSE),VLOOKUP(B122,'9-Feedstock Characteristics'!$A$8:$W$127,18,FALSE)*((C122/(DensityofWater*VLOOKUP(B122,'9-Feedstock Characteristics'!$A$8:$W$127,19,FALSE)))/Chosen_Reactor_Volume)+DensityofWater*((Chosen_Reactor_Volume-(C122/(DensityofWater*VLOOKUP(B122,'9-Feedstock Characteristics'!$A$8:$W$127,19,FALSE))))/Chosen_Reactor_Volume)))","v":"-"},{"$f":"IFERROR(VLOOKUP(B122,'9-Feedstock Characteristics'!$A$8:$W$127,15,FALSE),\"-\")","v":8.5300000000000001E-2},{"$f":"IFERROR(VLOOKUP(B122,'9-Feedstock Characteristics'!$A$8:$W$127,14,FALSE),\"-\")","v":1.9400000000000001E-2},{"$f":"IFERROR(VLOOKUP(B122,'9-Feedstock Characteristics'!$A$8:$W$127,13,FALSE),\"-\")","v":0.88663333333333327}]
[null,"Horse - Active",0,null,null,{"$f":"IFERROR(VLOOKUP(B123,'9-Feedstock Characteristics'!$A$8:$W$127,2,FALSE),\"-\")","v":"-"},{"$f":"IFERROR(VLOOKUP(B123,'9-Feedstock Characteristics'!$A$8:$W$127,3,FALSE),\"-\")","v":"-"},{"$f":"IFERROR(VLOOKUP(B123,'9-Feedstock Characteristics'!$A$8:$W$127,7,FALSE),\"-\")","v":"-"},{"$f":"IFERROR(VLOOKUP(B123,'9-Feedstock Characteristics'!$A$8:$W$127,8,FALSE),\"-\")","v":"-"},{"$f":"IFERROR(VLOOKUP(B123,'9-Feedstock Characteristics'!$A$8:$W$127,12,FALSE)/(1-F123),\"-\")","v":"-"},"",{"$f":"IF(C123=0,\"-\",IF(ReactorType=\"Dry\",VLOOKUP(B123,'9-Feedstock Characteristics'!$A$8:$W$127,18,FALSE),VLOOKUP(B123,'9-Feedstock Characteristics'!$A$8:$W$127,18,FALSE)*((C123/(DensityofWater*VLOOKUP(B123,'9-Feedstock Characteristics'!$A$8:$W$127,19,FALSE)))/Chosen_Reactor_Volume)+DensityofWater*((Chosen_Reactor_Volume-(C123/(DensityofWater*VLOOKUP(B123,'9-Feedstock Characteristics'!$A$8:$W$127,19,FALSE))))/Chosen_Reactor_Volume)))","v":"-"},{"$f":"IFERROR(VLOOKUP(B123,'9-Feedstock Characteristics'!$A$8:$W$127,15,FALSE),\"-\")","v":"-"},{"$f":"IFERROR(VLOOKUP(B123,'9-Feedstock Characteristics'!$A$8:$W$127,14,FALSE),\"-\")","v":"-"},{"$f":"IFERROR(VLOOKUP(B123,'9-Feedstock Characteristics'!$A$8:$W$127,13,FALSE),\"-\")","v":"-"}]
[null,"Horse - Inactive",0,null,null,{"$f":"IFERROR(VLOOKUP(B124,'9-Feedstock Characteristics'!$A$8:$W$127,2,FALSE),\"-\")","v":"-"},{"$f":"IFERROR(VLOOKUP(B124,'9-Feedstock Characteristics'!$A$8:$W$127,3,FALSE),\"-\")","v":"-"},{"$f":"IFERROR(VLOOKUP(B124,'9-Feedstock Characteristics'!$A$8:$W$127,7,FALSE),\"-\")","v":"-"},{"$f":"IFERROR(VLOOKUP(B124,'9-Feedstock Characteristics'!$A$8:$W$127,8,FALSE),\"-\")","v":"-"},{"$f":"IFERROR(VLOOKUP(B124,'9-Feedstock Characteristics'!$A$8:$W$127,12,FALSE)/(1-F124),\"-\")","v":"-"},"",{"$f":"IF(C124=0,\"-\",IF(ReactorType=\"Dry\",VLOOKUP(B124,'9-Feedstock Characteristics'!$A$8:$W$127,18,FALSE),VLOOKUP(B124,'9-Feedstock Characteristics'!$A$8:$W$127,18,FALSE)*((C124/(DensityofWater*VLOOKUP(B124,'9-Feedstock Characteristics'!$A$8:$W$127,19,FALSE)))/Chosen_Reactor_Volume)+DensityofWater*((Chosen_Reactor_Volume-(C124/(DensityofWater*VLOOKUP(B124,'9-Feedstock Characteristics'!$A$8:$W$127,19,FALSE))))/Chosen_Reactor_Volume)))","v":"-"},{"$f":"IFERROR(VLOOKUP(B124,'9-Feedstock Characteristics'!$A$8:$W$127,15,FALSE),\"-\")","v":"-"},{"$f":"IFERROR(VLOOKUP(B124,'9-Feedstock Characteristics'!$A$8:$W$127,14,FALSE),\"-\")","v":"-"},{"$f":"IFERROR(VLOOKUP(B124,'9-Feedstock Characteristics'!$A$8:$W$127,13,FALSE),\"-\")","v":"-"}]
[null,"Leaves",0,null,null,{"$f":"IFERROR(VLOOKUP(B125,'9-Feedstock Characteristics'!$A$8:$W$127,2,FALSE),\"-\")","v":0.38200000000000001},{"$f":"IFERROR(VLOOKUP(B125,'9-Feedstock Characteristics'!$A$8:$W$127,3,FALSE),\"-\")","v":0.61799999999999999},{"$f":"IFERROR(VLOOKUP(B125,'9-Feedstock Characteristics'!$A$8:$W$127,7,FALSE),\"-\")","v":0.55743600000000004},{"$f":"IFERROR(VLOOKUP(B125,'9-Feedstock Characteristics'!$A$8:$W$127,8,FALSE),\"-\")","v":6.0563999999999951E-2},{"$f":"IFERROR(VLOOKUP(B125,'9-Feedstock Characteristics'!$A$8:$W$127,12,FALSE)/(1-F125),\"-\")","v":1.4563106796116504E-2},0.49610000000000004,{"$f":"IF(C125=0,\"-\",IF(ReactorType=\"Dry\",VLOOKUP(B125,'9-Feedstock Characteristics'!$A$8:$W$127,18,FALSE),VLOOKUP(B125,'9-Feedstock Characteristics'!$A$8:$W$127,18,FALSE)*((C125/(DensityofWater*VLOOKUP(B125,'9-Feedstock Characteristics'!$A$8:$W$127,19,FALSE)))/Chosen_Reactor_Volume)+DensityofWater*((Chosen_Reactor_Volume-(C125/(DensityofWater*VLOOKUP(B125,'9-Feedstock Characteristics'!$A$8:$W$127,19,FALSE))))/Chosen_Reactor_Volume)))","v":"-"},{"$f":"IFERROR(VLOOKUP(B125,'9-Feedstock Characteristics'!$A$8:$W$127,15,FALSE),\"-\")","v":8.6500000000000007E-2},{"$f":"IFERROR(VLOOKUP(B125,'9-Feedstock Characteristics'!$A$8:$W$127,14,FALSE),\"-\")","v":4.8500000000000001E-2},{"$f":"IFERROR(VLOOKUP(B125,'9-Feedstock Characteristics'!$A$8:$W$127,13,FALSE),\"-\")","v":0.80443600000000004}]
[null,"Alfalfa",0,null,null,{"$f":"IFERROR(VLOOKUP(B126,'9-Feedstock Characteristics'!$A$8:$W$127,2,FALSE),\"-\")","v":0.57999999999999996},{"$f":"IFERROR(VLOOKUP(B126,'9-Feedstock Characteristics'!$A$8:$W$127,3,FALSE),\"-\")","v":0.42000000000000004},{"$f":"IFERROR(VLOOKUP(B126,'9-Feedstock Characteristics'!$A$8:$W$127,7,FALSE),\"-\")","v":0.38220000000000004},{"$f":"IFERROR(VLOOKUP(B126,'9-Feedstock Characteristics'!$A$8:$W$127,8,FALSE),\"-\")","v":3.78E-2},{"$f":"IFERROR(VLOOKUP(B126,'9-Feedstock Characteristics'!$A$8:$W$127,12,FALSE)/(1-F126),\"-\")","v":5.3571428571428562E-2},0.50050000000000006,{"$f":"IF(C126=0,\"-\",IF(ReactorType=\"Dry\",VLOOKUP(B126,'9-Feedstock Characteristics'!$A$8:$W$127,18,FALSE),VLOOKUP(B126,'9-Feedstock Characteristics'!$A$8:$W$127,18,FALSE)*((C126/(DensityofWater*VLOOKUP(B126,'9-Feedstock Characteristics'!$A$8:$W$127,19,FALSE)))/Chosen_Reactor_Volume)+DensityofWater*((Chosen_Reactor_Volume-(C126/(DensityofWater*VLOOKUP(B126,'9-Feedstock Characteristics'!$A$8:$W$127,19,FALSE))))/Chosen_Reactor_Volume)))","v":"-"},{"$f":"IFERROR(VLOOKUP(B126,'9-Feedstock Characteristics'!$A$8:$W$127,15,FALSE),\"-\")","v":3.9899999999999998E-2},{"$f":"IFERROR(VLOOKUP(B126,'9-Feedstock Characteristics'!$A$8:$W$127,14,FALSE),\"-\")","v":6.8999999999999999E-3},{"$f":"IFERROR(VLOOKUP(B126,'9-Feedstock Characteristics'!$A$8:$W$127,13,FALSE),\"-\")","v":0.91539999999999999}]
[null,"Banana, fresh",0,null,null,{"$f":"IFERROR(VLOOKUP(B127,'9-Feedstock Characteristics'!$A$8:$W$127,2,FALSE),\"-\")","v":"-"},{"$f":"IFERROR(VLOOKUP(B127,'9-Feedstock Characteristics'!$A$8:$W$127,3,FALSE),\"-\")","v":"-"},{"$f":"IFERROR(VLOOKUP(B127,'9-Feedstock Characteristics'!$A$8:$W$127,7,FALSE),\"-\")","v":"-"},{"$f":"IFERROR(VLOOKUP(B127,'9-Feedstock Characteristics'!$A$8:$W$127,8,FALSE),\"-\")","v":"-"},{"$f":"IFERROR(VLOOKUP(B127,'9-Feedstock Characteristics'!$A$8:$W$127,12,FALSE)/(1-F127),\"-\")","v":"-"},"",{"$f":"IF(C127=0,\"-\",IF(ReactorType=\"Dry\",VLOOKUP(B127,'9-Feedstock Characteristics'!$A$8:$W$127,18,FALSE),VLOOKUP(B127,'9-Feedstock Characteristics'!$A$8:$W$127,18,FALSE)*((C127/(DensityofWater*VLOOKUP(B127,'9-Feedstock Characteristics'!$A$8:$W$127,19,FALSE)))/Chosen_Reactor_Volume)+DensityofWater*((Chosen_Reactor_Volume-(C127/(DensityofWater*VLOOKUP(B127,'9-Feedstock Characteristics'!$A$8:$W$127,19,FALSE))))/Chosen_Reactor_Volume)))","v":"-"},{"$f":"IFERROR(VLOOKUP(B127,'9-Feedstock Characteristics'!$A$8:$W$127,15,FALSE),\"-\")","v":"-"},{"$f":"IFERROR(VLOOKUP(B127,'9-Feedstock Characteristics'!$A$8:$W$127,14,FALSE),\"-\")","v":"-"},{"$f":"IFERROR(VLOOKUP(B127,'9-Feedstock Characteristics'!$A$8:$W$127,13,FALSE),\"-\")","v":"-"}]
[null,"Broccoli, leaf",0,null,null,{"$f":"IFERROR(VLOOKUP(B128,'9-Feedstock Characteristics'!$A$8:$W$127,2,FALSE),\"-\")","v":"-"},{"$f":"IFERROR(VLOOKUP(B128,'9-Feedstock Characteristics'!$A$8:$W$127,3,FALSE),\"-\")","v":"-"},{"$f":"IFERROR(VLOOKUP(B128,'9-Feedstock Characteristics'!$A$8:$W$127,7,FALSE),\"-\")","v":"-"},{"$f":"IFERROR(VLOOKUP(B128,'9-Feedstock Characteristics'!$A$8:$W$127,8,FALSE),\"-\")","v":"-"},{"$f":"IFERROR(VLOOKUP(B128,'9-Feedstock Characteristics'!$A$8:$W$127,12,FALSE)/(1-F128),\"-\")","v":"-"},"",{"$f":"IF(C128=0,\"-\",IF(ReactorType=\"Dry\",VLOOKUP(B128,'9-Feedstock Characteristics'!$A$8:$W$127,18,FALSE),VLOOKUP(B128,'9-Feedstock Characteristics'!$A$8:$W$127,18,FALSE)*((C128/(DensityofWater*VLOOKUP(B128,'9-Feedstock Characteristics'!$A$8:$W$127,19,FALSE)))/Chosen_Reactor_Volume)+DensityofWater*((Chosen_Reactor_Volume-(C128/(DensityofWater*VLOOKUP(B128,'9-Feedstock Characteristics'!$A$8:$W$127,19,FALSE))))/Chosen_Reactor_Volume)))","v":"-"},{"$f":"IFERROR(VLOOKUP(B128,'9-Feedstock Characteristics'!$A$8:$W$127,15,FALSE),\"-\")","v":"-"},{"$f":"IFERROR(VLOOKUP(B128,'9-Feedstock Characteristics'!$A$8:$W$127,14,FALSE),\"-\")","v":"-"},{"$f":"IFERROR(VLOOKUP(B128,'9-Feedstock Characteristics'!$A$8:$W$127,13,FALSE),\"-\")","v":"-"}]
[null,"Cabbage, leaf",0,null,null,{"$f":"IFERROR(VLOOKUP(B129,'9-Feedstock Characteristics'!$A$8:$W$127,2,FALSE),\"-\")","v":"-"},{"$f":"IFERROR(VLOOKUP(B129,'9-Feedstock Characteristics'!$A$8:$W$127,3,FALSE),\"-\")","v":"-"},{"$f":"IFERROR(VLOOKUP(B129,'9-Feedstock Characteristics'!$A$8:$W$127,7,FALSE),\"-\")","v":"-"},{"$f":"IFERROR(VLOOKUP(B129,'9-Feedstock Characteristics'!$A$8:$W$127,8,FALSE),\"-\")","v":"-"},{"$f":"IFERROR(VLOOKUP(B129,'9-Feedstock Characteristics'!$A$8:$W$127,12,FALSE)/(1-F129),\"-\")","v":"-"},"",{"$f":"IF(C129=0,\"-\",IF(ReactorType=\"Dry\",VLOOKUP(B129,'9-Feedstock Characteristics'!$A$8:$W$127,18,FALSE),VLOOKUP(B129,'9-Feedstock Characteristics'!$A$8:$W$127,18,FALSE)*((C129/(DensityofWater*VLOOKUP(B129,'9-Feedstock Characteristics'!$A$8:$W$127,19,FALSE)))/Chosen_Reactor_Volume)+DensityofWater*((Chosen_Reactor_Volume-(C129/(DensityofWater*VLOOKUP(B129,'9-Feedstock Characteristics'!$A$8:$W$127,19,FALSE))))/Chosen_Reactor_Volume)))","v":"-"},{"$f":"IFERROR(VLOOKUP(B129,'9-Feedstock Characteristics'!$A$8:$W$127,15,FALSE),\"-\")","v":"-"},{"$f":"IFERROR(VLOOKUP(B129,'9-Feedstock Characteristics'!$A$8:$W$127,14,FALSE),\"-\")","v":"-"},{"$f":"IFERROR(VLOOKUP(B129,'9-Feedstock Characteristics'!$A$8:$W$127,13,FALSE),\"-\")","v":"-"}]
[null,"Piglets",0,null,null,{"$f":"IFERROR(VLOOKUP(B130,'9-Feedstock Characteristics'!$A$8:$W$127,2,FALSE),\"-\")","v":0.9},{"$f":"IFERROR(VLOOKUP(B130,'9-Feedstock Characteristics'!$A$8:$W$127,3,FALSE),\"-\")","v":9.9999999999999978E-2},{"$f":"IFERROR(VLOOKUP(B130,'9-Feedstock Characteristics'!$A$8:$W$127,7,FALSE),\"-\")","v":8.7999999999999995E-2},{"$f":"IFERROR(VLOOKUP(B130,'9-Feedstock Characteristics'!$A$8:$W$127,8,FALSE),\"-\")","v":1.1999999999999983E-2},{"$f":"IFERROR(VLOOKUP(B130,'9-Feedstock Characteristics'!$A$8:$W$127,12,FALSE)/(1-F130),\"-\")","v":9.1999999999999998E-2},0.4840000000000001,{"$f":"IF(C130=0,\"-\",IF(ReactorType=\"Dry\",VLOOKUP(B130,'9-Feedstock Characteristics'!$A$8:$W$127,18,FALSE),VLOOKUP(B130,'9-Feedstock Characteristics'!$A$8:$W$127,18,FALSE)*((C130/(DensityofWater*VLOOKUP(B130,'9-Feedstock Characteristics'!$A$8:$W$127,19,FALSE)))/Chosen_Reactor_Volume)+DensityofWater*((Chosen_Reactor_Volume-(C130/(DensityofWater*VLOOKUP(B130,'9-Feedstock Characteristics'!$A$8:$W$127,19,FALSE))))/Chosen_Reactor_Volume)))","v":"-"},{"$f":"IFERROR(VLOOKUP(B130,'9-Feedstock Characteristics'!$A$8:$W$127,15,FALSE),\"-\")","v":9.3899999999999997E-2},{"$f":"IFERROR(VLOOKUP(B130,'9-Feedstock Characteristics'!$A$8:$W$127,14,FALSE),\"-\")","v":2.2100000000000002E-2},{"$f":"IFERROR(VLOOKUP(B130,'9-Feedstock Characteristics'!$A$8:$W$127,13,FALSE),\"-\")","v":0.872}]
[]
[]
[]
[]
[null,"Reset Table for Macro"]
[null,{"$f":"B17","v":0},null,10000]
[null,{"$f":"B18","v":0},null,10000]
[null,0,null,10000]
[null,0,null,10000]
[null,{"$f":"B21","v":0},null,10000]
[null,0,null,10000]
[null,0,null,0]
[null,0,null,0]
[null,0,null,0]
[null,0,null,0]
[null,0,null,0]
[null,0,null,0]
[null,0,null,0]
[null,0,null,0]
[null,0,null,0]
[null,"Total",null,{"$f":"SUM(D136:D150)","v":60000}]

{"sheet":"4-Emissions Inputs","index":7,"n_rows":78,"n_cols":4,"rows_kept":78,"cut":false,"hidden":false,"merged":[[9,0,9,3],[19,0,19,3],[31,0,31,3],[24,0,24,3],[46,0,46,3],[11,3,13,3],[15,3,17,3],[26,3,29,3],[21,3,22,3]]}
["Anaerobic Digester Emissions Calculation Inputs"]
[]
[]
[]
[]
[]
[]
[]
[]
["Waste Management and Storage Emission Reduction Instructions: \nBaseline emissions are determined based on the management systems in place for manure and co-digested wastes prior to the use of the AD system. Users should select a primary management system for the waste and an average reporting temperature. These factors determine the Methane Conversion Factor (MCF) used in subsequent calculations. MCF values can be viewed in the MCF tab of this workbook."]
[" Waste Management and Storage Emission Reductions","Value ","Units"," "]
["Primary Previous Management System for Manure",null,"(select one)"]
["Primary Previous Management System for Other Waste",null,"(select one)"]
["Average Reporting Period Temperature",null,"Celsius"]
["Storage"]
["Does the facility temporarily store any organic Feedstocks on-site?",null,"(Yes/No)"]
["If Yes, please choose a storage system",null,"(select one)"]
["Total Days Waste Stored Temporarily per Year",null," days per year"]
[]
["Onsite Methane Utilization Instructions: \nBiogas produced onsite sometimes can be combusted to generate electricity, used as boiler, furnace, or combustion engine fuel onsite. If gas is burned onsite, enter the estimated percentage of gas per day that will be combusted. The default for methane utilization is set at 90 percent. The user can enter their own methane utilization percent by typing in a whole number percent in cell B22 below). Emissions factors for the combustion processes are based on IPCC (2006) values. \n\nIf gas is not utilized onsite and will only be flared, enter 0 for utilization percentage and choose \"none\" for combustion process. If the utilization percent is 0, the total flare percentage in cell B27 below will be 100% "]
["Methane Utilization ","Value","Units","Notes"]
["Methane Utilization Percent",0.9,"percent"]
["Combustion Process",null,"(select one)"]
[]
["Flaring Instructions: \nMethane sent to a flare is combusted, but this process is not 100 percent efficient. Some methane is released to the environment due to incomplete combustion, or flaring may take place if the generator is offline. Additionally, some projects may flare all methane instead of utilizing it on-site. The measured methane sent to flaring is calculated using the percentage entered above in cell B22. The sum of methane utilization and methane sent to flare should equal 100 percent.\n\nTo calculate methane released due to flaring, the amount of methane sent to flare is multiplied by the combustion process efficiency. Default combustion efficiencies are from the UNFCCC CDM (2017) and are based on the type of flare used. If more specific information about a flare's efficiency is known, users may override the recommended default. The button to the right resets the flaring default value."]
["Flaring","Value","Units","Notes"]
["Percentage of Methane sent to Flare",{"$f":"1-Methane_Utilization_Percentage","v":9.9999999999999978E-2},"percent "]
["Flare Type",null,"(select one)"]
["Use Default Efficiency?",null,"(select one)"]
["Combustion Process Efficiency",{"$f":"IFERROR(IF(Use_Defaults_Flare=\"No\",\"\",VLOOKUP(FlareType,'22-Flaring & Leakage'!$A$5:$B$7,2,FALSE)),0)","v":0},"percent"]
[]
["Electricity Consumption and Generation Instructions: \nAD projects can source electricity from the grid or use electricity generated to power their own operations. Grid emissions estimates are derived from country-level emissions data from IEA (2018) and generation data from BP (2018). Users may override default emissions rates with more specific information if it is available. Users can also indicate grid gross loss - the amount of electricity lost due to transmission as a percent of total generation - or the default based on US values for 2022 will be used (eGRID 2022).\n\nIf electricity is generated onsite and consumed by the project, the tool subtracts this amount of consumption from the total electricity consumption. Biogas specific emissions factors from IPCC (2006) are then applied to the onsite generation. The user can supply more specific emissions factors for biogas if available. The button to the right resets the leakage default values."]
["Electricity Consumption and Generation","Value","Units","Notes"]
["Country",null,"(select one)"]
["Electricity Generation"]
["Is electricity generated and used onsite?",null,"(Yes/No)"]
["How much onsite generation is consumed?",null,"kWh per day"]
["Project Biogas CO2 Emissions Factor",{"$f":"IF($B$36=\"Yes\",'21-Electricity Use'!$B$7,\"\")","v":""},"kg/MMBtu"]
["Project Biogas CH4 Emissions Factor",{"$f":"IF($B$36=\"Yes\",'21-Electricity Use'!$B$8,\"\")","v":""},"g/MMBtu"]
["Direct Electricity Use"]
["How much Electricity is consumed from the grid?",null,"kWh per day"]
["Use Default Grid Data?",null,"(select one)"]
["Default Grid Emissions Rate",{"$f":"IFERROR(VLOOKUP($B$34,'21-Electricity Use'!$A$22:$I$51,8,FALSE),\"\")","v":""},"kgCO2/kWh"]
["If no, what is your Grid Emissions factor?"]
["Grid Gross Loss",5.0999999999999997E-2,"percent"]
[]
["Leakage Instructions: \nSome degree of leakage occurs from all Anaerobic Digesters. Leakage is the methane released through pipes, equipment, and other apparatuses used to generate biogas. This tool uses the UNFCCC CDM (2017) default leakage rate of 10% of methane production, but the user may override the recommended defaults. The tool using the previously entered waste and equipment inputs calculates methane production. The button to the right resets the leakage default values."]
["Leakage","Value","Units","Notes"]
["Assumed Fraction of Methane Leakage",0.1,"percent"]
[]
[]
[]
[]
[]
[]
[]
[]
[]
[]
[]
[]
[]
[]
[]
[]
[]
[]
[]
[]
[]
["Defaults -hide"]
["Combustion Process Efficiency",{"$f":"IFERROR(IF(Use_Defaults_Flare=\"No\",\"\",VLOOKUP(FlareType,'22-Flaring & Leakage'!$A$5:$B$7,2,FALSE)),0)","v":0}]
["Assumed Fraction of Methane Leakage",0.1]
["Default Grid Emissions Rate",{"$f":"IFERROR(VLOOKUP($B$34,'21-Electricity Use'!$A$22:$I$51,8,FALSE),\"\")","v":""}]
["Grid Gross Loss",4.4999999999999998E-2]
["CO2 Emissions Factor",{"$f":"IF($B$36=\"Yes\",'21-Electricity Use'!$B$7,\"\")","v":""}]
["CH4 Emissions Factor",{"$f":"IF($B$36=\"Yes\",'21-Electricity Use'!$B$8,\"\")","v":""}]
["Default methane sent to flare",{"$f":"1-Methane_Utilization_Percentage","v":9.9999999999999978E-2}]

{"sheet":"5-Annual Summary","index":8,"n_rows":45,"n_cols":37,"rows_kept":45,"cut":false,"hidden":false,"merged":[[18,5,18,9],[19,5,19,9],[20,5,20,9],[21,5,21,9],[18,1,18,3],[19,1,19,3],[20,1,20,3],[21,1,21,3],[12,5,12,9],[13,5,13,9],[14,5,14,9],[15,5,15,9],[6,5,6,9],[7,5,7,9],[8,5,8,9],[9,5,9,9],[10,5,10,9],[44,6,44,9],[1,0,5,9],[23,0,27,9],[28,6,28,9],[16,5,16,9],[17,5,17,9],[9,1,9,3],[10,1,10,3],[11,1,11,3],[12,1,12,3],[13,1,13,3],[14,1,14,3],[15,1,15,3],[16,1,16,3],[17,1,17,3],[11,5,11,9]]}
["Annual Output Summary Information"]
["The table below shows the planned Anaerobic Digester’s annual digestate and biogas production and options for energy recovery based on the user’s inputs, calculated by taking the daily production and multiplying it by 365 days per year. This should be considered a first-order estimate. In reality, anaerobic digester production may vary based on waste characteristics, reactor temperature, system design limitations, and daily operations. "]
[]
[]
[]
[]
["Biogas Production - \nThe estimated low and high production values use calibration factors from actual observations that represent the 25th and 75th percentile values of the ratio between measured and modeled data. These values are used to adjust the maximum potential biogas generation values to estimate the likely biogas generation potential values. ","Estimated Value (low)","Estimated Value (high)","Theoretical Maximum Potential","Unit","Notes",null,null,null,null,null,null,null,null,null,null,null,null,null,null,null,null,null,null,null,null,null,null,null,null,null,null,null,null,"Estimated Biogas Production - low (m3/year)","Estimated Biogas Production - high (m3/year)","Maximum Potential (m3/year)"]
["Annual Biogas Production",{"$f":"IFERROR(($D$8*VLOOKUP(ReactorType&\"_\"&ReactorTemp,'11-Calibration Factors'!$A$4:$C$9,2,FALSE)),\" \")","v":0},{"$f":"IFERROR(($D$8*VLOOKUP(ReactorType&\"_\"&ReactorTemp,'11-Calibration Factors'!$A$4:$C$9,3,FALSE)),\" \")","v":0},{"$f":"IFERROR((Estimated_Max_Daily_Biogas_Production*365)*VLOOKUP('5-Annual Summary'!E8,'23-Look up values'!$A$13:$B$14,2,FALSE),\" \")","v":0},"m3/year"]
["Annual Methane Production",{"$f":"IFERROR($D$9*VLOOKUP(ReactorType&\"_\"&ReactorTemp,'11-Calibration Factors'!$A$4:$C$9,2,FALSE),\" \")","v":0},{"$f":"IFERROR($D$9*VLOOKUP(ReactorType&\"_\"&ReactorTemp,'11-Calibration Factors'!$A$4:$C$9,3,FALSE),\" \")","v":0},{"$f":"IFERROR((Estimated_Max_Daily_Methane_Production*365)*VLOOKUP(E9,'23-Look up values'!$A$13:$B$14,2,FALSE),\" \")","v":0},"m3/year"]
["Digestate Production","Value",null,null,"Unit","Notes"]
["Total Non- Biodegradable Solids",{"$f":"'7-Digestate Production'!B87*365/VLOOKUP(E11,'23-Look up values'!$A$18:$B$21,2,FALSE)","v":0},null,null,"kg/year"]
["Remaining Volatile Solids",{"$f":"'7-Digestate Production'!C87*365/VLOOKUP(E12,'23-Look up values'!$A$18:$B$21,2,FALSE)","v":0},null,null,"kg/year"]
["Digester Solids",{"$f":"'7-Digestate Production'!E87*365/VLOOKUP(E13,'23-Look up values'!$A$18:$B$21,2,FALSE)","v":0},null,null,"kg/year"]
["Dry Sludge",{"$f":"IFERROR(IFERROR(IF('3-Digester Inputs'!$C$11=\"Yes\",'7-Digestate Production'!F87,\"\")*365,\"N/A\")/VLOOKUP(E14,'23-Look up values'!$A$18:$B$21,2,FALSE),\"N/A\")","v":"N/A"},null,null,"kg/year"]
["Liquid Effluent",{"$f":"IFERROR('7-Digestate Production'!G87*365/VLOOKUP(E15,'23-Look up values'!$A$18:$B$21,2,FALSE),\"N/A\")","v":0},null,null,"kg/year"]
["Energy Recovery Options - Each energy recovery option is an \"or\" estimate (i.e., the plant will not be capable of producing both X kWh of electricity and Y m3/year natural gas, but is capable of producing either X kWh of electricity hours or Y m3/year of natural gas).","Value",null,null,"Unit","Notes"]
["Electricity Production (cleaned biogas to natural gas quality)",{"$f":"IFERROR(Annual_Avg_Biogas_Production*'3-Digester Inputs'!$C$58*'3-Digester Inputs'!C66/1000,\" \")","v":" "},null,null,"MWh"]
["Electricity Production (biogas only)",{"$f":"IFERROR(Annual_Avg_Biogas_Production*'3-Digester Inputs'!$C$58*'3-Digester Inputs'!C67/1000,\" \")","v":" "},null,null,"MWh"]
["Renewable Natural Gas (RNG) Production",{"$f":"IFERROR(Annual_Avg_Biogas_Production*'3-Digester Inputs'!C58*VLOOKUP(E19,'23-Look up values'!$A$13:$B$14,2,FALSE),\" \")","v":" "},null,null,"m3/year"]
["Cooking Gas Potential",{"$f":"IFERROR(CONVERT(Annual_Avg_Biogas_Production,\"m^3\",\"l\")/('3-Digester Inputs'!C68*365),\" \")","v":0},null,null,"homes/year"]
["Home Heating Potential",{"$f":"IFERROR(CONVERT(Annual_Avg_Biogas_Production,\"m^3\",\"l\")/('3-Digester Inputs'!C69*365),\" \")","v":0},null,null,"homes/year"]
["Gas Lamps Powered",{"$f":"IFERROR(CONVERT(Annual_Avg_Biogas_Production,\"m^3\",\"l\")/('3-Digester Inputs'!C70*365), \" \")","v":0},null,null,"lamps/year"]
[]
["Additional Operational Notes on Bioreactor Toxicity:\nThe first table below lists additional information about your modeled waste stream's possible Anaerobic Inhibitors to consider while designing your project. The definitions list below shows design and process solutions to consider to address those toxic inhibitors or ensure the stay at a manageable level. For further reading and sources see Chen et al. 2007 and Arinbaatar et al. 2014. Light metal include sodium, potassium, magnesium, calcium and aluminum. Heavy Metals includes chromium, iron, cobalt, copper, zinc, cadmium and nickel. Organic Components includes Chlorophenols, Halogenated Alophatics, N-substituted aromatics, LCFAs, and Lignin. For important definitions see the green box below."]
[]
[]
[]
[]
["Which waste stream inhibitors may impact the digester?","Ammonia","Sulfides","Light Metals","Heavy Metals","Organic Components","Notes"]
[{"$f":"IF('3-Digester Inputs'!B17=0,\"-\",'3-Digester Inputs'!B17)","v":"-"},{"$f":"IF(COUNTIFS('10-Feedstock Toxicity Info'!$A$6:$A$113,'5-Annual Summary'!$A30,'10-Feedstock Toxicity Info'!B$6:B$113,\"*\")>0,\"Yes\",\"\")","v":""},{"$f":"IF(COUNTIFS('10-Feedstock Toxicity Info'!$A$6:$A$113,'5-Annual Summary'!$A30,'10-Feedstock Toxicity Info'!C$6:C$113,\"*\")>0,\"Yes\",\"\")","v":""},{"$f":"IF(COUNTIFS('10-Feedstock Toxicity Info'!$A$6:$A$113,'5-Annual Summary'!$A30,'10-Feedstock Toxicity Info'!T$6:T$113,\"*\")>0,\"Yes\",\"\")","v":""},{"$f":"IF(COUNTIFS('10-Feedstock Toxicity Info'!$A$6:$A$113,'5-Annual Summary'!$A30,'10-Feedstock Toxicity Info'!I$6:I$113,\"*\")>0,\"Yes\",\"\")","v":""},{"$f":"IF(COUNTIFS('10-Feedstock Toxicity Info'!$A$6:$A$113,'5-Annual Summary'!$A30,'10-Feedstock Toxicity Info'!J$6:J$113,\"*\")>0,\"Yes\",\"\")","v":""}]
[{"$f":"IF('3-Digester Inputs'!B18=0,\"-\",'3-Digester Inputs'!B18)","v":"-"},{"$f":"IF(COUNTIFS('10-Feedstock Toxicity Info'!$A$6:$A$113,'5-Annual Summary'!$A31,'10-Feedstock Toxicity Info'!B$6:B$113,\"*\")>0,\"Yes\",\"\")","v":""},{"$f":"IF(COUNTIFS('10-Feedstock Toxicity Info'!$A$6:$A$113,'5-Annual Summary'!$A31,'10-Feedstock Toxicity Info'!C$6:C$113,\"*\")>0,\"Yes\",\"\")","v":""},{"$f":"IF(COUNTIFS('10-Feedstock Toxicity Info'!$A$6:$A$113,'5-Annual Summary'!$A31,'10-Feedstock Toxicity Info'!T$6:T$113,\"*\")>0,\"Yes\",\"\")","v":""},{"$f":"IF(COUNTIFS('10-Feedstock Toxicity Info'!$A$6:$A$113,'5-Annual Summary'!$A31,'10-Feedstock Toxicity Info'!I$6:I$113,\"*\")>0,\"Yes\",\"\")","v":""},{"$f":"IF(COUNTIFS('10-Feedstock Toxicity Info'!$A$6:$A$113,'5-Annual Summary'!$A31,'10-Feedstock Toxicity Info'!J$6:J$113,\"*\")>0,\"Yes\",\"\")","v":""}]
[{"$f":"IF('3-Digester Inputs'!B19=0,\"-\",'3-Digester Inputs'!B19)","v":"-"},{"$f":"IF(COUNTIFS('10-Feedstock Toxicity Info'!$A$6:$A$113,'5-Annual Summary'!$A32,'10-Feedstock Toxicity Info'!B$6:B$113,\"*\")>0,\"Yes\",\"\")","v":""},{"$f":"IF(COUNTIFS('10-Feedstock Toxicity Info'!$A$6:$A$113,'5-Annual Summary'!$A32,'10-Feedstock Toxicity Info'!C$6:C$113,\"*\")>0,\"Yes\",\"\")","v":""},{"$f":"IF(COUNTIFS('10-Feedstock Toxicity Info'!$A$6:$A$113,'5-Annual Summary'!$A32,'10-Feedstock Toxicity Info'!T$6:T$113,\"*\")>0,\"Yes\",\"\")","v":""},{"$f":"IF(COUNTIFS('10-Feedstock Toxicity Info'!$A$6:$A$113,'5-Annual Summary'!$A32,'10-Feedstock Toxicity Info'!I$6:I$113,\"*\")>0,\"Yes\",\"\")","v":""},{"$f":"IF(COUNTIFS('10-Feedstock Toxicity Info'!$A$6:$A$113,'5-Annual Summary'!$A32,'10-Feedstock Toxicity Info'!J$6:J$113,\"*\")>0,\"Yes\",\"\")","v":""}]
[{"$f":"IF('3-Digester Inputs'!B20=0,\"-\",'3-Digester Inputs'!B20)","v":"-"},{"$f":"IF(COUNTIFS('10-Feedstock Toxicity Info'!$A$6:$A$113,'5-Annual Summary'!$A33,'10-Feedstock Toxicity Info'!B$6:B$113,\"*\")>0,\"Yes\",\"\")","v":""},{"$f":"IF(COUNTIFS('10-Feedstock Toxicity Info'!$A$6:$A$113,'5-Annual Summary'!$A33,'10-Feedstock Toxicity Info'!C$6:C$113,\"*\")>0,\"Yes\",\"\")","v":""},{"$f":"IF(COUNTIFS('10-Feedstock Toxicity Info'!$A$6:$A$113,'5-Annual Summary'!$A33,'10-Feedstock Toxicity Info'!T$6:T$113,\"*\")>0,\"Yes\",\"\")","v":""},{"$f":"IF(COUNTIFS('10-Feedstock Toxicity Info'!$A$6:$A$113,'5-Annual Summary'!$A33,'10-Feedstock Toxicity Info'!I$6:I$113,\"*\")>0,\"Yes\",\"\")","v":""},{"$f":"IF(COUNTIFS('10-Feedstock Toxicity Info'!$A$6:$A$113,'5-Annual Summary'!$A33,'10-Feedstock Toxicity Info'!J$6:J$113,\"*\")>0,\"Yes\",\"\")","v":""}]
[{"$f":"IF('3-Digester Inputs'!B21=0,\"-\",'3-Digester Inputs'!B21)","v":"-"},{"$f":"IF(COUNTIFS('10-Feedstock Toxicity Info'!$A$6:$A$113,'5-Annual Summary'!$A34,'10-Feedstock Toxicity Info'!B$6:B$113,\"*\")>0,\"Yes\",\"\")","v":""},{"$f":"IF(COUNTIFS('10-Feedstock Toxicity Info'!$A$6:$A$113,'5-Annual Summary'!$A34,'10-Feedstock Toxicity Info'!C$6:C$113,\"*\")>0,\"Yes\",\"\")","v":""},{"$f":"IF(COUNTIFS('10-Feedstock Toxicity Info'!$A$6:$A$113,'5-Annual Summary'!$A34,'10-Feedstock Toxicity Info'!T$6:T$113,\"*\")>0,\"Yes\",\"\")","v":""},{"$f":"IF(COUNTIFS('10-Feedstock Toxicity Info'!$A$6:$A$113,'5-Annual Summary'!$A34,'10-Feedstock Toxicity Info'!I$6:I$113,\"*\")>0,\"Yes\",\"\")","v":""},{"$f":"IF(COUNTIFS('10-Feedstock Toxicity Info'!$A$6:$A$113,'5-Annual Summary'!$A34,'10-Feedstock Toxicity Info'!J$6:J$113,\"*\")>0,\"Yes\",\"\")","v":""}]
[{"$f":"IF('3-Digester Inputs'!B22=0,\"-\",'3-Digester Inputs'!B22)","v":"-"},{"$f":"IF(COUNTIFS('10-Feedstock Toxicity Info'!$A$6:$A$113,'5-Annual Summary'!$A35,'10-Feedstock Toxicity Info'!B$6:B$113,\"*\")>0,\"Yes\",\"\")","v":""},{"$f":"IF(COUNTIFS('10-Feedstock Toxicity Info'!$A$6:$A$113,'5-Annual Summary'!$A35,'10-Feedstock Toxicity Info'!C$6:C$113,\"*\")>0,\"Yes\",\"\")","v":""},{"$f":"IF(COUNTIFS('10-Feedstock Toxicity Info'!$A$6:$A$113,'5-Annual Summary'!$A35,'10-Feedstock Toxicity Info'!T$6:T$113,\"*\")>0,\"Yes\",\"\")","v":""},{"$f":"IF(COUNTIFS('10-Feedstock Toxicity Info'!$A$6:$A$113,'5-Annual Summary'!$A35,'10-Feedstock Toxicity Info'!I$6:I$113,\"*\")>0,\"Yes\",\"\")","v":""},{"$f":"IF(COUNTIFS('10-Feedstock Toxicity Info'!$A$6:$A$113,'5-Annual Summary'!$A35,'10-Feedstock Toxicity Info'!J$6:J$113,\"*\")>0,\"Yes\",\"\")","v":""}]
[{"$f":"IF('3-Digester Inputs'!B23=0,\"-\",'3-Digester Inputs'!B23)","v":"-"},{"$f":"IF(COUNTIFS('10-Feedstock Toxicity Info'!$A$6:$A$113,'5-Annual Summary'!$A36,'10-Feedstock Toxicity Info'!B$6:B$113,\"*\")>0,\"Yes\",\"\")","v":""},{"$f":"IF(COUNTIFS('10-Feedstock Toxicity Info'!$A$6:$A$113,'5-Annual Summary'!$A36,'10-Feedstock Toxicity Info'!C$6:C$113,\"*\")>0,\"Yes\",\"\")","v":""},{"$f":"IF(COUNTIFS('10-Feedstock Toxicity Info'!$A$6:$A$113,'5-Annual Summary'!$A36,'10-Feedstock Toxicity Info'!T$6:T$113,\"*\")>0,\"Yes\",\"\")","v":""},{"$f":"IF(COUNTIFS('10-Feedstock Toxicity Info'!$A$6:$A$113,'5-Annual Summary'!$A36,'10-Feedstock Toxicity Info'!I$6:I$113,\"*\")>0,\"Yes\",\"\")","v":""},{"$f":"IF(COUNTIFS('10-Feedstock Toxicity Info'!$A$6:$A$113,'5-Annual Summary'!$A36,'10-Feedstock Toxicity Info'!J$6:J$113,\"*\")>0,\"Yes\",\"\")","v":""}]
[{"$f":"IF('3-Digester Inputs'!B24=0,\"-\",'3-Digester Inputs'!B24)","v":"-"},{"$f":"IF(COUNTIFS('10-Feedstock Toxicity Info'!$A$6:$A$113,'5-Annual Summary'!$A37,'10-Feedstock Toxicity Info'!B$6:B$113,\"*\")>0,\"Yes\",\"\")","v":""},{"$f":"IF(COUNTIFS('10-Feedstock Toxicity Info'!$A$6:$A$113,'5-Annual Summary'!$A37,'10-Feedstock Toxicity Info'!C$6:C$113,\"*\")>0,\"Yes\",\"\")","v":""},{"$f":"IF(COUNTIFS('10-Feedstock Toxicity Info'!$A$6:$A$113,'5-Annual Summary'!$A37,'10-Feedstock Toxicity Info'!T$6:T$113,\"*\")>0,\"Yes\",\"\")","v":""},{"$f":"IF(COUNTIFS('10-Feedstock Toxicity Info'!$A$6:$A$113,'5-Annual Summary'!$A37,'10-Feedstock Toxicity Info'!I$6:I$113,\"*\")>0,\"Yes\",\"\")","v":""},{"$f":"IF(COUNTIFS('10-Feedstock Toxicity Info'!$A$6:$A$113,'5-Annual Summary'!$A37,'10-Feedstock Toxicity Info'!J$6:J$113,\"*\")>0,\"Yes\",\"\")","v":""}]
[{"$f":"IF('3-Digester Inputs'!B25=0,\"-\",'3-Digester Inputs'!B25)","v":"-"},{"$f":"IF(COUNTIFS('10-Feedstock Toxicity Info'!$A$6:$A$113,'5-Annual Summary'!$A38,'10-Feedstock Toxicity Info'!B$6:B$113,\"*\")>0,\"Yes\",\"\")","v":""},{"$f":"IF(COUNTIFS('10-Feedstock Toxicity Info'!$A$6:$A$113,'5-Annual Summary'!$A38,'10-Feedstock Toxicity Info'!C$6:C$113,\"*\")>0,\"Yes\",\"\")","v":""},{"$f":"IF(COUNTIFS('10-Feedstock Toxicity Info'!$A$6:$A$113,'5-Annual Summary'!$A38,'10-Feedstock Toxicity Info'!T$6:T$113,\"*\")>0,\"Yes\",\"\")","v":""},{"$f":"IF(COUNTIFS('10-Feedstock Toxicity Info'!$A$6:$A$113,'5-Annual Summary'!$A38,'10-Feedstock Toxicity Info'!I$6:I$113,\"*\")>0,\"Yes\",\"\")","v":""},{"$f":"IF(COUNTIFS('10-Feedstock Toxicity Info'!$A$6:$A$113,'5-Annual Summary'!$A38,'10-Feedstock Toxicity Info'!J$6:J$113,\"*\")>0,\"Yes\",\"\")","v":""}]
[{"$f":"IF('3-Digester Inputs'!B26=0,\"-\",'3-Digester Inputs'!B26)","v":"-"},{"$f":"IF(COUNTIFS('10-Feedstock Toxicity Info'!$A$6:$A$113,'5-Annual Summary'!$A39,'10-Feedstock Toxicity Info'!B$6:B$113,\"*\")>0,\"Yes\",\"\")","v":""},{"$f":"IF(COUNTIFS('10-Feedstock Toxicity Info'!$A$6:$A$113,'5-Annual Summary'!$A39,'10-Feedstock Toxicity Info'!C$6:C$113,\"*\")>0,\"Yes\",\"\")","v":""},{"$f":"IF(COUNTIFS('10-Feedstock Toxicity Info'!$A$6:$A$113,'5-Annual Summary'!$A39,'10-Feedstock Toxicity Info'!T$6:T$113,\"*\")>0,\"Yes\",\"\")","v":""},{"$f":"IF(COUNTIFS('10-Feedstock Toxicity Info'!$A$6:$A$113,'5-Annual Summary'!$A39,'10-Feedstock Toxicity Info'!I$6:I$113,\"*\")>0,\"Yes\",\"\")","v":""},{"$f":"IF(COUNTIFS('10-Feedstock Toxicity Info'!$A$6:$A$113,'5-Annual Summary'!$A39,'10-Feedstock Toxicity Info'!J$6:J$113,\"*\")>0,\"Yes\",\"\")","v":""}]
[{"$f":"IF('3-Digester Inputs'!B27=0,\"-\",'3-Digester Inputs'!B27)","v":"-"},{"$f":"IF(COUNTIFS('10-Feedstock Toxicity Info'!$A$6:$A$113,'5-Annual Summary'!$A40,'10-Feedstock Toxicity Info'!B$6:B$113,\"*\")>0,\"Yes\",\"\")","v":""},{"$f":"IF(COUNTIFS('10-Feedstock Toxicity Info'!$A$6:$A$113,'5-Annual Summary'!$A40,'10-Feedstock Toxicity Info'!C$6:C$113,\"*\")>0,\"Yes\",\"\")","v":""},{"$f":"IF(COUNTIFS('10-Feedstock Toxicity Info'!$A$6:$A$113,'5-Annual Summary'!$A40,'10-Feedstock Toxicity Info'!T$6:T$113,\"*\")>0,\"Yes\",\"\")","v":""},{"$f":"IF(COUNTIFS('10-Feedstock Toxicity Info'!$A$6:$A$113,'5-Annual Summary'!$A40,'10-Feedstock Toxicity Info'!I$6:I$113,\"*\")>0,\"Yes\",\"\")","v":""},{"$f":"IF(COUNTIFS('10-Feedstock Toxicity Info'!$A$6:$A$113,'5-Annual Summary'!$A40,'10-Feedstock Toxicity Info'!J$6:J$113,\"*\")>0,\"Yes\",\"\")","v":""}]
[{"$f":"IF('3-Digester Inputs'!B28=0,\"-\",'3-Digester Inputs'!B28)","v":"-"},{"$f":"IF(COUNTIFS('10-Feedstock Toxicity Info'!$A$6:$A$113,'5-Annual Summary'!$A41,'10-Feedstock Toxicity Info'!B$6:B$113,\"*\")>0,\"Yes\",\"\")","v":""},{"$f":"IF(COUNTIFS('10-Feedstock Toxicity Info'!$A$6:$A$113,'5-Annual Summary'!$A41,'10-Feedstock Toxicity Info'!C$6:C$113,\"*\")>0,\"Yes\",\"\")","v":""},{"$f":"IF(COUNTIFS('10-Feedstock Toxicity Info'!$A$6:$A$113,'5-Annual Summary'!$A41,'10-Feedstock Toxicity Info'!T$6:T$113,\"*\")>0,\"Yes\",\"\")","v":""},{"$f":"IF(COUNTIFS('10-Feedstock Toxicity Info'!$A$6:$A$113,'5-Annual Summary'!$A41,'10-Feedstock Toxicity Info'!I$6:I$113,\"*\")>0,\"Yes\",\"\")","v":""},{"$f":"IF(COUNTIFS('10-Feedstock Toxicity Info'!$A$6:$A$113,'5-Annual Summary'!$A41,'10-Feedstock Toxicity Info'!J$6:J$113,\"*\")>0,\"Yes\",\"\")","v":""}]
[{"$f":"IF('3-Digester Inputs'!B29=0,\"-\",'3-Digester Inputs'!B29)","v":"-"},{"$f":"IF(COUNTIFS('10-Feedstock Toxicity Info'!$A$6:$A$113,'5-Annual Summary'!$A42,'10-Feedstock Toxicity Info'!B$6:B$113,\"*\")>0,\"Yes\",\"\")","v":""},{"$f":"IF(COUNTIFS('10-Feedstock Toxicity Info'!$A$6:$A$113,'5-Annual Summary'!$A42,'10-Feedstock Toxicity Info'!C$6:C$113,\"*\")>0,\"Yes\",\"\")","v":""},{"$f":"IF(COUNTIFS('10-Feedstock Toxicity Info'!$A$6:$A$113,'5-Annual Summary'!$A42,'10-Feedstock Toxicity Info'!T$6:T$113,\"*\")>0,\"Yes\",\"\")","v":""},{"$f":"IF(COUNTIFS('10-Feedstock Toxicity Info'!$A$6:$A$113,'5-Annual Summary'!$A42,'10-Feedstock Toxicity Info'!I$6:I$113,\"*\")>0,\"Yes\",\"\")","v":""},{"$f":"IF(COUNTIFS('10-Feedstock Toxicity Info'!$A$6:$A$113,'5-Annual Summary'!$A42,'10-Feedstock Toxicity Info'!J$6:J$113,\"*\")>0,\"Yes\",\"\")","v":""}]
[{"$f":"IF('3-Digester Inputs'!B30=0,\"-\",'3-Digester Inputs'!B30)","v":"-"},{"$f":"IF(COUNTIFS('10-Feedstock Toxicity Info'!$A$6:$A$113,'5-Annual Summary'!$A43,'10-Feedstock Toxicity Info'!B$6:B$113,\"*\")>0,\"Yes\",\"\")","v":""},{"$f":"IF(COUNTIFS('10-Feedstock Toxicity Info'!$A$6:$A$113,'5-Annual Summary'!$A43,'10-Feedstock Toxicity Info'!C$6:C$113,\"*\")>0,\"Yes\",\"\")","v":""},{"$f":"IF(COUNTIFS('10-Feedstock Toxicity Info'!$A$6:$A$113,'5-Annual Summary'!$A43,'10-Feedstock Toxicity Info'!T$6:T$113,\"*\")>0,\"Yes\",\"\")","v":""},{"$f":"IF(COUNTIFS('10-Feedstock Toxicity Info'!$A$6:$A$113,'5-Annual Summary'!$A43,'10-Feedstock Toxicity Info'!I$6:I$113,\"*\")>0,\"Yes\",\"\")","v":""},{"$f":"IF(COUNTIFS('10-Feedstock Toxicity Info'!$A$6:$A$113,'5-Annual Summary'!$A43,'10-Feedstock Toxicity Info'!J$6:J$113,\"*\")>0,\"Yes\",\"\")","v":""}]
[{"$f":"IF('3-Digester Inputs'!B31=0,\"-\",'3-Digester Inputs'!B31)","v":"-"},{"$f":"IF(COUNTIFS('10-Feedstock Toxicity Info'!$A$6:$A$113,'5-Annual Summary'!$A44,'10-Feedstock Toxicity Info'!B$6:B$113,\"*\")>0,\"Yes\",\"\")","v":""},{"$f":"IF(COUNTIFS('10-Feedstock Toxicity Info'!$A$6:$A$113,'5-Annual Summary'!$A44,'10-Feedstock Toxicity Info'!C$6:C$113,\"*\")>0,\"Yes\",\"\")","v":""},{"$f":"IF(COUNTIFS('10-Feedstock Toxicity Info'!$A$6:$A$113,'5-Annual Summary'!$A44,'10-Feedstock Toxicity Info'!T$6:T$113,\"*\")>0,\"Yes\",\"\")","v":""},{"$f":"IF(COUNTIFS('10-Feedstock Toxicity Info'!$A$6:$A$113,'5-Annual Summary'!$A44,'10-Feedstock Toxicity Info'!I$6:I$113,\"*\")>0,\"Yes\",\"\")","v":""},{"$f":"IF(COUNTIFS('10-Feedstock Toxicity Info'!$A$6:$A$113,'5-Annual Summary'!$A44,'10-Feedstock Toxicity Info'!J$6:J$113,\"*\")>0,\"Yes\",\"\")","v":""}]
["Pretreatment or Design Options to Address Inhibitors"]

{"sheet":"6-Biogas Production","index":9,"n_rows":79,"n_cols":27,"rows_kept":79,"cut":false,"hidden":false,"merged":[[5,0,5,2],[35,0,35,5],[55,21,55,26],[9,0,9,5],[55,14,55,19],[6,2,7,2],[55,0,55,5],[55,7,55,12]]}
["Biogas Production Summary Information"]
[]
[]
[]
[]
["The estimated low and high production values use calibration factors from actual observations that represent the 25th and 75th percentile values of the ratio between measured and modeled data. These values are used to adjust the maximum potential biogas generation values to estimate the likely biogas generation potential values. The total daily biogas and methane production estimates below are an average of the low and high production values."]
["Total Biogas Production ",{"$f":"F53","v":0},"m3/day"]
["Total Methane Production",{"$f":"D53","v":0}]
[]
[{"$f":"\"Biogas Production per Retention Period by Organic Waste (\" & C7&\")\"","v":"Biogas Production per Retention Period by Organic Waste (m3/day)"}]
[]
[]
[]
[]
[]
[]
[]
[]
[]
[]
[]
[]
[]
[]
[]
[]
[]
[]
[]
[]
[]
[]
[]
[]
[]
[{"$f":"\"Average Biogas Production per Retention Period by Organic Waste (\" & C7&\")\"","v":"Average Biogas Production per Retention Period by Organic Waste (m3/day)"}]
["Feedstock Type","Volatile Solids (kg / day)","Methane Yields (m3/kg of VS)",{"$f":"\"Methane Production (\"&C7&\")\"","v":"Methane Production (m3/day)"},{"$f":"\"Other Gases (\"&C7&\")\"","v":"Other Gases (m3/day)"},{"$f":"\"Total Biogas Production (\"&C7&\")\"","v":"Total Biogas Production (m3/day)"}]
[{"$f":"IF('3-Digester Inputs'!B17=0,\"\",'3-Digester Inputs'!B17)","v":""},{"$f":"'3-Digester Inputs'!P17","v":""},{"$f":"IFERROR(VLOOKUP(A38,'9-Feedstock Characteristics'!$A$10:$R$117,17,FALSE)/1000,\"\")","v":""},{"$f":"IFERROR(AVERAGE(D58,K58)*VLOOKUP($C$7,'23-Look up values'!$A$15:$B$16,2,FALSE),\"\")","v":""},{"$f":"IFERROR(F38-D38,\"\")","v":""},{"$f":"IFERROR(D38/Methane_CH4_Percent,\"\")","v":""}]
[{"$f":"IF('3-Digester Inputs'!B18=0,\"\",'3-Digester Inputs'!B18)","v":""},{"$f":"'3-Digester Inputs'!P18","v":""},{"$f":"IFERROR(VLOOKUP(A39,'9-Feedstock Characteristics'!$A$10:$R$117,17,FALSE)/1000,\"\")","v":""},{"$f":"IFERROR(AVERAGE(D59,K59)*VLOOKUP($C$7,'23-Look up values'!$A$15:$B$16,2,FALSE),\"\")","v":""},{"$f":"IFERROR(F39-D39,\"\")","v":""},{"$f":"IFERROR(D39/Methane_CH4_Percent,\"\")","v":""}]
[{"$f":"IF('3-Digester Inputs'!B19=0,\"\",'3-Digester Inputs'!B19)","v":""},{"$f":"'3-Digester Inputs'!P19","v":""},{"$f":"IFERROR(VLOOKUP(A40,'9-Feedstock Characteristics'!$A$10:$R$117,17,FALSE)/1000,\"\")","v":""},{"$f":"IFERROR(AVERAGE(D60,K60)*VLOOKUP($C$7,'23-Look up values'!$A$15:$B$16,2,FALSE),\"\")","v":""},{"$f":"IFERROR(F40-D40,\"\")","v":""},{"$f":"IFERROR(D40/Methane_CH4_Percent,\"\")","v":""}]
[{"$f":"IF('3-Digester Inputs'!B20=0,\"\",'3-Digester Inputs'!B20)","v":""},{"$f":"'3-Digester Inputs'!P20","v":""},{"$f":"IFERROR(VLOOKUP(A41,'9-Feedstock Characteristics'!$A$10:$R$117,17,FALSE)/1000,\"\")","v":""},{"$f":"IFERROR(AVERAGE(D61,K61)*VLOOKUP($C$7,'23-Look up values'!$A$15:$B$16,2,FALSE),\"\")","v":""},"",""]
[{"$f":"IF('3-Digester Inputs'!B21=0,\"\",'3-Digester Inputs'!B21)","v":""},{"$f":"'3-Digester Inputs'!P21","v":""},{"$f":"IFERROR(VLOOKUP(A42,'9-Feedstock Characteristics'!$A$10:$R$117,17,FALSE)/1000,\"\")","v":""},{"$f":"IFERROR(AVERAGE(D62,K62)*VLOOKUP($C$7,'23-Look up values'!$A$15:$B$16,2,FALSE),\"\")","v":""},"",""]
[{"$f":"IF('3-Digester Inputs'!B22=0,\"\",'3-Digester Inputs'!B22)","v":""},{"$f":"'3-Digester Inputs'!P22","v":""},{"$f":"IFERROR(VLOOKUP(A43,'9-Feedstock Characteristics'!$A$10:$R$117,17,FALSE)/1000,\"\")","v":""},{"$f":"IFERROR(AVERAGE(D63,K63)*VLOOKUP($C$7,'23-Look up values'!$A$15:$B$16,2,FALSE),\"\")","v":""},"",""]
[{"$f":"IF('3-Digester Inputs'!B23=0,\"\",'3-Digester Inputs'!B23)","v":""},{"$f":"'3-Digester Inputs'!P23","v":""},{"$f":"IFERROR(VLOOKUP(A44,'9-Feedstock Characteristics'!$A$10:$R$117,17,FALSE)/1000,\"\")","v":""},{"$f":"IFERROR(AVERAGE(D64,K64)*VLOOKUP($C$7,'23-Look up values'!$A$15:$B$16,2,FALSE),\"\")","v":""},"",""]
[{"$f":"IF('3-Digester Inputs'!B24=0,\"\",'3-Digester Inputs'!B24)","v":""},{"$f":"'3-Digester Inputs'!P24","v":""},{"$f":"IFERROR(VLOOKUP(A45,'9-Feedstock Characteristics'!$A$10:$R$117,17,FALSE)/1000,\"\")","v":""},{"$f":"IFERROR(AVERAGE(D65,K65)*VLOOKUP($C$7,'23-Look up values'!$A$15:$B$16,2,FALSE),\"\")","v":""},"",""]
[{"$f":"IF('3-Digester Inputs'!B25=0,\"\",'3-Digester Inputs'!B25)","v":""},{"$f":"'3-Digester Inputs'!P25","v":""},{"$f":"IFERROR(VLOOKUP(A46,'9-Feedstock Characteristics'!$A$10:$R$117,17,FALSE)/1000,\"\")","v":""},{"$f":"IFERROR(AVERAGE(D66,K66)*VLOOKUP($C$7,'23-Look up values'!$A$15:$B$16,2,FALSE),\"\")","v":""},"",""]
[{"$f":"IF('3-Digester Inputs'!B26=0,\"\",'3-Digester Inputs'!B26)","v":""},{"$f":"'3-Digester Inputs'!P26","v":""},{"$f":"IFERROR(VLOOKUP(A47,'9-Feedstock Characteristics'!$A$10:$R$117,17,FALSE)/1000,\"\")","v":""},{"$f":"IFERROR(AVERAGE(D67,K67)*VLOOKUP($C$7,'23-Look up values'!$A$15:$B$16,2,FALSE),\"\")","v":""},"",""]
[{"$f":"IF('3-Digester Inputs'!B27=0,\"\",'3-Digester Inputs'!B27)","v":""},{"$f":"'3-Digester Inputs'!P27","v":""},{"$f":"IFERROR(VLOOKUP(A48,'9-Feedstock Characteristics'!$A$10:$R$117,17,FALSE)/1000,\"\")","v":""},{"$f":"IFERROR(AVERAGE(D68,K68)*VLOOKUP($C$7,'23-Look up values'!$A$15:$B$16,2,FALSE),\"\")","v":""},"",""]
[{"$f":"IF('3-Digester Inputs'!B28=0,\"\",'3-Digester Inputs'!B28)","v":""},{"$f":"'3-Digester Inputs'!P28","v":""},{"$f":"IFERROR(VLOOKUP(A49,'9-Feedstock Characteristics'!$A$10:$R$117,17,FALSE)/1000,\"\")","v":""},{"$f":"IFERROR(AVERAGE(D69,K69)*VLOOKUP($C$7,'23-Look up values'!$A$15:$B$16,2,FALSE),\"\")","v":""},"",""]
[{"$f":"IF('3-Digester Inputs'!B29=0,\"\",'3-Digester Inputs'!B29)","v":""},{"$f":"'3-Digester Inputs'!P29","v":""},{"$f":"IFERROR(VLOOKUP(A50,'9-Feedstock Characteristics'!$A$10:$R$117,17,FALSE)/1000,\"\")","v":""},{"$f":"IFERROR(AVERAGE(D70,K70)*VLOOKUP($C$7,'23-Look up values'!$A$15:$B$16,2,FALSE),\"\")","v":""},"",""]
[{"$f":"IF('3-Digester Inputs'!B30=0,\"\",'3-Digester Inputs'!B30)","v":""},{"$f":"'3-Digester Inputs'!P30","v":""},{"$f":"IFERROR(VLOOKUP(A51,'9-Feedstock Characteristics'!$A$10:$R$117,17,FALSE)/1000,\"\")","v":""},{"$f":"IFERROR(AVERAGE(D71,K71)*VLOOKUP($C$7,'23-Look up values'!$A$15:$B$16,2,FALSE),\"\")","v":""},"",""]
[{"$f":"IF('3-Digester Inputs'!B31=0,\"\",'3-Digester Inputs'!B31)","v":""},{"$f":"'3-Digester Inputs'!P31","v":""},{"$f":"IFERROR(VLOOKUP(A52,'9-Feedstock Characteristics'!$A$10:$R$117,17,FALSE)/1000,\"\")","v":""},{"$f":"IFERROR(AVERAGE(D72,K72)*VLOOKUP($C$7,'23-Look up values'!$A$15:$B$16,2,FALSE),\"\")","v":""},"",""]
["Total",{"$f":"SUM(B38:B52)","v":0},{"$f":"SUMPRODUCT(B38:B52,C38:C52)/SUM(B38:B52)","v":{"$error":"#DIV/0!"}},{"$f":"SUM(D38:D52)","v":0},{"$f":"IFERROR(F53-D53,\"\")","v":0},{"$f":"SUM(F38:F52)","v":0}]
[]
[]
["Biogas Production Per Retention Period (m3/day) - Low Production ",null,null,null,null,null,null,"Biogas Production Per Retention Period (m3/day)- High Production ",null,null,null,null,null,null,"Biogas Production Per Retention Period (m3/day) - Theoretical Maximum Production",null,null,null,null,null,null,"Biogas Production Per Retention Period (m3/day) - Average of Low and High Production"]
["Feedstock Type","Volatile Solids (kg/day)","Methane Yields (m3/kg of VS)","Methane Production (m3/day)","Other Gases (m3/day)","Total Biogas Production (m3/day)",null,"Feedstock Type","Volatile Solids (kg/day)","Methane Yields (m3/kg of VS)","Methane Production (m3/day)","Other Gases (m3/day)","Total Biogas Production (m3/day)",null,"Feedstock Type","Volatile Solids (kg/day)","Methane Yields (m3/kg of VS)","Methane Production (m3/day)","Other Gases (m3/day)","Total Biogas Production (m3/day)",null,"Feedstock Type","Volatile Solids (kg/day)","Methane Yields (m3/kg of VS)","Methane Production (m3/day)","Other Gases (m3/day)","Total Biogas Production (m3/day)"]
[{"$f":"IF('3-Digester Inputs'!B17=0,\"\",'3-Digester Inputs'!B17)","v":""},{"$f":"'3-Digester Inputs'!P17","v":""},{"$f":"IFERROR(VLOOKUP(A58,'9-Feedstock Characteristics'!$A$10:$R$117,17,FALSE)/1000,\"\")","v":""},{"$f":"IFERROR(C58*B58*VLOOKUP(ReactorType&\"_\"&ReactorTemp,'11-Calibration Factors'!$A$4:$C$9,2,FALSE),\"\")","v":""},{"$f":"IFERROR(F58-D58,\"\")","v":""},{"$f":"IFERROR(D58/Methane_CH4_Percent,\"\")","v":""},null,{"$f":"IF('3-Digester Inputs'!B17=0,\"\",'3-Digester Inputs'!B17)","v":""},{"$f":"'3-Digester Inputs'!P17","v":""},{"$f":"IFERROR(VLOOKUP(H58,'9-Feedstock Characteristics'!$A$10:$R$117,17,FALSE)/1000,\"\")","v":""},{"$f":"IFERROR(J58*I58*VLOOKUP(ReactorType&\"_\"&ReactorTemp,'11-Calibration Factors'!$A$4:$C$9,3,FALSE),\"\")","v":""},{"$f":"IFERROR(M58-K58,\"\")","v":""},{"$f":"IFERROR(K58/Methane_CH4_Percent,\"\")","v":""},null,{"$f":"IF('3-Digester Inputs'!B17=0,\"\",'3-Digester Inputs'!B17)","v":""},{"$f":"'3-Digester Inputs'!P17","v":""},{"$f":"IFERROR(VLOOKUP(O58,'9-Feedstock Characteristics'!$A$10:$R$117,17,FALSE)/1000,\"\")","v":""},{"$f":"IFERROR(Q58*P58,\"\")","v":""},{"$f":"IFERROR(T58-R58,\"\")","v":""},{"$f":"IFERROR(R58/Methane_CH4_Percent,\"\")","v":""},null,{"$f":"IF('3-Digester Inputs'!B17=0,\"\",'3-Digester Inputs'!B17)","v":""},{"$f":"'3-Digester Inputs'!P17","v":""},{"$f":"IFERROR(VLOOKUP(V58,'9-Feedstock Characteristics'!$A$10:$R$117,17,FALSE)/1000,\"\")","v":""},{"$f":"IFERROR(AVERAGE(D58,K58),\" \")","v":" "},{"$f":"IFERROR(AA58-Y58,\"\")","v":""},{"$f":"IFERROR(Y58/Methane_CH4_Percent,\"\")","v":""}]
[{"$f":"IF('3-Digester Inputs'!B18=0,\"\",'3-Digester Inputs'!B18)","v":""},{"$f":"'3-Digester Inputs'!P18","v":""},{"$f":"IFERROR(VLOOKUP(A59,'9-Feedstock Characteristics'!$A$10:$R$117,17,FALSE)/1000,\"\")","v":""},{"$f":"IFERROR(C59*B59*VLOOKUP(ReactorType&\"_\"&ReactorTemp,'11-Calibration Factors'!$A$4:$C$9,2,FALSE),\"\")","v":""},{"$f":"IFERROR(F59-D59,\"\")","v":""},{"$f":"IFERROR(D59/Methane_CH4_Percent,\"\")","v":""},null,{"$f":"IF('3-Digester Inputs'!B18=0,\"\",'3-Digester Inputs'!B18)","v":""},{"$f":"'3-Digester Inputs'!P18","v":""},{"$f":"IFERROR(VLOOKUP(H59,'9-Feedstock Characteristics'!$A$10:$R$117,17,FALSE)/1000,\"\")","v":""},{"$f":"IFERROR(J59*I59*VLOOKUP(ReactorType&\"_\"&ReactorTemp,'11-Calibration Factors'!$A$4:$C$9,3,FALSE),\"\")","v":""},{"$f":"IFERROR(M59-K59,\"\")","v":""},{"$f":"IFERROR(K59/Methane_CH4_Percent,\"\")","v":""},null,{"$f":"IF('3-Digester Inputs'!B18=0,\"\",'3-Digester Inputs'!B18)","v":""},{"$f":"'3-Digester Inputs'!P18","v":""},{"$f":"IFERROR(VLOOKUP(O59,'9-Feedstock Characteristics'!$A$10:$R$117,17,FALSE)/1000,\"\")","v":""},{"$f":"IFERROR(Q59*P59,\"\")","v":""},{"$f":"IFERROR(T59-R59,\"\")","v":""},{"$f":"IFERROR(R59/Methane_CH4_Percent,\"\")","v":""},null,{"$f":"IF('3-Digester Inputs'!B18=0,\"\",'3-Digester Inputs'!B18)","v":""},{"$f":"'3-Digester Inputs'!P18","v":""},{"$f":"IFERROR(VLOOKUP(V59,'9-Feedstock Characteristics'!$A$10:$R$117,17,FALSE)/1000,\"\")","v":""},{"$f":"IFERROR(AVERAGE(D59,K59),\" \")","v":" "},{"$f":"IFERROR(AA59-Y59,\"\")","v":""},""]
[{"$f":"IF('3-Digester Inputs'!B19=0,\"\",'3-Digester Inputs'!B19)","v":""},{"$f":"'3-Digester Inputs'!P19","v":""},{"$f":"IFERROR(VLOOKUP(A60,'9-Feedstock Characteristics'!$A$10:$R$117,17,FALSE)/1000,\"\")","v":""},{"$f":"IFERROR(C60*B60*VLOOKUP(ReactorType&\"_\"&ReactorTemp,'11-Calibration Factors'!$A$4:$C$9,2,FALSE),\"\")","v":""},{"$f":"IFERROR(F60-D60,\"\")","v":""},{"$f":"IFERROR(D60/Methane_CH4_Percent,\"\")","v":""},null,{"$f":"IF('3-Digester Inputs'!B19=0,\"\",'3-Digester Inputs'!B19)","v":""},{"$f":"'3-Digester Inputs'!P19","v":""},{"$f":"IFERROR(VLOOKUP(H60,'9-Feedstock Characteristics'!$A$10:$R$117,17,FALSE)/1000,\"\")","v":""},{"$f":"IFERROR(J60*I60*VLOOKUP(ReactorType&\"_\"&ReactorTemp,'11-Calibration Factors'!$A$4:$C$9,3,FALSE),\"\")","v":""},{"$f":"IFERROR(M60-K60,\"\")","v":""},{"$f":"IFERROR(K60/Methane_CH4_Percent,\"\")","v":""},null,{"$f":"IF('3-Digester Inputs'!B19=0,\"\",'3-Digester Inputs'!B19)","v":""},{"$f":"'3-Digester Inputs'!P19","v":""},{"$f":"IFERROR(VLOOKUP(O60,'9-Feedstock Characteristics'!$A$10:$R$117,17,FALSE)/1000,\"\")","v":""},{"$f":"IFERROR(Q60*P60,\"\")","v":""},{"$f":"IFERROR(T60-R60,\"\")","v":""},{"$f":"IFERROR(R60/Methane_CH4_Percent,\"\")","v":""},null,{"$f":"IF('3-Digester Inputs'!B19=0,\"\",'3-Digester Inputs'!B19)","v":""},{"$f":"'3-Digester Inputs'!P19","v":""},{"$f":"IFERROR(VLOOKUP(V60,'9-Feedstock Characteristics'!$A$10:$R$117,17,FALSE)/1000,\"\")","v":""},{"$f":"IFERROR(AVERAGE(D60,K60),\" \")","v":" "},"",""]
[{"$f":"IF('3-Digester Inputs'!B20=0,\"\",'3-Digester Inputs'!B20)","v":""},{"$f":"'3-Digester Inputs'!P20","v":""},{"$f":"IFERROR(VLOOKUP(A61,'9-Feedstock Characteristics'!$A$10:$R$117,17,FALSE)/1000,\"\")","v":""},{"$f":"IFERROR(C61*B61*VLOOKUP(ReactorType&\"_\"&ReactorTemp,'11-Calibration Factors'!$A$4:$C$9,2,FALSE),\"\")","v":""},"","",null,{"$f":"IF('3-Digester Inputs'!B20=0,\"\",'3-Digester Inputs'!B20)","v":""},{"$f":"'3-Digester Inputs'!P20","v":""},{"$f":"IFERROR(VLOOKUP(H61,'9-Feedstock Characteristics'!$A$10:$R$117,17,FALSE)/1000,\"\")","v":""},{"$f":"IFERROR(J61*I61*VLOOKUP(ReactorType&\"_\"&ReactorTemp,'11-Calibration Factors'!$A$4:$C$9,3,FALSE),\"\")","v":""},"","",null,{"$f":"IF('3-Digester Inputs'!B20=0,\"\",'3-Digester Inputs'!B20)","v":""},{"$f":"'3-Digester Inputs'!P20","v":""},{"$f":"IFERROR(VLOOKUP(O61,'9-Feedstock Characteristics'!$A$10:$R$117,17,FALSE)/1000,\"\")","v":""},"","","",null,{"$f":"IF('3-Digester Inputs'!B20=0,\"\",'3-Digester Inputs'!B20)","v":""},{"$f":"'3-Digester Inputs'!P20","v":""},{"$f":"IFERROR(VLOOKUP(V61,'9-Feedstock Characteristics'!$A$10:$R$117,17,FALSE)/1000,\"\")","v":""}," ","",""]
[{"$f":"IF('3-Digester Inputs'!B21=0,\"\",'3-Digester Inputs'!B21)","v":""},{"$f":"'3-Digester Inputs'!P21","v":""},{"$f":"IFERROR(VLOOKUP(A62,'9-Feedstock Characteristics'!$A$10:$R$117,17,FALSE)/1000,\"\")","v":""},{"$f":"IFERROR(C62*B62*VLOOKUP(ReactorType&\"_\"&ReactorTemp,'11-Calibration Factors'!$A$4:$C$9,2,FALSE),\"\")","v":""},"","",null,{"$f":"IF('3-Digester Inputs'!B21=0,\"\",'3-Digester Inputs'!B21)","v":""},{"$f":"'3-Digester Inputs'!P21","v":""},{"$f":"IFERROR(VLOOKUP(H62,'9-Feedstock Characteristics'!$A$10:$R$117,17,FALSE)/1000,\"\")","v":""},{"$f":"IFERROR(J62*I62*VLOOKUP(ReactorType&\"_\"&ReactorTemp,'11-Calibration Factors'!$A$4:$C$9,3,FALSE),\"\")","v":""},"","",null,{"$f":"IF('3-Digester Inputs'!B21=0,\"\",'3-Digester Inputs'!B21)","v":""},{"$f":"'3-Digester Inputs'!P21","v":""},{"$f":"IFERROR(VLOOKUP(O62,'9-Feedstock Characteristics'!$A$10:$R$117,17,FALSE)/1000,\"\")","v":""},"","","",null,{"$f":"IF('3-Digester Inputs'!B21=0,\"\",'3-Digester Inputs'!B21)","v":""},{"$f":"'3-Digester Inputs'!P21","v":""},{"$f":"IFERROR(VLOOKUP(V62,'9-Feedstock Characteristics'!$A$10:$R$117,17,FALSE)/1000,\"\")","v":""}," ","",""]
[{"$f":"IF('3-Digester Inputs'!B22=0,\"\",'3-Digester Inputs'!B22)","v":""},{"$f":"'3-Digester Inputs'!P22","v":""},{"$f":"IFERROR(VLOOKUP(A63,'9-Feedstock Characteristics'!$A$10:$R$117,17,FALSE)/1000,\"\")","v":""},{"$f":"IFERROR(C63*B63*VLOOKUP(ReactorType&\"_\"&ReactorTemp,'11-Calibration Factors'!$A$4:$C$9,2,FALSE),\"\")","v":""},"","",null,{"$f":"IF('3-Digester Inputs'!B22=0,\"\",'3-Digester Inputs'!B22)","v":""},{"$f":"'3-Digester Inputs'!P22","v":""},{"$f":"IFERROR(VLOOKUP(H63,'9-Feedstock Characteristics'!$A$10:$R$117,17,FALSE)/1000,\"\")","v":""},{"$f":"IFERROR(J63*I63*VLOOKUP(ReactorType&\"_\"&ReactorTemp,'11-Calibration Factors'!$A$4:$C$9,3,FALSE),\"\")","v":""},"","",null,{"$f":"IF('3-Digester Inputs'!B22=0,\"\",'3-Digester Inputs'!B22)","v":""},{"$f":"'3-Digester Inputs'!P22","v":""},{"$f":"IFERROR(VLOOKUP(O63,'9-Feedstock Characteristics'!$A$10:$R$117,17,FALSE)/1000,\"\")","v":""},"","","",null,{"$f":"IF('3-Digester Inputs'!B22=0,\"\",'3-Digester Inputs'!B22)","v":""},{"$f":"'3-Digester Inputs'!P22","v":""},{"$f":"IFERROR(VLOOKUP(V63,'9-Feedstock Characteristics'!$A$10:$R$117,17,FALSE)/1000,\"\")","v":""}," ","",""]
[{"$f":"IF('3-Digester Inputs'!B23=0,\"\",'3-Digester Inputs'!B23)","v":""},{"$f":"'3-Digester Inputs'!P23","v":""},{"$f":"IFERROR(VLOOKUP(A64,'9-Feedstock Characteristics'!$A$10:$R$117,17,FALSE)/1000,\"\")","v":""},{"$f":"IFERROR(C64*B64*VLOOKUP(ReactorType&\"_\"&ReactorTemp,'11-Calibration Factors'!$A$4:$C$9,2,FALSE),\"\")","v":""},"","",null,{"$f":"IF('3-Digester Inputs'!B23=0,\"\",'3-Digester Inputs'!B23)","v":""},{"$f":"'3-Digester Inputs'!P23","v":""},{"$f":"IFERROR(VLOOKUP(H64,'9-Feedstock Characteristics'!$A$10:$R$117,17,FALSE)/1000,\"\")","v":""},{"$f":"IFERROR(J64*I64*VLOOKUP(ReactorType&\"_\"&ReactorTemp,'11-Calibration Factors'!$A$4:$C$9,3,FALSE),\"\")","v":""},"","",null,{"$f":"IF('3-Digester Inputs'!B23=0,\"\",'3-Digester Inputs'!B23)","v":""},{"$f":"'3-Digester Inputs'!P23","v":""},{"$f":"IFERROR(VLOOKUP(O64,'9-Feedstock Characteristics'!$A$10:$R$117,17,FALSE)/1000,\"\")","v":""},"","","",null,{"$f":"IF('3-Digester Inputs'!B23=0,\"\",'3-Digester Inputs'!B23)","v":""},{"$f":"'3-Digester Inputs'!P23","v":""},{"$f":"IFERROR(VLOOKUP(V64,'9-Feedstock Characteristics'!$A$10:$R$117,17,FALSE)/1000,\"\")","v":""}," ","",""]
[{"$f":"IF('3-Digester Inputs'!B24=0,\"\",'3-Digester Inputs'!B24)","v":""},{"$f":"'3-Digester Inputs'!P24","v":""},{"$f":"IFERROR(VLOOKUP(A65,'9-Feedstock Characteristics'!$A$10:$R$117,17,FALSE)/1000,\"\")","v":""},{"$f":"IFERROR(C65*B65*VLOOKUP(ReactorType&\"_\"&ReactorTemp,'11-Calibration Factors'!$A$4:$C$9,2,FALSE),\"\")","v":""},"","",null,{"$f":"IF('3-Digester Inputs'!B24=0,\"\",'3-Digester Inputs'!B24)","v":""},{"$f":"'3-Digester Inputs'!P24","v":""},{"$f":"IFERROR(VLOOKUP(H65,'9-Feedstock Characteristics'!$A$10:$R$117,17,FALSE)/1000,\"\")","v":""},{"$f":"IFERROR(J65*I65*VLOOKUP(ReactorType&\"_\"&ReactorTemp,'11-Calibration Factors'!$A$4:$C$9,3,FALSE),\"\")","v":""},"","",null,{"$f":"IF('3-Digester Inputs'!B24=0,\"\",'3-Digester Inputs'!B24)","v":""},{"$f":"'3-Digester Inputs'!P24","v":""},{"$f":"IFERROR(VLOOKUP(O65,'9-Feedstock Characteristics'!$A$10:$R$117,17,FALSE)/1000,\"\")","v":""},"","","",null,{"$f":"IF('3-Digester Inputs'!B24=0,\"\",'3-Digester Inputs'!B24)","v":""},{"$f":"'3-Digester Inputs'!P24","v":""},{"$f":"IFERROR(VLOOKUP(V65,'9-Feedstock Characteristics'!$A$10:$R$117,17,FALSE)/1000,\"\")","v":""}," ","",""]
[{"$f":"IF('3-Digester Inputs'!B25=0,\"\",'3-Digester Inputs'!B25)","v":""},{"$f":"'3-Digester Inputs'!P25","v":""},{"$f":"IFERROR(VLOOKUP(A66,'9-Feedstock Characteristics'!$A$10:$R$117,17,FALSE)/1000,\"\")","v":""},{"$f":"IFERROR(C66*B66*VLOOKUP(ReactorType&\"_\"&ReactorTemp,'11-Calibration Factors'!$A$4:$C$9,2,FALSE),\"\")","v":""},"","",null,{"$f":"IF('3-Digester Inputs'!B25=0,\"\",'3-Digester Inputs'!B25)","v":""},{"$f":"'3-Digester Inputs'!P25","v":""},{"$f":"IFERROR(VLOOKUP(H66,'9-Feedstock Characteristics'!$A$10:$R$117,17,FALSE)/1000,\"\")","v":""},{"$f":"IFERROR(J66*I66*VLOOKUP(ReactorType&\"_\"&ReactorTemp,'11-Calibration Factors'!$A$4:$C$9,3,FALSE),\"\")","v":""},"","",null,{"$f":"IF('3-Digester Inputs'!B25=0,\"\",'3-Digester Inputs'!B25)","v":""},{"$f":"'3-Digester Inputs'!P25","v":""},{"$f":"IFERROR(VLOOKUP(O66,'9-Feedstock Characteristics'!$A$10:$R$117,17,FALSE)/1000,\"\")","v":""},"","","",null,{"$f":"IF('3-Digester Inputs'!B25=0,\"\",'3-Digester Inputs'!B25)","v":""},{"$f":"'3-Digester Inputs'!P25","v":""},{"$f":"IFERROR(VLOOKUP(V66,'9-Feedstock Characteristics'!$A$10:$R$117,17,FALSE)/1000,\"\")","v":""}," ","",""]
[{"$f":"IF('3-Digester Inputs'!B26=0,\"\",'3-Digester Inputs'!B26)","v":""},{"$f":"'3-Digester Inputs'!P26","v":""},{"$f":"IFERROR(VLOOKUP(A67,'9-Feedstock Characteristics'!$A$10:$R$117,17,FALSE)/1000,\"\")","v":""},{"$f":"IFERROR(C67*B67*VLOOKUP(ReactorType&\"_\"&ReactorTemp,'11-Calibration Factors'!$A$4:$C$9,2,FALSE),\"\")","v":""},"","",null,{"$f":"IF('3-Digester Inputs'!B26=0,\"\",'3-Digester Inputs'!B26)","v":""},{"$f":"'3-Digester Inputs'!P26","v":""},{"$f":"IFERROR(VLOOKUP(H67,'9-Feedstock Characteristics'!$A$10:$R$117,17,FALSE)/1000,\"\")","v":""},{"$f":"IFERROR(J67*I67*VLOOKUP(ReactorType&\"_\"&ReactorTemp,'11-Calibration Factors'!$A$4:$C$9,3,FALSE),\"\")","v":""},"","",null,{"$f":"IF('3-Digester Inputs'!B26=0,\"\",'3-Digester Inputs'!B26)","v":""},{"$f":"'3-Digester Inputs'!P26","v":""},{"$f":"IFERROR(VLOOKUP(O67,'9-Feedstock Characteristics'!$A$10:$R$117,17,FALSE)/1000,\"\")","v":""},"","","",null,{"$f":"IF('3-Digester Inputs'!B26=0,\"\",'3-Digester Inputs'!B26)","v":""},{"$f":"'3-Digester Inputs'!P26","v":""},{"$f":"IFERROR(VLOOKUP(V67,'9-Feedstock Characteristics'!$A$10:$R$117,17,FALSE)/1000,\"\")","v":""}," ","",""]
[{"$f":"IF('3-Digester Inputs'!B27=0,\"\",'3-Digester Inputs'!B27)","v":""},{"$f":"'3-Digester Inputs'!P27","v":""},{"$f":"IFERROR(VLOOKUP(A68,'9-Feedstock Characteristics'!$A$10:$R$117,17,FALSE)/1000,\"\")","v":""},{"$f":"IFERROR(C68*B68*VLOOKUP(ReactorType&\"_\"&ReactorTemp,'11-Calibration Factors'!$A$4:$C$9,2,FALSE),\"\")","v":""},"","",null,{"$f":"IF('3-Digester Inputs'!B27=0,\"\",'3-Digester Inputs'!B27)","v":""},{"$f":"'3-Digester Inputs'!P27","v":""},{"$f":"IFERROR(VLOOKUP(H68,'9-Feedstock Characteristics'!$A$10:$R$117,17,FALSE)/1000,\"\")","v":""},{"$f":"IFERROR(J68*I68*VLOOKUP(ReactorType&\"_\"&ReactorTemp,'11-Calibration Factors'!$A$4:$C$9,3,FALSE),\"\")","v":""},"","",null,{"$f":"IF('3-Digester Inputs'!B27=0,\"\",'3-Digester Inputs'!B27)","v":""},{"$f":"'3-Digester Inputs'!P27","v":""},{"$f":"IFERROR(VLOOKUP(O68,'9-Feedstock Characteristics'!$A$10:$R$117,17,FALSE)/1000,\"\")","v":""},"","","",null,{"$f":"IF('3-Digester Inputs'!B27=0,\"\",'3-Digester Inputs'!B27)","v":""},{"$f":"'3-Digester Inputs'!P27","v":""},{"$f":"IFERROR(VLOOKUP(V68,'9-Feedstock Characteristics'!$A$10:$R$117,17,FALSE)/1000,\"\")","v":""}," ","",""]
[{"$f":"IF('3-Digester Inputs'!B28=0,\"\",'3-Digester Inputs'!B28)","v":""},{"$f":"'3-Digester Inputs'!P28","v":""},{"$f":"IFERROR(VLOOKUP(A69,'9-Feedstock Characteristics'!$A$10:$R$117,17,FALSE)/1000,\"\")","v":""},{"$f":"IFERROR(C69*B69*VLOOKUP(ReactorType&\"_\"&ReactorTemp,'11-Calibration Factors'!$A$4:$C$9,2,FALSE),\"\")","v":""},"","",null,{"$f":"IF('3-Digester Inputs'!B28=0,\"\",'3-Digester Inputs'!B28)","v":""},{"$f":"'3-Digester Inputs'!P28","v":""},{"$f":"IFERROR(VLOOKUP(H69,'9-Feedstock Characteristics'!$A$10:$R$117,17,FALSE)/1000,\"\")","v":""},{"$f":"IFERROR(J69*I69*VLOOKUP(ReactorType&\"_\"&ReactorTemp,'11-Calibration Factors'!$A$4:$C$9,3,FALSE),\"\")","v":""},"","",null,{"$f":"IF('3-Digester Inputs'!B28=0,\"\",'3-Digester Inputs'!B28)","v":""},{"$f":"'3-Digester Inputs'!P28","v":""},{"$f":"IFERROR(VLOOKUP(O69,'9-Feedstock Characteristics'!$A$10:$R$117,17,FALSE)/1000,\"\")","v":""},"","","",null,{"$f":"IF('3-Digester Inputs'!B28=0,\"\",'3-Digester Inputs'!B28)","v":""},{"$f":"'3-Digester Inputs'!P28","v":""},{"$f":"IFERROR(VLOOKUP(V69,'9-Feedstock Characteristics'!$A$10:$R$117,17,FALSE)/1000,\"\")","v":""}," ","",""]
[{"$f":"IF('3-Digester Inputs'!B29=0,\"\",'3-Digester Inputs'!B29)","v":""},{"$f":"'3-Digester Inputs'!P29","v":""},{"$f":"IFERROR(VLOOKUP(A70,'9-Feedstock Characteristics'!$A$10:$R$117,17,FALSE)/1000,\"\")","v":""},{"$f":"IFERROR(C70*B70*VLOOKUP(ReactorType&\"_\"&ReactorTemp,'11-Calibration Factors'!$A$4:$C$9,2,FALSE),\"\")","v":""},"","",null,{"$f":"IF('3-Digester Inputs'!B29=0,\"\",'3-Digester Inputs'!B29)","v":""},{"$f":"'3-Digester Inputs'!P29","v":""},{"$f":"IFERROR(VLOOKUP(H70,'9-Feedstock Characteristics'!$A$10:$R$117,17,FALSE)/1000,\"\")","v":""},{"$f":"IFERROR(J70*I70*VLOOKUP(ReactorType&\"_\"&ReactorTemp,'11-Calibration Factors'!$A$4:$C$9,3,FALSE),\"\")","v":""},"","",null,{"$f":"IF('3-Digester Inputs'!B29=0,\"\",'3-Digester Inputs'!B29)","v":""},{"$f":"'3-Digester Inputs'!P29","v":""},{"$f":"IFERROR(VLOOKUP(O70,'9-Feedstock Characteristics'!$A$10:$R$117,17,FALSE)/1000,\"\")","v":""},"","","",null,{"$f":"IF('3-Digester Inputs'!B29=0,\"\",'3-Digester Inputs'!B29)","v":""},{"$f":"'3-Digester Inputs'!P29","v":""},{"$f":"IFERROR(VLOOKUP(V70,'9-Feedstock Characteristics'!$A$10:$R$117,17,FALSE)/1000,\"\")","v":""}," ","",""]
[{"$f":"IF('3-Digester Inputs'!B30=0,\"\",'3-Digester Inputs'!B30)","v":""},{"$f":"'3-Digester Inputs'!P30","v":""},{"$f":"IFERROR(VLOOKUP(A71,'9-Feedstock Characteristics'!$A$10:$R$117,17,FALSE)/1000,\"\")","v":""},{"$f":"IFERROR(C71*B71*VLOOKUP(ReactorType&\"_\"&ReactorTemp,'11-Calibration Factors'!$A$4:$C$9,2,FALSE),\"\")","v":""},"","",null,{"$f":"IF('3-Digester Inputs'!B30=0,\"\",'3-Digester Inputs'!B30)","v":""},{"$f":"'3-Digester Inputs'!P30","v":""},{"$f":"IFERROR(VLOOKUP(H71,'9-Feedstock Characteristics'!$A$10:$R$117,17,FALSE)/1000,\"\")","v":""},{"$f":"IFERROR(J71*I71*VLOOKUP(ReactorType&\"_\"&ReactorTemp,'11-Calibration Factors'!$A$4:$C$9,3,FALSE),\"\")","v":""},"","",null,{"$f":"IF('3-Digester Inputs'!B30=0,\"\",'3-Digester Inputs'!B30)","v":""},{"$f":"'3-Digester Inputs'!P30","v":""},{"$f":"IFERROR(VLOOKUP(O71,'9-Feedstock Characteristics'!$A$10:$R$117,17,FALSE)/1000,\"\")","v":""},"","","",null,{"$f":"IF('3-Digester Inputs'!B30=0,\"\",'3-Digester Inputs'!B30)","v":""},{"$f":"'3-Digester Inputs'!P30","v":""},{"$f":"IFERROR(VLOOKUP(V71,'9-Feedstock Characteristics'!$A$10:$R$117,17,FALSE)/1000,\"\")","v":""}," ","",""]
[{"$f":"IF('3-Digester Inputs'!B31=0,\"\",'3-Digester Inputs'!B31)","v":""},{"$f":"'3-Digester Inputs'!P31","v":""},{"$f":"IFERROR(VLOOKUP(A72,'9-Feedstock Characteristics'!$A$10:$R$117,17,FALSE)/1000,\"\")","v":""},{"$f":"IFERROR(C72*B72*VLOOKUP(ReactorType&\"_\"&ReactorTemp,'11-Calibration Factors'!$A$4:$C$9,2,FALSE),\"\")","v":""},"","",null,{"$f":"IF('3-Digester Inputs'!B31=0,\"\",'3-Digester Inputs'!B31)","v":""},{"$f":"'3-Digester Inputs'!P31","v":""},{"$f":"IFERROR(VLOOKUP(H72,'9-Feedstock Characteristics'!$A$10:$R$117,17,FALSE)/1000,\"\")","v":""},{"$f":"IFERROR(J72*I72*VLOOKUP(ReactorType&\"_\"&ReactorTemp,'11-Calibration Factors'!$A$4:$C$9,3,FALSE),\"\")","v":""},"","",null,{"$f":"IF('3-Digester Inputs'!B31=0,\"\",'3-Digester Inputs'!B31)","v":""},{"$f":"'3-Digester Inputs'!P31","v":""},{"$f":"IFERROR(VLOOKUP(O72,'9-Feedstock Characteristics'!$A$10:$R$117,17,FALSE)/1000,\"\")","v":""},"","","",null,{"$f":"IF('3-Digester Inputs'!B31=0,\"\",'3-Digester Inputs'!B31)","v":""},{"$f":"'3-Digester Inputs'!P31","v":""},{"$f":"IFERROR(VLOOKUP(V72,'9-Feedstock Characteristics'!$A$10:$R$117,17,FALSE)/1000,\"\")","v":""}," ","",""]
["Total",{"$f":"SUM(B58:B72)","v":0},{"$f":"SUMPRODUCT(B58:B72,C58:C72)/SUM(B58:B72)","v":{"$error":"#DIV/0!"}},{"$f":"SUM(D58:D72)","v":0},{"$f":"IFERROR(F73-D73,\"\")","v":0},{"$f":"SUM(F58:F72)","v":0},null,"Total",{"$f":"SUM(I58:I72)","v":0},{"$f":"SUMPRODUCT(I58:I72,J58:J72)/SUM(I58:I72)","v":{"$error":"#DIV/0!"}},{"$f":"SUM(K58:K72)","v":0},{"$f":"IFERROR(M73-K73,\"\")","v":0},{"$f":"SUM(M58:M72)","v":0},null,"Total",{"$f":"SUM(P58:P72)","v":0},{"$f":"SUMPRODUCT(P58:P72,Q58:Q72)/SUM(P58:P72)","v":{"$error":"#DIV/0!"}},{"$f":"SUM(R58:R72)","v":0},{"$f":"IFERROR(T73-R73,\"\")","v":0},{"$f":"SUM(T58:T72)","v":0},null,"Total",{"$f":"SUM(W58:W72)","v":0},{"$f":"SUMPRODUCT(W58:W72,X58:X72)/SUM(W58:W72)","v":{"$error":"#DIV/0!"}},{"$f":"SUM(Y58:Y72)","v":0},{"$f":"IFERROR(AA73-Y73,\"\")","v":0},{"$f":"SUM(AA58:AA72)","v":0}]
[]
["Biogas Production - \nThe estimated low and high production values use calibration factors from actual observations that represent the 25th and 75th percentile values of the ratio between measured and modeled data. These values are used to adjust the maximum potential biogas generation values to estimate the likely biogas generation potential values. ","Estimated Value (low)","Estimated Value (high)","Theoretical Maximum Potential","Unit","Average"]
["Annual Biogas Production",{"$f":"IFERROR((D76*VLOOKUP(ReactorType&\"_\"&ReactorTemp,'11-Calibration Factors'!$A$4:$C$9,2,FALSE))*VLOOKUP(E76,'23-Look up values'!$A$13:$B$14,2,FALSE),\" \")","v":0},{"$f":"IFERROR((D76*VLOOKUP(ReactorType&\"_\"&ReactorTemp,'11-Calibration Factors'!$A$4:$C$9,3,FALSE))*VLOOKUP(E76,'23-Look up values'!$A$13:$B$14,2,FALSE),\" \")","v":0},{"$f":"IFERROR(T73*365*VLOOKUP(E76,'23-Look up values'!$A$13:$B$14,2,FALSE),\" \")","v":0},"m3/year",{"$f":"AVERAGE(B76:C76)","v":0}]
["Annual Biogas Production",{"$f":"B76/365","v":0},{"$f":"C76/365","v":0},0,"m3/day",{"$f":"AVERAGE(B77:C77)","v":0},{"$f":"F77=F53","v":true}]
["Annual Methane Production",{"$f":"IFERROR($D$78*VLOOKUP(ReactorType&\"_\"&ReactorTemp,'11-Calibration Factors'!$A$4:$C$9,2,FALSE),\" \")","v":0},{"$f":"IFERROR($D$78*VLOOKUP(ReactorType&\"_\"&ReactorTemp,'11-Calibration Factors'!$A$4:$C$9,3,FALSE),\" \")","v":0},{"$f":"IFERROR(R73*365*VLOOKUP(E78,'23-Look up values'!$A$13:$B$14,2,FALSE),\" \")","v":0},"m3/year",{"$f":"AVERAGE(B78:C78)","v":0}]
["Annual Methane Production",{"$f":"B78/365","v":0},{"$f":"C78/365","v":0},{"$f":"D78/365","v":0},"m3/day",{"$f":"AVERAGE(B79:C79)","v":0},{"$f":"Estimated_Avg_Daily_Methane_Production=D53","v":true}]

{"sheet":"7-Digestate Production","index":10,"n_rows":87,"n_cols":7,"rows_kept":87,"cut":false,"hidden":false,"merged":[[7,0,7,5],[69,0,69,6],[32,0,32,6]]}
["Digestate Production Summary Information"]
[]
[]
[]
[]
["Total Digestate Production",{"$f":"SUM(F50:G50)","v":0},"kg/day"]
[]
[{"$f":"\"Total Digestate Production  (\"&C6&\")\"","v":"Total Digestate Production  (kg/day)"}]
[]
[]
[]
[]
[]
[]
[]
[]
[]
[]
[]
[]
[]
[]
[]
[]
[]
[]
[]
[]
[]
[]
[]
[]
[{"$f":"\"Total Digestate Production  (\"&C6&\")\"","v":"Total Digestate Production  (kg/day)"}]
["Waste Type","Non biodegradable solids ","Remaining Volatile Solids","Moisture","Digester Solids","Dry Sludge","Liquid Effluent"]
[{"$f":"IF('3-Digester Inputs'!B17=0,\"\",'3-Digester Inputs'!B17)","v":""},{"$f":"IFERROR('3-Digester Inputs'!BE17*'3-Digester Inputs'!I17/VLOOKUP($C$6,'23-Look up values'!$A$4:$B$5,2,FALSE),\"\")","v":""},{"$f":"IFERROR(C72/VLOOKUP($C$6,'23-Look up values'!$A$4:$B$5,2,FALSE),\"\")","v":""},{"$f":"IFERROR(D72/VLOOKUP($C$6,'23-Look up values'!$A$4:$B$5,2,FALSE),\"\")","v":""},{"$f":"IFERROR(C35+B35+D35,\"\")","v":""},{"$f":"IFERROR(IF('3-Digester Inputs'!$C$11=\"Yes\",E35*solid_capture_efficenicy_of_dewatering_equipment,0),\"\")","v":0},{"$f":"IFERROR(E35-F35,\"\")","v":""}]
[{"$f":"IF('3-Digester Inputs'!B18=0,\"\",'3-Digester Inputs'!B18)","v":""},{"$f":"IFERROR('3-Digester Inputs'!BE18*'3-Digester Inputs'!I18/VLOOKUP($C$6,'23-Look up values'!$A$4:$B$5,2,FALSE),\"\")","v":""},{"$f":"IFERROR(C73/VLOOKUP($C$6,'23-Look up values'!$A$4:$B$5,2,FALSE),\"\")","v":""},{"$f":"IFERROR(D73/VLOOKUP($C$6,'23-Look up values'!$A$4:$B$5,2,FALSE),\"\")","v":""},{"$f":"IFERROR(C36+B36+D36,\"\")","v":""},{"$f":"IFERROR(IF('3-Digester Inputs'!$C$11=\"Yes\",E36*solid_capture_efficenicy_of_dewatering_equipment,0),\"\")","v":0},{"$f":"IFERROR(E36-F36,\"\")","v":""}]
[{"$f":"IF('3-Digester Inputs'!B19=0,\"\",'3-Digester Inputs'!B19)","v":""},{"$f":"IFERROR('3-Digester Inputs'!BE19*'3-Digester Inputs'!I19/VLOOKUP($C$6,'23-Look up values'!$A$4:$B$5,2,FALSE),\"\")","v":""},{"$f":"IFERROR(C74/VLOOKUP($C$6,'23-Look up values'!$A$4:$B$5,2,FALSE),\"\")","v":""},{"$f":"IFERROR(D74/VLOOKUP($C$6,'23-Look up values'!$A$4:$B$5,2,FALSE),\"\")","v":""},"",{"$f":"IFERROR(IF('3-Digester Inputs'!$C$11=\"Yes\",E37*solid_capture_efficenicy_of_dewatering_equipment,0),\"\")","v":0},""]
[{"$f":"IF('3-Digester Inputs'!B20=0,\"\",'3-Digester Inputs'!B20)","v":""},{"$f":"IFERROR('3-Digester Inputs'!BE20*'3-Digester Inputs'!I20/VLOOKUP($C$6,'23-Look up values'!$A$4:$B$5,2,FALSE),\"\")","v":""},{"$f":"IFERROR(C75/VLOOKUP($C$6,'23-Look up values'!$A$4:$B$5,2,FALSE),\"\")","v":""},{"$f":"IFERROR(D75/VLOOKUP($C$6,'23-Look up values'!$A$4:$B$5,2,FALSE),\"\")","v":""},"",{"$f":"IFERROR(IF('3-Digester Inputs'!$C$11=\"Yes\",E38*solid_capture_efficenicy_of_dewatering_equipment,0),\"\")","v":0},""]
[{"$f":"IF('3-Digester Inputs'!B21=0,\"\",'3-Digester Inputs'!B21)","v":""},{"$f":"IFERROR('3-Digester Inputs'!BE21*'3-Digester Inputs'!I21/VLOOKUP($C$6,'23-Look up values'!$A$4:$B$5,2,FALSE),\"\")","v":""},{"$f":"IFERROR(C76/VLOOKUP($C$6,'23-Look up values'!$A$4:$B$5,2,FALSE),\"\")","v":""},{"$f":"IFERROR(D76/VLOOKUP($C$6,'23-Look up values'!$A$4:$B$5,2,FALSE),\"\")","v":""},"",{"$f":"IFERROR(IF('3-Digester Inputs'!$C$11=\"Yes\",E39*solid_capture_efficenicy_of_dewatering_equipment,0),\"\")","v":0},""]
[{"$f":"IF('3-Digester Inputs'!B22=0,\"\",'3-Digester Inputs'!B22)","v":""},{"$f":"IFERROR('3-Digester Inputs'!BE22*'3-Digester Inputs'!I22/VLOOKUP($C$6,'23-Look up values'!$A$4:$B$5,2,FALSE),\"\")","v":""},{"$f":"IFERROR(C77/VLOOKUP($C$6,'23-Look up values'!$A$4:$B$5,2,FALSE),\"\")","v":""},{"$f":"IFERROR(D77/VLOOKUP($C$6,'23-Look up values'!$A$4:$B$5,2,FALSE),\"\")","v":""},"",{"$f":"IFERROR(IF('3-Digester Inputs'!$C$11=\"Yes\",E40*solid_capture_efficenicy_of_dewatering_equipment,0),\"\")","v":0},""]
[{"$f":"IF('3-Digester Inputs'!B23=0,\"\",'3-Digester Inputs'!B23)","v":""},{"$f":"IFERROR('3-Digester Inputs'!BE23*'3-Digester Inputs'!I23/VLOOKUP($C$6,'23-Look up values'!$A$4:$B$5,2,FALSE),\"\")","v":""},{"$f":"IFERROR(C78/VLOOKUP($C$6,'23-Look up values'!$A$4:$B$5,2,FALSE),\"\")","v":""},{"$f":"IFERROR(D78/VLOOKUP($C$6,'23-Look up values'!$A$4:$B$5,2,FALSE),\"\")","v":""},"",{"$f":"IFERROR(IF('3-Digester Inputs'!$C$11=\"Yes\",E41*solid_capture_efficenicy_of_dewatering_equipment,0),\"\")","v":0},""]
[{"$f":"IF('3-Digester Inputs'!B24=0,\"\",'3-Digester Inputs'!B24)","v":""},{"$f":"IFERROR('3-Digester Inputs'!BE24*'3-Digester Inputs'!I24/VLOOKUP($C$6,'23-Look up values'!$A$4:$B$5,2,FALSE),\"\")","v":""},{"$f":"IFERROR(C79/VLOOKUP($C$6,'23-Look up values'!$A$4:$B$5,2,FALSE),\"\")","v":""},{"$f":"IFERROR(D79/VLOOKUP($C$6,'23-Look up values'!$A$4:$B$5,2,FALSE),\"\")","v":""},"",{"$f":"IFERROR(IF('3-Digester Inputs'!$C$11=\"Yes\",E42*solid_capture_efficenicy_of_dewatering_equipment,0),\"\")","v":0},""]
[{"$f":"IF('3-Digester Inputs'!B25=0,\"\",'3-Digester Inputs'!B25)","v":""},{"$f":"IFERROR('3-Digester Inputs'!BE25*'3-Digester Inputs'!I25/VLOOKUP($C$6,'23-Look up values'!$A$4:$B$5,2,FALSE),\"\")","v":""},{"$f":"IFERROR(C80/VLOOKUP($C$6,'23-Look up values'!$A$4:$B$5,2,FALSE),\"\")","v":""},{"$f":"IFERROR(D80/VLOOKUP($C$6,'23-Look up values'!$A$4:$B$5,2,FALSE),\"\")","v":""},"",{"$f":"IFERROR(IF('3-Digester Inputs'!$C$11=\"Yes\",E43*solid_capture_efficenicy_of_dewatering_equipment,0),\"\")","v":0},""]
[{"$f":"IF('3-Digester Inputs'!B26=0,\"\",'3-Digester Inputs'!B26)","v":""},{"$f":"IFERROR('3-Digester Inputs'!BE26*'3-Digester Inputs'!I26/VLOOKUP($C$6,'23-Look up values'!$A$4:$B$5,2,FALSE),\"\")","v":""},{"$f":"IFERROR(C81/VLOOKUP($C$6,'23-Look up values'!$A$4:$B$5,2,FALSE),\"\")","v":""},{"$f":"IFERROR(D81/VLOOKUP($C$6,'23-Look up values'!$A$4:$B$5,2,FALSE),\"\")","v":""},"",{"$f":"IFERROR(IF('3-Digester Inputs'!$C$11=\"Yes\",E44*solid_capture_efficenicy_of_dewatering_equipment,0),\"\")","v":0},""]
[{"$f":"IF('3-Digester Inputs'!B27=0,\"\",'3-Digester Inputs'!B27)","v":""},{"$f":"IFERROR('3-Digester Inputs'!BE27*'3-Digester Inputs'!I27/VLOOKUP($C$6,'23-Look up values'!$A$4:$B$5,2,FALSE),\"\")","v":""},{"$f":"IFERROR(C82/VLOOKUP($C$6,'23-Look up values'!$A$4:$B$5,2,FALSE),\"\")","v":""},{"$f":"IFERROR(D82/VLOOKUP($C$6,'23-Look up values'!$A$4:$B$5,2,FALSE),\"\")","v":""},"",{"$f":"IFERROR(IF('3-Digester Inputs'!$C$11=\"Yes\",E45*solid_capture_efficenicy_of_dewatering_equipment,0),\"\")","v":0},""]
[{"$f":"IF('3-Digester Inputs'!B28=0,\"\",'3-Digester Inputs'!B28)","v":""},{"$f":"IFERROR('3-Digester Inputs'!BE28*'3-Digester Inputs'!I28/VLOOKUP($C$6,'23-Look up values'!$A$4:$B$5,2,FALSE),\"\")","v":""},{"$f":"IFERROR(C83/VLOOKUP($C$6,'23-Look up values'!$A$4:$B$5,2,FALSE),\"\")","v":""},{"$f":"IFERROR(D83/VLOOKUP($C$6,'23-Look up values'!$A$4:$B$5,2,FALSE),\"\")","v":""},"",{"$f":"IFERROR(IF('3-Digester Inputs'!$C$11=\"Yes\",E46*solid_capture_efficenicy_of_dewatering_equipment,0),\"\")","v":0},""]
[{"$f":"IF('3-Digester Inputs'!B29=0,\"\",'3-Digester Inputs'!B29)","v":""},{"$f":"IFERROR('3-Digester Inputs'!BE29*'3-Digester Inputs'!I29/VLOOKUP($C$6,'23-Look up values'!$A$4:$B$5,2,FALSE),\"\")","v":""},{"$f":"IFERROR(C84/VLOOKUP($C$6,'23-Look up values'!$A$4:$B$5,2,FALSE),\"\")","v":""},{"$f":"IFERROR(D84/VLOOKUP($C$6,'23-Look up values'!$A$4:$B$5,2,FALSE),\"\")","v":""},"",{"$f":"IFERROR(IF('3-Digester Inputs'!$C$11=\"Yes\",E47*solid_capture_efficenicy_of_dewatering_equipment,0),\"\")","v":0},""]
[{"$f":"IF('3-Digester Inputs'!B30=0,\"\",'3-Digester Inputs'!B30)","v":""},{"$f":"IFERROR('3-Digester Inputs'!BE30*'3-Digester Inputs'!I30/VLOOKUP($C$6,'23-Look up values'!$A$4:$B$5,2,FALSE),\"\")","v":""},{"$f":"IFERROR(C85/VLOOKUP($C$6,'23-Look up values'!$A$4:$B$5,2,FALSE),\"\")","v":""},{"$f":"IFERROR(D85/VLOOKUP($C$6,'23-Look up values'!$A$4:$B$5,2,FALSE),\"\")","v":""},"",{"$f":"IFERROR(IF('3-Digester Inputs'!$C$11=\"Yes\",E48*solid_capture_efficenicy_of_dewatering_equipment,0),\"\")","v":0},""]
[{"$f":"IF('3-Digester Inputs'!B31=0,\"\",'3-Digester Inputs'!B31)","v":""},{"$f":"IFERROR('3-Digester Inputs'!BE31*'3-Digester Inputs'!I31/VLOOKUP($C$6,'23-Look up values'!$A$4:$B$5,2,FALSE),\"\")","v":""},{"$f":"IFERROR(C86/VLOOKUP($C$6,'23-Look up values'!$A$4:$B$5,2,FALSE),\"\")","v":""},{"$f":"IFERROR(D86/VLOOKUP($C$6,'23-Look up values'!$A$4:$B$5,2,FALSE),\"\")","v":""},"",{"$f":"IFERROR(IF('3-Digester Inputs'!$C$11=\"Yes\",E49*solid_capture_efficenicy_of_dewatering_equipment,0),\"\")","v":0},""]
["Total",{"$f":"SUM(B35:B49)","v":0},0,{"$f":"SUM(D35:D49)","v":0},{"$f":"SUM(E35:E49)","v":0},{"$f":"SUM(F35:F48)","v":0},{"$f":"SUM(G35:G48)","v":0}]
[]
[]
[]
[]
[]
[]
[]
[]
[]
[]
[]
[]
[]
[]
[]
[]
[]
[]
[]
["Digestate Production (kg / day)"]
["Waste Type","Non biodegradable solids ","Remaining Volatile Solids","Moisture","Digester Solids","Dry Sludge","Liquid Effluent"]
[{"$f":"IF('3-Digester Inputs'!B17=0,\"\",'3-Digester Inputs'!B17)","v":""},{"$f":"IFERROR('3-Digester Inputs'!BE17*'3-Digester Inputs'!I17,\"\")","v":""},{"$f":"IFERROR('6-Biogas Production'!W58-'6-Biogas Production'!AA58*Assumed_Biogas_Density,\"\")","v":""},{"$f":"IFERROR(('3-Digester Inputs'!F17*'3-Digester Inputs'!C17)/VLOOKUP('3-Digester Inputs'!D17,'23-Look up values'!A$4:B$9,2,FALSE),\"\")","v":""},{"$f":"IFERROR(C72+B72+D72,\"\")","v":""},{"$f":"IFERROR(IF('3-Digester Inputs'!$C$11=\"Yes\",E72*solid_capture_efficenicy_of_dewatering_equipment,0),\"\")","v":0},{"$f":"IFERROR(E72-F72,\"\")","v":""}]
[{"$f":"IF('3-Digester Inputs'!B18=0,\"\",'3-Digester Inputs'!B18)","v":""},{"$f":"IFERROR('3-Digester Inputs'!BE18*'3-Digester Inputs'!I18,\"\")","v":""},{"$f":"IFERROR('6-Biogas Production'!W59-'6-Biogas Production'!AA59*Assumed_Biogas_Density,\"\")","v":""},{"$f":"IFERROR(('3-Digester Inputs'!F18*'3-Digester Inputs'!C18)/VLOOKUP('3-Digester Inputs'!D18,'23-Look up values'!A$4:B$9,2,FALSE),\"\")","v":""},{"$f":"IFERROR(C73+B73+D73,\"\")","v":""},{"$f":"IFERROR(IF('3-Digester Inputs'!$C$11=\"Yes\",E73*solid_capture_efficenicy_of_dewatering_equipment,0),\"\")","v":0},{"$f":"IFERROR(E73-F73,\"\")","v":""}]
[{"$f":"IF('3-Digester Inputs'!B19=0,\"\",'3-Digester Inputs'!B19)","v":""},{"$f":"IFERROR('3-Digester Inputs'!BE19*'3-Digester Inputs'!I19,\"\")","v":""},{"$f":"IFERROR('6-Biogas Production'!W60-'6-Biogas Production'!AA60*Assumed_Biogas_Density,\"\")","v":""},{"$f":"IFERROR(('3-Digester Inputs'!F19*'3-Digester Inputs'!C19)/VLOOKUP('3-Digester Inputs'!D19,'23-Look up values'!A$4:B$9,2,FALSE),\"\")","v":""},"",{"$f":"IFERROR(IF('3-Digester Inputs'!$C$11=\"Yes\",E74*solid_capture_efficenicy_of_dewatering_equipment,0),\"\")","v":0},""]
[{"$f":"IF('3-Digester Inputs'!B20=0,\"\",'3-Digester Inputs'!B20)","v":""},{"$f":"IFERROR('3-Digester Inputs'!BE20*'3-Digester Inputs'!I20,\"\")","v":""},{"$f":"IFERROR('6-Biogas Production'!W61-'6-Biogas Production'!AA61*Assumed_Biogas_Density,\"\")","v":""},{"$f":"IFERROR(('3-Digester Inputs'!F20*'3-Digester Inputs'!C20)/VLOOKUP('3-Digester Inputs'!D20,'23-Look up values'!A$4:B$9,2,FALSE),\"\")","v":""},"",{"$f":"IFERROR(IF('3-Digester Inputs'!$C$11=\"Yes\",E75*solid_capture_efficenicy_of_dewatering_equipment,0),\"\")","v":0},""]
[{"$f":"IF('3-Digester Inputs'!B21=0,\"\",'3-Digester Inputs'!B21)","v":""},{"$f":"IFERROR('3-Digester Inputs'!BE21*'3-Digester Inputs'!I21,\"\")","v":""},{"$f":"IFERROR('6-Biogas Production'!W62-'6-Biogas Production'!AA62*Assumed_Biogas_Density,\"\")","v":""},{"$f":"IFERROR(('3-Digester Inputs'!F21*'3-Digester Inputs'!C21)/VLOOKUP('3-Digester Inputs'!D21,'23-Look up values'!A$4:B$9,2,FALSE),\"\")","v":""},"",{"$f":"IFERROR(IF('3-Digester Inputs'!$C$11=\"Yes\",E76*solid_capture_efficenicy_of_dewatering_equipment,0),\"\")","v":0},""]
[{"$f":"IF('3-Digester Inputs'!B22=0,\"\",'3-Digester Inputs'!B22)","v":""},{"$f":"IFERROR('3-Digester Inputs'!BE22*'3-Digester Inputs'!I22,\"\")","v":""},{"$f":"IFERROR('6-Biogas Production'!W63-'6-Biogas Production'!AA63*Assumed_Biogas_Density,\"\")","v":""},{"$f":"IFERROR(('3-Digester Inputs'!F22*'3-Digester Inputs'!C22)/VLOOKUP('3-Digester Inputs'!D22,'23-Look up values'!A$4:B$9,2,FALSE),\"\")","v":""},"",{"$f":"IFERROR(IF('3-Digester Inputs'!$C$11=\"Yes\",E77*solid_capture_efficenicy_of_dewatering_equipment,0),\"\")","v":0},""]
[{"$f":"IF('3-Digester Inputs'!B23=0,\"\",'3-Digester Inputs'!B23)","v":""},{"$f":"IFERROR('3-Digester Inputs'!BE23*'3-Digester Inputs'!I23,\"\")","v":""},{"$f":"IFERROR('6-Biogas Production'!W64-'6-Biogas Production'!AA64*Assumed_Biogas_Density,\"\")","v":""},{"$f":"IFERROR(('3-Digester Inputs'!F23*'3-Digester Inputs'!C23)/VLOOKUP('3-Digester Inputs'!D23,'23-Look up values'!A$4:B$9,2,FALSE),\"\")","v":""},"",{"$f":"IFERROR(IF('3-Digester Inputs'!$C$11=\"Yes\",E78*solid_capture_efficenicy_of_dewatering_equipment,0),\"\")","v":0},""]
[{"$f":"IF('3-Digester Inputs'!B24=0,\"\",'3-Digester Inputs'!B24)","v":""},{"$f":"IFERROR('3-Digester Inputs'!BE24*'3-Digester Inputs'!I24,\"\")","v":""},{"$f":"IFERROR('6-Biogas Production'!W65-'6-Biogas Production'!AA65*Assumed_Biogas_Density,\"\")","v":""},{"$f":"IFERROR(('3-Digester Inputs'!F24*'3-Digester Inputs'!C24)/VLOOKUP('3-Digester Inputs'!D24,'23-Look up values'!A$4:B$9,2,FALSE),\"\")","v":""},"",{"$f":"IFERROR(IF('3-Digester Inputs'!$C$11=\"Yes\",E79*solid_capture_efficenicy_of_dewatering_equipment,0),\"\")","v":0},""]
[{"$f":"IF('3-Digester Inputs'!B25=0,\"\",'3-Digester Inputs'!B25)","v":""},{"$f":"IFERROR('3-Digester Inputs'!BE25*'3-Digester Inputs'!I25,\"\")","v":""},{"$f":"IFERROR('6-Biogas Production'!W66-'6-Biogas Production'!AA66*Assumed_Biogas_Density,\"\")","v":""},{"$f":"IFERROR(('3-Digester Inputs'!F25*'3-Digester Inputs'!C25)/VLOOKUP('3-Digester Inputs'!D25,'23-Look up values'!A$4:B$9,2,FALSE),\"\")","v":""},"",{"$f":"IFERROR(IF('3-Digester Inputs'!$C$11=\"Yes\",E80*solid_capture_efficenicy_of_dewatering_equipment,0),\"\")","v":0},""]
[{"$f":"IF('3-Digester Inputs'!B26=0,\"\",'3-Digester Inputs'!B26)","v":""},{"$f":"IFERROR('3-Digester Inputs'!BE26*'3-Digester Inputs'!I26,\"\")","v":""},{"$f":"IFERROR('6-Biogas Production'!W67-'6-Biogas Production'!AA67*Assumed_Biogas_Density,\"\")","v":""},{"$f":"IFERROR(('3-Digester Inputs'!F26*'3-Digester Inputs'!C26)/VLOOKUP('3-Digester Inputs'!D26,'23-Look up values'!A$4:B$9,2,FALSE),\"\")","v":""},"",{"$f":"IFERROR(IF('3-Digester Inputs'!$C$11=\"Yes\",E81*solid_capture_efficenicy_of_dewatering_equipment,0),\"\")","v":0},""]
[{"$f":"IF('3-Digester Inputs'!B27=0,\"\",'3-Digester Inputs'!B27)","v":""},{"$f":"IFERROR('3-Digester Inputs'!BE27*'3-Digester Inputs'!I27,\"\")","v":""},{"$f":"IFERROR('6-Biogas Production'!W68-'6-Biogas Production'!AA68*Assumed_Biogas_Density,\"\")","v":""},{"$f":"IFERROR(('3-Digester Inputs'!F27*'3-Digester Inputs'!C27)/VLOOKUP('3-Digester Inputs'!D27,'23-Look up values'!A$4:B$9,2,FALSE),\"\")","v":""},"",{"$f":"IFERROR(IF('3-Digester Inputs'!$C$11=\"Yes\",E82*solid_capture_efficenicy_of_dewatering_equipment,0),\"\")","v":0},""]
[{"$f":"IF('3-Digester Inputs'!B28=0,\"\",'3-Digester Inputs'!B28)","v":""},{"$f":"IFERROR('3-Digester Inputs'!BE28*'3-Digester Inputs'!I28,\"\")","v":""},{"$f":"IFERROR('6-Biogas Production'!W69-'6-Biogas Production'!AA69*Assumed_Biogas_Density,\"\")","v":""},{"$f":"IFERROR(('3-Digester Inputs'!F28*'3-Digester Inputs'!C28)/VLOOKUP('3-Digester Inputs'!D28,'23-Look up values'!A$4:B$9,2,FALSE),\"\")","v":""},"",{"$f":"IFERROR(IF('3-Digester Inputs'!$C$11=\"Yes\",E83*solid_capture_efficenicy_of_dewatering_equipment,0),\"\")","v":0},""]
[{"$f":"IF('3-Digester Inputs'!B29=0,\"\",'3-Digester Inputs'!B29)","v":""},{"$f":"IFERROR('3-Digester Inputs'!BE29*'3-Digester Inputs'!I29,\"\")","v":""},{"$f":"IFERROR('6-Biogas Production'!W70-'6-Biogas Production'!AA70*Assumed_Biogas_Density,\"\")","v":""},{"$f":"IFERROR(('3-Digester Inputs'!F29*'3-Digester Inputs'!C29)/VLOOKUP('3-Digester Inputs'!D29,'23-Look up values'!A$4:B$9,2,FALSE),\"\")","v":""},"",{"$f":"IFERROR(IF('3-Digester Inputs'!$C$11=\"Yes\",E84*solid_capture_efficenicy_of_dewatering_equipment,0),\"\")","v":0},""]
[{"$f":"IF('3-Digester Inputs'!B30=0,\"\",'3-Digester Inputs'!B30)","v":""},{"$f":"IFERROR('3-Digester Inputs'!BE30*'3-Digester Inputs'!I30,\"\")","v":""},{"$f":"IFERROR('6-Biogas Production'!W71-'6-Biogas Production'!AA71*Assumed_Biogas_Density,\"\")","v":""},{"$f":"IFERROR(('3-Digester Inputs'!F30*'3-Digester Inputs'!C30)/VLOOKUP('3-Digester Inputs'!D30,'23-Look up values'!A$4:B$9,2,FALSE),\"\")","v":""},"",{"$f":"IFERROR(IF('3-Digester Inputs'!$C$11=\"Yes\",E85*solid_capture_efficenicy_of_dewatering_equipment,0),\"\")","v":0},""]
[{"$f":"IF('3-Digester Inputs'!B31=0,\"\",'3-Digester Inputs'!B31)","v":""},{"$f":"IFERROR('3-Digester Inputs'!BE31*'3-Digester Inputs'!I31,\"\")","v":""},{"$f":"IFERROR('6-Biogas Production'!W72-'6-Biogas Production'!AA72*Assumed_Biogas_Density,\"\")","v":""},{"$f":"IFERROR(('3-Digester Inputs'!F31*'3-Digester Inputs'!C31)/VLOOKUP('3-Digester Inputs'!D31,'23-Look up values'!A$4:B$9,2,FALSE),\"\")","v":""},"",{"$f":"IFERROR(IF('3-Digester Inputs'!$C$11=\"Yes\",E86*solid_capture_efficenicy_of_dewatering_equipment,0),\"\")","v":0},""]
["Total",{"$f":"SUM(B72:B86)","v":0},{"$f":"SUM(C72:C86)","v":0},{"$f":"SUM(D72:D86)","v":0},{"$f":"SUM(E72:E86)","v":0},{"$f":"SUM(F72:F85)","v":0},{"$f":"SUM(G72:G85)","v":0}]

{"sheet":"8-Emission Reductions","index":11,"n_rows":65,"n_cols":5,"rows_kept":65,"cut":false,"hidden":false,"merged":[]}
["Annual Project Net Emissions"]
[]
[]
[]
[]
[]
[]
["Annual Baseline Emissions (MtCO2e)",{"$f":"IFERROR(SUM(E28:E29),\"-\")","v":0}]
["Annual Project  Emissions (MtCO2e)",{"$f":"IFERROR(SUM(E31:E34),\"-\")","v":0}]
["Annual Projected Net Emissions Reductions (MtCO2e)",{"$f":"IFERROR(B8-B9,\"-\")","v":0}]
[]
["Annual Project Net Emissions (Methane only)","Methane","Methane"]
["Emissions Category","kg CH4 per year","metric tons CH4 per year"]
["Baseline Emissions"]
["Gross Methane Emissions from Manure",{"$f":"ManureMethane","v":0},{"$f":"B15/1000","v":0}]
["Gross Methane Emissions from Co-Digested Waste",{"$f":"OtherWasteMethane","v":0},{"$f":"B16/1000","v":0}]
["Project Emissions"]
["Methane Leakage",{"$f":"ProjectMethaneLeakage","v":0},0]
["Flare-Related Emissions",{"$f":"IFERROR(FlareRelatedEmissions,\"-\")","v":0},{"$f":"IFERROR(B19/1000,\"-\")","v":0}]
["Methane Utilization",{"$f":"Methane_Utilization_Related_Emissions","v":""},{"$f":"IFERROR(B20/1000,\"-\")","v":"-"}]
["Electricity Generation (Biogas Consumption only)",{"$f":"CH4_Emissions_from_Consumption/1000","v":0},0]
["Temporary Storage",{"$f":"TempStorage","v":0},0]
["Annual Projected Net Methane Emissions Reduction",{"$f":"IFERROR(SUM(B15:B16)-(B18+B19+B20+B21+B22),\"-\")","v":"-"},{"$f":"IFERROR(SUM(C15:C16)-(C18+C19+C20+C21+C22),\"-\")","v":"-"}]
[]
["Annual Project Net Emissions  (MtCO2e per year)"]
["Emissions Category","Methane","Carbon Dioxide","Black Carbon","All GHG Pollutants"]
["Baseline Emissions"]
["Gross Methane Emissions from Manure",{"$f":"B15*Methane_fossil_GWP/1000","v":0},null,null,{"$f":"SUM(B28:D28)","v":0}]
["Gross Methane Emissions from Co-Digested Waste",{"$f":"B16*Methane_fossil_GWP/1000","v":0},null,null,{"$f":"SUM(B29:D29)","v":0}]
["Project Emissions"]
["Methane Leakage",{"$f":"IFERROR(B18*Methane_fossil_GWP/1000,\"-\")","v":0},null,null,0]
["Flare-Related Emissions",{"$f":"IFERROR(B19*Methane_fossil_GWP/1000, \"-\")","v":0},null,null,{"$f":"SUM(B32:D32)","v":0}]
["Methane Utilization",{"$f":"IFERROR(B20*Methane_fossil_GWP/1000,\"-\")","v":"-"},null,null,{"$f":"SUM(B33:D33)","v":0}]
["Electricity Use (including Biogas Consumption)",{"$f":"IFERROR(B21*Methane_fossil_GWP/1000,\"-\")","v":0},{"$f":"IFERROR(SUM('21-Electricity Use'!$B$15:$B$16)/1000,\"-\")","v":0},null,0]
["Temporary Storage",{"$f":"IFERROR(B22*Methane_fossil_GWP/1000,\"-\")","v":0},null,null,{"$f":"SUM(B35:D35)","v":0}]
["Annual Projected Net Emissions Reduction",{"$f":"IFERROR(SUM(B28:B29)-(B31+B32+B33+B34+B35),\"-\")","v":"-"},{"$f":"IFERROR(SUM(C28:C29)-(C31+C32+C33+C34+C35),\"-\")","v":0},{"$f":"SUM(D28:D29)-(D31+D32+D33+D34+D35)","v":0},{"$f":"SUM(E28:E29)-(E31+E32+E33+E34+E35)","v":0}]
[]
["SLCP Global Warming Potentials"]
["SLCP",null,"Notes","Information Source"]
["Black Carbon",900,"Based on total climate forcing (all effects). This GWP is cited in the IPCC AR5 (Myhre et al., 2013).","Myhre et al., 2013; Bond et al., 2013"]
["Methane (bio)",28,"The IPCC AR5 report (Forster et al., 2007) does not differentiate between biogenic and fossil methane.","Forster et al., 2007"]
["Methane (fossil)",28,"The IPCC AR5 report (Forster et al., 2007) does not differentiate between biogenic and fossil methane.","Forster et al., 2007"]
[]
[]
[]
[null,900]
[null,28]
[null,28]
[]
[]
[]
[]
[]
[]
[]
[]
[]
[null,null,{"$f":"N58","v":0}]
[]
[null,null,{"$f":"N60","v":0}]
[null,null,{"$f":"N61","v":0}]
[null,null,{"$f":"N62","v":0}]
[null,null,{"$f":"N63","v":0}]
[]
[null,null,{"$f":"1.18","v":1.18}]

{"sheet":"9-Feedstock Characteristics","index":12,"n_rows":118,"n_cols":23,"rows_kept":118,"cut":false,"hidden":false,"merged":[[7,19,7,20],[87,1,87,17],[99,1,99,17],[103,1,103,17],[115,1,115,17],[9,1,9,17],[31,1,31,17],[60,1,60,17],[64,1,64,17],[70,1,70,17],[53,22,55,22],[61,21,63,21],[66,21,69,21],[23,21,30,21],[90,21,91,21],[88,21,89,21],[51,21,52,21],[85,21,86,21],[110,21,112,21],[10,21,22,21],[80,21,83,21],[100,21,102,21],[53,21,55,21],[93,21,94,21],[108,21,109,21]]}
["Waste Characteristics"]
[{"$f":"1","v":1},{"$f":"A2+1","v":2},{"$f":"B2+1","v":3},4,5,{"$f":"E2+1","v":6},{"$f":"F2+1","v":7},{"$f":"G2+1","v":8},{"$f":"H2+1","v":9},{"$f":"I2+1","v":10},{"$f":"J2+1","v":11},{"$f":"K2+1","v":12},{"$f":"L2+1","v":13},{"$f":"M2+1","v":14},{"$f":"N2+1","v":15},{"$f":"O2+1","v":16},{"$f":"P2+1","v":17},{"$f":"Q2+1","v":18},null,null,null,{"$f":"R2+1","v":19},{"$f":"V2+1","v":20}]
[]
[]
[]
[]
[]
["Unit","% w.b.","% w.b.","lb./d/1000 lb. ","lb./d/1000 lb. ","% of TS","% w.b.","% w.b.","lb./d/1000 lb. ","lb./d/1000 lb. ","lb./d/1000 lb. ","% w.b.","% of TS","% of TS","% of TS",null,"m3 / Mg of VS","kg/m3",null,"Category"]
["Waste Item","Moisture","Total Solids","Total Solids (TS)","Volatile Solids","Volatile Solids","Volatile Solids","Fixed Solids (Ash)","Fixed Solids","BOD","N","N","Sugars & Starches","Fats","Proteins",null,"Methane Yield","Bulk Density","Specific Gravity","Manure?","Type","Notes","Source:"]
[null,"Livestock Excreted Feedstocks"]
["Lactating Cow",0.87,{"$f":"15/119","v":0.12605042016806722},15,12,{"$f":"G11/C11","v":0.8},{"$f":"12/119","v":0.10084033613445378},{"$f":"C11-G11","v":2.5210084033613439E-2},{"$f":"D11-E11","v":3},2.1,0.76,{"$f":"(K11/D11)*((1-B11)/1)","v":6.5866666666666669E-3},{"$f":"1-SUM(N11:O11)-H11","v":0.87008991596638652},1.9400000000000001E-2,8.5300000000000001E-2,null,{"$f":"0.148*1000","v":148},{"$f":"CONVERT(119,\"lbm\",\"kg\")/CONVERT(2.1,\"ft^3\",\"m^3\")","v":907.71292452440787},{"$f":"R11/DensityofWater","v":0.90771292452440788},"Y","Manure","Methane Yields from Ward et al. All other waste characteristics derived from USDA 2008. Protein and Fat percent taken from Table 1 in Fen et al. 2017. It was assumed remaining material Volatile Solid Material is sugars and starches","USDA 2008; Ward et. al 2008; Fen et al. 2017"]
["Calf",0.83,{"$f":"9.2/83","v":0.1108433734939759},9.1999999999999993,7.7,{"$f":"G12/C12","v":0.83695652173913049},{"$f":"7.7/83","v":9.2771084337349402E-2},{"$f":"C12-G12","v":1.8072289156626495E-2},{"$f":"D12-E12","v":1.4999999999999991},null,0.42,{"$f":"(K12/D12)*((1-B12)/1)","v":7.760869565217393E-3},{"$f":"1-SUM(N12:O12)-H12","v":0.87722771084337348},1.9400000000000001E-2,8.5300000000000001E-2,null,{"$f":"0.148*1000","v":148},{"$f":"CONVERT(83,\"lbm\",\"kg\")/CONVERT(21.3,\"ft^3\",\"m^3\")","v":62.419364321065338},6.2419364321065339E-2,"Y","Manure",null,"USDA 2008; Ward et. al 2008; Fen et al. 2017"]
["Heifer",0.83,{"$f":"8.5/56","v":0.15178571428571427},8.5,7.3,0.85882352941176487,{"$f":"7.3/56","v":0.13035714285714287},2.1428571428571408E-2,1.2000000000000002,1.2,0.27,5.400000000000002E-3,0.87387142857142863,1.9400000000000001E-2,8.5300000000000001E-2,null,148,{"$f":"CONVERT(56,\"lbm\",\"kg\")/CONVERT(0.9,\"ft^3\",\"m^3\")","v":996.70438771307545},0.99670438771307546,"Y","Manure",null,"USDA 2008; Ward et. al 2008; Fen et al. 2017"]
["Dry Dairy Cow",0.87,{"$f":"6.6/51","v":0.12941176470588234},6.6,5.6,0.84848484848484862,{"$f":"5.6/51","v":0.10980392156862745},1.9607843137254888E-2,1,0.84,0.3,5.9090909090909098E-3,0.87569215686274515,1.9400000000000001E-2,8.5300000000000001E-2,null,148,{"$f":"CONVERT(51,\"lbm\",\"kg\")/CONVERT(0.84,\"ft^3\",\"m^3\")","v":972.54956199043704},0.97254956199043707,"Y","Manure",null,"USDA 2008; Ward et. al 2008; Fen et al. 2017"]
["Cattle with Primarily Grain/Grass Diet",0.88,{"$f":"1-B15","v":0.12},13,11,{"$f":"E15/D15","v":0.84615384615384615},{"$f":"F15*C15","v":0.10153846153846154},1.846153846153846E-2,2,2.5,0.35,3.2307692307692302E-3,0.87683846153846157,1.9400000000000001E-2,8.5300000000000001E-2,null,{"$f":"0.328*1000","v":328},{"$f":"CONVERT(104,\"lbm\",\"kg\")/CONVERT(1.7,\"ft^3\",\"m^3\")","v":979.95305346579687},0.97995305346579686,"Y","Manure",null,"USDA 2008; Ward et. al 2008; Fen et al. 2017"]
["Calf In Shelter (200 -350 kg.)",0.88,0.12,9.1999999999999993,7.7,0.83695652173913049,0.10043478260869565,{"$f":"C16-G16","v":1.9565217391304346E-2},1.4999999999999991,1.7,0.45,5.8695652173913048E-3,0.87573478260869564,1.9400000000000001E-2,8.5300000000000001E-2,null,{"$f":"0.328*1000","v":328},{"$f":"CONVERT(77,\"lbm\",\"kg\")/CONVERT(1.2,\"ft^3\",\"m^3\")","v":1027.8513998291091},1.0278513998291092,"Y","Manure",null,"USDA 2008; Ward et. al 2008; Fen et al. 2017"]
["Cattle With Corn Supplement to Diet",0.92,7.999999999999996E-2,5.2,4.3,0.82692307692307687,6.6153846153846119E-2,1.3846153846153841E-2,0.90000000000000036,1,0.36,5.5384615384615346E-3,0.88145384615384614,1.9400000000000001E-2,8.5300000000000001E-2,null,328,{"$f":"CONVERT(9800,\"lbm\",\"kg\")/CONVERT(160,\"ft^3\",\"m^3\")","v":981.1308816550586},0.98113088165505857,"Y","Manure",null,"USDA 2008; Ward et. al 2008; Fen et al. 2017"]
["Cattle With Other Diet Supplements",0.92,7.999999999999996E-2,5.2,4.3,0.82692307692307687,6.6153846153846119E-2,1.3846153846153841E-2,0.90000000000000036,1,0.36,5.5384615384615346E-3,0.88145384615384614,1.9400000000000001E-2,8.5300000000000001E-2,null,{"$f":"0.275*1000","v":275},{"$f":"CONVERT(9800,\"lbm\",\"kg\")/CONVERT(160,\"ft^3\",\"m^3\")","v":981.1308816550586},0.98113088165505857,"Y","Manure",null,"USDA 2008; Ward et. al 2008; Fen et al. 2017"]
["Swine - Gestating (190 kg.)",0.9,9.9999999999999978E-2,2.5,2.2999999999999998,0.91999999999999993,9.1999999999999971E-2,8.0000000000000071E-3,0.20000000000000018,0.84,0.16,6.3999999999999986E-3,0.876,2.2100000000000002E-2,9.3899999999999997E-2,null,{"$f":"0.275*1000","v":275},{"$f":"CONVERT(11,\"lbm\",\"kg\")/CONVERT(0.18,\"ft^3\",\"m^3\")","v":978.90609507534202},0.97890609507534199,"Y","Manure",null,"USDA 2008; Ward et. al 2008; Fen et al. 2017"]
["Swine - Lactating (190 kg.)",0.9,9.9999999999999978E-2,5.9,5.4,0.9152542372881356,9.1525423728813546E-2,8.474576271186432E-3,0.5,2,0.45,{"$f":"(K20/D20)*((1-B20)/1)","v":7.6271186440677943E-3},0.87552542372881359,2.2100000000000002E-2,9.3899999999999997E-2,null,{"$f":"0.356*1000","v":356},{"$f":"CONVERT(25,\"lbm\",\"kg\")/CONVERT(0.41,\"ft^3\",\"m^3\")","v":976.73557158293534},0.97673557158293534,"Y","Manure",null,"USDA 2008; Ward et. al 2008; Fen et al. 2017"]
["Boar (200 kg.)",0.9,9.9999999999999978E-2,1.9,1.7,0.89473684210526316,8.9473684210526302E-2,1.0526315789473675E-2,0.19999999999999996,0.66,0.14000000000000001,7.3684210526315779E-3,0.87347368421052629,2.2100000000000002E-2,9.3899999999999997E-2,null,356,{"$f":"CONVERT(8.4,\"lbm\",\"kg\")/CONVERT(0.13,\"ft^3\",\"m^3\")","v":1035.039171855886},1.035039171855886,"Y","Manure",null,"USDA 2008; Ward et. al 2008; Fen et al. 2017"]
["Piglets",0.9,9.9999999999999978E-2,10,8.8000000000000007,{"$f":"E22/D22","v":0.88000000000000012},8.7999999999999995E-2,1.1999999999999983E-2,1.1999999999999993,3.4,0.92,9.1999999999999981E-3,0.872,2.2100000000000002E-2,9.3899999999999997E-2,null,356,{"$f":"CONVERT(87,\"lbm\",\"kg\")/CONVERT(1.4,\"ft^3\",\"m^3\")","v":995.43308109609438},0.99543308109609441,"Y","Manure",null,"USDA 2008; Ward et. al 2008; Fen et al. 2017"]
["Adolescents Pigs",0.9,9.9999999999999978E-2,6.5,5.4,0.83076923076923082,8.3076923076923062E-2,1.6923076923076916E-2,1.0999999999999996,2.1,0.54,8.3076923076923059E-3,0.86707692307692308,2.2100000000000002E-2,9.3899999999999997E-2,null,{"$f":"0.356*1000","v":356},{"$f":"CONVERT(119,\"lbm\",\"kg\")/CONVERT(2.1,\"ft^3\",\"m^3\")","v":907.71292452440787},0.90771292452440788,"Y","Manure",null,"USDA 2008; Ward et. al 2008; Fen et al. 2017"]
["Poultry Chicken",0.75,0.25,15,11,0.73333333333333328,0.18333333333333332,6.666666666666668E-2,4,3.3,1.1000000000000001,1.8333333333333333E-2,0.77443333333333331,2.7900000000000001E-2,0.13100000000000001,null,{"$f":"460*0.6","v":276},907.71292452440787,0.90771292452440788,"Y","Manure","Calculated methane yields from biogas yields and assumption that biogas is 60% CH4 (IAEA 2008). All other waste characteristics derived from USDA 2008. In cases where information for veal was missing assumptions for calf were used. Protein, Sugar, Starch, and Fat content derived from Fen et al. 2017. It was assumed Duck and Turkey manure protein and fat content were similar to chicken.","USDA 2008; IAEA 2008; Fen et al. 2017"]
["Broiler Chicken",0.74,0.26,22,17,0.77272727272727271,{"$f":"F25*C25","v":0.2009090909090909},5.9090909090909111E-2,5,5.3,0.96,1.1345454545454546E-2,0.78200909090909088,2.7900000000000001E-2,0.13100000000000001,null,{"$f":"460*0.6","v":276},907.71292452440787,0.90771292452440788,"Y","Manure",null,"USDA 2008; IAEA 2008; Fen et al. 2017"]
["Turkey Male",0.74,0.26,8.8000000000000007,7.1,0.80681818181818177,0.20977272727272728,5.0227272727272732E-2,1.7000000000000011,2.2999999999999998,0.53,1.5659090909090911E-2,{"$f":"1-SUM(N26:O26)-H26","v":0.79087272727272717},2.7900000000000001E-2,0.13100000000000001,null,{"$f":"460*0.6","v":276},907.71292452440787,0.90771292452440788,"Y","Manure",null,"USDA 2008; IAEA 2008; Fen et al. 2017"]
["Turkey Female",0.74,0.26,12,9.8000000000000007,0.81666666666666676,0.21233333333333337,4.7666666666666635E-2,2.1999999999999993,3,0.72,1.5599999999999999E-2,{"$f":"1-SUM(N27:O27)-H27","v":0.79343333333333332},2.7900000000000001E-2,0.13100000000000001,null,{"$f":"460*0.6","v":276},907.71292452440787,0.90771292452440788,"Y","Manure",null,"USDA 2008; IAEA 2008; Fen et al. 2017"]
["Duck",0.74,0.26,27,16,0.59259259259259256,0.15407407407407406,0.10592592592592595,11,4.5,1,9.6296296296296286E-3,0.73517407407407398,2.7900000000000001E-2,0.13100000000000001,null,{"$f":"460*0.6","v":276},907.71292452440787,0.90771292452440788,"Y","Manure",null,"USDA 2008; IAEA 2008; Fen et al. 2017"]
["Lamb/Sheep/Goat",0.75,0.25,25,8.3000000000000007,0.33200000000000002,8.3000000000000004E-2,0.16699999999999998,16.7,1,0.45,{"$f":"(K29/D29)*((1-B29)/1)","v":4.5000000000000005E-3},{"$f":"1-N29-O29-H29","v":0.65270000000000006},3.3300000000000003E-2,0.14699999999999999,null,{"$f":"200*0.6","v":120},907.71292452440787,0.90771292452440788,"Y","Manure",null,"USDA 2008; IAEA 2008; Fen et al. 2017"]
["Veal",0.98,2.0000000000000018E-2,1.5,0.85,0.56666666666666665,1.1333333333333343E-2,8.6666666666666749E-3,0.65,0.37,0.2,2.6666666666666692E-3,{"$f":"1-SUM(N30:O30)-H30","v":0.88663333333333327},1.9400000000000001E-2,8.5300000000000001E-2,null,{"$f":"Q12","v":148},907.71292452440787,0.90771292452440788,"Y","Manure",null,"USDA 2008; IAEA 2008"]
["Horse",0.85,0.15000000000000002,7.8,6.2,0.79487179487179493,{"$f":"F31*C31","v":0.11923076923076925},3.0769230769230771E-2,1.5999999999999996,1,0.31,5.9615384615384617E-3,{"$f":"1-H31-N31-O31","v":0.85823076923076924},8.2400000000000001E-2,2.86E-2,null,{"$f":"250*0.6","v":150},907.71292452440787,0.90771292452440788,"Y","Manure",null,"USDA 2008; IAEA 2008; Fen et al. 2017; Mönch-Tegeder et al. 2013"]
[null,"Fruit And Vegetable Feedstocks"]
["Alfalfa",0.57999999999999996,{"$f":"1-B33","v":0.42000000000000004},null,null,{"$f":"G33/C33","v":0.91},{"$f":"91%*C33","v":0.38220000000000004},{"$f":"9%*C33","v":3.78E-2},null,null,null,2.2499999999999999E-2,{"$f":"1-N33-O33-H33","v":0.91539999999999999},6.8999999999999999E-3,3.9899999999999998E-2,null,300,230,{"$f":"R33/DensityofWater","v":0.23},"N","Food Waste",null,"Salman et al. 2011; Oklahoma Cooperative Extension Service BAE-1762; FAO 2012"]
["Bananas",0.84,0.16,null,null,0.87500000000000011,0.14000000000000001,0.02,null,null,null,5.3E-3,{"$f":"1-N34-O34-H34","v":0.96579999999999999},3.3E-3,1.09E-2,null,{"$f":"0.277*1000","v":277},{"$f":"(225)*(1/1000)*(4226.75)","v":951.01875000000007},0.95101875000000002,"N","Food Waste","Methane yield for just peel; Density for 1 cup mashed banana","USDA 2008; USDA 2016"]
["Broccoli",{"$f":"1-C35","v":0.91039999999999999},8.9599999999999999E-2,null,null,0.90401785714285721,8.1000000000000003E-2,{"$f":"C35-G35","v":8.5999999999999965E-3},null,null,null,6.2307692307692316E-3,0.95950000000000002,3.7000000000000002E-3,2.8199999999999999E-2,null,246.87,513,0.51300000000000001,"N","Food Waste",null,"USDA 2008; Yan et al. 2017; USDA 2016"]
["Cabbage",0.9,9.6000000000000002E-2,null,null,0.89583333333333326,8.5999999999999993E-2,0.01,null,null,null,1.4000000000000002E-3,0.97619999999999996,1E-3,1.2800000000000001E-2,null,{"$f":"0.277*1000","v":277},{"$f":"70*(1/1000)*(4226.75)","v":295.8725},0.29587249999999998,"N","Food Waste","Density of shredded cabbage","USDA 2008; Yan et al. 2017; USDA 2016"]
["Chinese Cabbage (Pak-Choi)",{"$f":"1-C37","v":0.96579999999999999},3.4200000000000001E-2,null,null,{"$f":"G37/C37","v":0.83625730994152048},2.86E-2,{"$f":"C37-G37","v":5.6000000000000008E-3},null,null,null,2.3654135338345866E-3,0.97739999999999994,2E-3,1.4999999999999999E-2,null,204,43,4.2999999999999997E-2,"N","Food Waste",null,"USDA 2008; Yan et al. 2017; USDA 2016"]
["Carrot Root",0.87,0.13,null,null,{"$f":"G38/C38","v":0.84615384615384615},0.11,0.02,null,null,null,2.5000000000000001E-3,0.96830000000000005,2.3999999999999998E-3,9.2999999999999992E-3,null,{"$f":"0.309*1000","v":309},540,0.54,"N","Food Waste",null,"USDA 2008; Rittenschober et al. 2012; USDA 2016"]
["Cauliflower",{"$f":"1-C39","v":0.94310000000000005},5.6899999999999999E-2,null,null,{"$f":"G39/C39","v":0.90158172231985934},5.1299999999999998E-2,{"$f":"C39-G39","v":5.6000000000000008E-3},null,null,null,4.1431718061674012E-3,0.97299999999999998,2.2000000000000001E-3,1.9199999999999998E-2,null,250,{"$f":"107*(1/1000)*(4226.75)","v":452.26224999999999},0.45226224999999998,"N","Food Waste","Density for 1 cup raw Cauliflower, chopped in 1/2\" pieces","FAO 2017; Yan et al. 2017; USDA 2016"]
["Sweet Corn",0.8,0.2,null,null,0.95,0.19,0.01,null,null,null,6.9999999999999993E-3,0.94380000000000008,1.35E-2,3.27E-2,null,375,610,0.61,"N","Food Waste",null,"USDA 2008; Salter 2007; USDA 2016"]
["Kale",0.88,0.12,null,null,0.83333333333333337,0.1,0.02,null,null,null,2.2000000000000001E-3,0.92790000000000006,9.2999999999999992E-3,4.2799999999999998E-2,null,{"$f":"(240+334)/2","v":287},{"$f":"130*(1/1000)*(4226.75)","v":549.47749999999996},0.54947749999999995,"N","Food Waste","Density for 1 cup Kale, cooked, boiled, and drained","USDA 2008; USDA 2016; IEA Bioenergy 2010"]
["Lettuce",0.95,5.3999999999999999E-2,null,null,0.83333333333333326,4.4999999999999998E-2,9.0000000000000011E-3,null,null,null,5.0000000000000001E-4,0.9759000000000001,1.5E-3,1.3599999999999999E-2,null,{"$f":"(199.07+244.41)/2","v":221.74},{"$f":"36*(1/1000)*(4226.75)","v":152.16300000000001},0.15216300000000002,"N","Food Waste","Density for shredded lettuce","USDA 2008; Yan et al. 2017; USDA 2016"]
["Onions",8.5999999999999993E-2,0.91,null,null,0.93406593406593397,0.85,0.06,null,null,null,1.3999999999999999E-2,0.92799999999999994,1E-3,1.0999999999999999E-2,null,{"$f":"0.4*1000","v":400},220,0.22,"N","Food Waste",null,"USDA 2008; USDA 2016"]
["Orange Flesh",0.87,0.13,null,null,0.92307692307692302,0.12,0.01,null,null,null,2.5999999999999999E-3,0.97940000000000005,1.1999999999999999E-3,9.4000000000000004E-3,null,73.500000000000014,{"$f":"6*(1/1000)*67628","v":405.76800000000003},0.40576800000000002,"N","Food Waste","Density for orange peel. Raw","USDA 2008; USDA 2016; Wikandari et al. 2015"]
["Orange Pulp",0.84,0.16,null,null,0.9375,0.15,0.01,null,null,null,2.3999999999999998E-3,0.97940000000000005,1.1999999999999999E-3,9.4000000000000004E-3,null,73.500000000000014,{"$f":"185*(1/1000)*(4226.75)","v":781.94875000000002},0.78194874999999997,"N","Food Waste","Density cup of orange sections without membranes","USDA 2008; USDA 2016; Wikandari et al. 2015"]
["Potato, Top, Mature",0.13,0.87,null,null,0.82758620689655171,0.72,0.15,null,null,null,1.2E-2,0.8286,8.9999999999999998E-4,2.0500000000000001E-2,null,267,590,0.59,"N","Food Waste",null,"USDA 2008; USDA 2016"]
["Potato Peel",{"$f":"1-C47","v":0.90900000000000003},9.0999999999999998E-2,null,null,{"$f":"G47/C47","v":0.95999999999999963},{"$f":"((1-B47)/1)*0.96","v":8.7359999999999965E-2},{"$f":"C47-G47","v":3.6400000000000321E-3},null,null,null,1.6E-2,0.97496000000000005,8.9999999999999998E-4,2.0500000000000001E-2,null,270,360,0.36,"N","Food Waste",null,"USDA 2008; Hamilton; Salter 2007"]
["Pumpkins",0.91,8.6999999999999994E-2,null,null,{"$f":"G48/C48","v":0.90804597701149437},7.9000000000000001E-2,8.0000000000000002E-3,null,null,null,1.1999999999999999E-3,0.98099999999999998,1E-3,0.01,null,422,{"$f":"116*(1/1000)*(4226.75)","v":490.303},0.49030299999999999,"N","Food Waste","Methane yield is laboratory results for pumpkin flesh mixed with cow manure.","USDA 2008; USDA 2016; Dubrovskis 2017"]
["Spinach",0.93,7.0000000000000007E-2,null,null,0.75142857142857133,5.2600000000000001E-2,{"$f":"C49-G49","v":1.7400000000000006E-2},null,null,null,7.000000000000001E-4,0.95010000000000006,3.8999999999999998E-3,2.86E-2,null,157.9,80,0.08,"N","Food Waste","Methane yield for whole spinach","USDA 2008; FAO 2012; Yan et al. 2017; USDA 2016"]
["Tomatoes",0.94,5.7999999999999996E-2,null,null,0.89655172413793116,5.2000000000000005E-2,6.0000000000000001E-3,null,null,null,1.5E-3,0.98319999999999996,2E-3,8.8000000000000005E-3,null,{"$f":"0.298*1000","v":298},{"$f":"180*(1/1000)*(4226.75)","v":760.81499999999994},0.76081499999999991,"N","Food Waste","Density for cup chopped or sliced","USDA 2008; USDA 2016"]
["Tomatoes (Solid Waste)",0.89,0.11,null,null,0.90909090909090917,0.1,0.01,null,null,null,2.2000000000000001E-3,0.9708,2.8E-3,1.6400000000000001E-2,null,298,761,0.76100000000000001,"N","Food Waste",null,"USDA 2008; USDA 2016"]
["Maize (Early Harvest Or Milk Ripeness)",{"$f":"1-C52","v":0.63139999999999996},{"$f":"3686%/100","v":0.36859999999999998},null,null,0.85458491589799246,{"$f":"C52-H52","v":0.315},5.3600000000000002E-2,null,null,null,6.9999999999999993E-3,{"$f":"1-N52-O52-H52","v":0.79530000000000001},4.7E-2,0.1041,null,{"$f":"CONVERT(250.26,\"mL\",\"m^3\")*10^6","v":250.26},610,0.61,"N","Food Waste","Protein, Fat, Sugar and Starch content taken from Gao et al. 2012. ","Gao et al. 2012; USDA 2008"]
["Maize (Middle Harvest Or Wax Ripeness)",{"$f":"1-C53","v":0.36419999999999997},{"$f":"6358%/100","v":0.63580000000000003},null,null,0.91569675998741751,{"$f":"C53-H53","v":0.58220000000000005},5.3600000000000002E-2,null,null,null,6.9999999999999993E-3,{"$f":"1-N53-O53-H53","v":0.79530000000000001},4.7E-2,0.1041,null,303.32,610,0.61,"N","Food Waste",null,"Gao et al. 2012; USDA 2008"]
["Rice Straw",{"$f":"1-C54","v":0.122},0.878,null,null,0.79599999999999993,{"$f":"C54*79.6%","v":0.69888799999999995},{"$f":"C54-G54","v":0.17911200000000005},null,null,null,{"$f":"C54*0.0088","v":7.7264000000000005E-3},0.437,0,0,null,483,{"$f":"(50+120)/2","v":85},8.5000000000000006E-2,"N","Food Waste","Density average of range in Liu et al. 2011. Rice waste characteristics taken from Contreras et al. 2012. Methane yield average of estimates from first-order method. A value for protein and fat content of rice husk, straw and residue, could not be identified so these values were assumed to be zero","Liu et al. 2011; Contreras et al. 2012"]
["Rice Husk",{"$f":"1-C55","v":0.10799999999999998},0.89200000000000002,null,null,0.76578923766816143,{"$f":"C54*77.8%","v":0.68308400000000002},{"$f":"C55-G55","v":0.20891599999999999},null,null,null,{"$f":"C55*0.0038","v":3.3896E-3},0.66800000000000004,0,0,null,58,{"$f":"(50+120)/2","v":85},8.5000000000000006E-2,"N","Food Waste"]
["Rice Residue (Dried)",0.10699999999999998,0.89300000000000002,null,null,0.77500000000000002,{"$f":"77.5%*C56","v":0.692075},0.20092500000000002,null,null,null,{"$f":"C55*0.0112","v":9.9904E-3},0.44700000000000001,0,0,null,326,85,8.5000000000000006E-2,"N","Food Waste"]
["Wheat Straw",9.9999999999999978E-2,0.9,null,null,0.99177777777777765,0.89259999999999995,{"$f":"C57-G57","v":7.4000000000000732E-3},null,null,null,2E-3,0.80820000000000003,0,3.4099999999999998E-2,null,208,770,0.77,"N","Food Waste","Read from graph for Wheat","IRENA 2016; Salter 2007; Xi et al. 2015"]
["Maize Cob",{"$f":"1-C58","v":0.15620000000000001},0.84379999999999999,null,null,0.91253851623607496,0.77,{"$f":"C58-G58","v":7.3799999999999977E-2},null,null,null,7.0000000000000001E-3,{"$f":"1-N58-O58-H58","v":0.84619999999999995},3.2000000000000001E-2,4.8000000000000001E-2,null,{"$f":"22.32*0.6","v":13.391999999999999},282.38,0.28238000000000002,"N","Food Waste","\"The average bulk density was 282.38, 81.61 and 127.32 kg m−3 for the corn cobs, leaves and stalks, respectively.\" (Zhang et al. 2012)","Yavini et al. 2014; Salter 2007; Leke et al. 2013"]
["Coffee Grounds",{"$f":"1-C59","v":0.67769999999999997},0.32229999999999998,null,null,{"$f":"G59/C59","v":0.98976109215017072},0.31900000000000001,{"$f":"C59-G59","v":3.2999999999999696E-3},null,null,null,1.9199999999999998E-2,{"$f":"C59-H59-N59-O59","v":5.2300000000000013E-2},0.13769999999999999,0.129,null,298,320,0.32,"N","Food Waste",null,"Vitez et al. 2016"]
["Tea Leaves",{"$f":"1-C60","v":5.7499999999999996E-2},0.9425,null,null,0.96499999999999997,{"$f":"F60*C60","v":0.90951249999999995},{"$f":"C60-G60","v":3.2987500000000058E-2},null,null,null,1.4E-2,{"$f":"1-N60-O60-H60","v":0.69001249999999992},3.7999999999999999E-2,0.23899999999999999,null,180.1,480,0.48,"N","Food Waste",null,"Zheng et al. 2013; Goel et al. 2001"]
[null,"Dairy Feedstocks"]
["Dairy Wastewater",0.98,2.4E-2,null,null,{"$f":"G62/C62","v":0.625},1.4999999999999999E-2,9.1000000000000004E-3,null,null,null,7.6999999999999996E-4,{"$f":"1-N62-O62-H62","v":0.15320000000000011},0.1477,0.69,null,550,560,{"$f":"R62/DensityofWater","v":0.56000000000000005},"N","Food Waste","The waste characteristics are taken from USDA 2008. The density is taken from Rittenschober 2012, and the methane yield from Mes et al. 2003.","USDA 2008; Mes et al. 2003; Rittenschober 2012"]
["Whey - Sweet Cheese",0.93,6.9000000000000006E-2,null,null,{"$f":"G63/C63","v":0.92753623188405787},6.4000000000000001E-2,5.4999999999999997E-3,null,null,null,7.4999999999999997E-2,{"$f":"1-N63-O63-H63","v":0.15680000000000011},0.1477,0.69,null,550,560,{"$f":"R63/DensityofWater","v":0.56000000000000005},"N","Food Waste",null,"USDA 2008; Mes et al. 2003; Antonopoulou et al. 2008; Rittenschober 2012"]
["Whey - Acid Cheese",0.93,6.6000000000000003E-2,null,null,{"$f":"G64/C64","v":0.90909090909090906},0.06,6.0000000000000001E-3,null,null,null,7.4999999999999997E-2,{"$f":"1-N64-O64-H64","v":0.15630000000000011},0.1477,0.69,null,550,560,{"$f":"R64/DensityofWater","v":0.56000000000000005},"N","Food Waste",null,"USDA 2008; Mes et al. 2003; Antonopoulou et al. 2008; Rittenschober 2012"]
[null,"Garden Feedstocks"]
["Water Hyacinths",0.86599999999999999,{"$f":"1-B66","v":0.13400000000000001},null,null,0.90200000000000002,{"$f":"F66*C66","v":0.12086800000000002},{"$f":"C66-G66","v":1.3131999999999991E-2},null,null,null,1.9699999999999999E-2,0.78,4.0000000000000001E-3,null,null,576,85,{"$f":"R66/DensityofWater","v":8.5000000000000006E-2},"N","Yard Waste",null,"Salman et al. 2011; Barua et al. 2016; Tiwari 2005"]
["Leaves",0.38200000000000001,{"$f":"1-B67","v":0.61799999999999999},null,null,0.90200000000000002,{"$f":"F67*C67","v":0.55743600000000004},{"$f":"C67-G67","v":6.0563999999999951E-2},null,null,null,8.9999999999999993E-3,{"$f":"1-N67-O67-H67","v":0.80443600000000004},4.8500000000000001E-2,8.6500000000000007E-2,null,30.6,{"$f":"((200+260)/2)*0.593276421","v":136.45357683},{"$f":"R67/DensityofWater","v":0.13645357683000001},"N","Yard Waste","Wood and tree branch density can range from 400 - 1000 kg/m3. The methane yield and density of leaves and grasses may also vary depending on the waste’s characteristics. The user is encourages to enter more specific information more reflective of their respective waste stream for this waste category.","Levis et al. 2013; Cornell Waste Management 1990; Carolinas Composting Council; Zheng et al. 2013"]
["Grass",0.82,{"$f":"1-B68","v":0.18000000000000005},null,null,0.86399999999999999,{"$f":"F68*C68","v":0.15552000000000005},{"$f":"C68-G68","v":2.4480000000000002E-2},null,null,null,8.9999999999999993E-3,{"$f":"1-N68-O68-H68","v":0.87952000000000008},2.0499999999999997E-2,7.5499999999999998E-2,null,136,{"$f":"((350+500)/2)*0.593276421","v":252.14247892500001},{"$f":"R68/DensityofWater","v":0.25214247892500002},"N","Yard Waste",null,"Levis et al. 2013; Cornell Waste Management 1990; Carolinas Composting Council; Zheng et al. 2013"]
["Branches",0.159,{"$f":"1-B69","v":0.84099999999999997},null,null,0.96599999999999997,{"$f":"F69*C69","v":0.81240599999999996},{"$f":"C69-G69","v":2.8594000000000008E-2},null,null,null,8.0000000000000002E-3,{"$f":"1-N69-O69-H69","v":0.92907266666666666},2.2000000000000002E-2,2.0333333333333335E-2,null,62.6,750,{"$f":"R69/DensityofWater","v":0.75},"N","Yard Waste",null,"Levis et al. 2013; Cornell Waste Management 1990; Carolinas Composting Council; Zheng et al. 2013"]
["Wood",0.16,{"$f":"1-B70","v":0.84},null,null,0.96399999999999997,{"$f":"F70*C70","v":0.80975999999999992},{"$f":"C70-G70","v":3.0240000000000045E-2},null,null,null,8.0000000000000002E-3,0.92742666666666662,2.2000000000000002E-2,2.0333333333333335E-2,null,11.6,750,{"$f":"R70/DensityofWater","v":0.75},"N","Yard Waste",null,"Levis et al. 2013; Cornell Waste Management 1990; Carolinas Composting Council; Zheng et al. 2013"]
[null,"Other Organic Municipal Feedstocks"]
["Textiles",0.06,{"$f":"1-B72","v":0.94},null,null,0.96599999999999997,{"$f":"F72*C72","v":0.90803999999999996},{"$f":"C72-G72","v":3.1959999999999988E-2},null,null,null,9.4999999999999998E-3,{"$f":"1-H72","v":0.96804000000000001},4.0000000000000001E-3,6.0000000000000001E-3,null,46.4,1314,{"$f":"R72/DensityofWater","v":1.3140000000000001},"N","Yard Waste","Density is the bulk density of wool fiber.","Levis et al. 2013; Priadi et al. 2014; Merrick 1998; WRAP 2009"]
["Newsprint",0.13,0.87,null,null,0.92700000000000005,0.80649000000000004,6.3509999999999955E-2,null,null,null,9.4999999999999998E-3,{"$f":"1-H73","v":0.93649000000000004},8.0000000000000002E-3,7.0000000000000001E-3,null,74.3,305,0.30499999999999999,"N","Mixed Paper",null,"Levis et al. 2013; Priadi et al. 2014; Zheng et al. 2013; WRAP 2009"]
["Corrugated Cardboard",0.17,0.83,null,null,0.89,0.73870000000000002,9.1299999999999937E-2,null,null,null,9.4999999999999998E-3,{"$f":"1-H74","v":0.90870000000000006},4.0000000000000001E-3,6.0000000000000001E-3,null,152.30000000000001,431,0.43099999999999999,"N","Corrugated Cardboard",null,"Levis et al. 2013; Priadi et al. 2014; Zheng et al. 2013; WRAP 2009"]
["Office Paper",0.09,0.91,null,null,0.878,0.79898000000000002,0.11102000000000001,null,null,null,9.4999999999999998E-3,{"$f":"1-H75","v":0.88897999999999999},4.0000000000000001E-3,6.0000000000000001E-3,null,217.3,431,0.43099999999999999,"N","Mixed Paper",null,"Levis et al. 2013; Priadi et al. 2014; Zheng et al. 2013; WRAP 2009"]
["Magazines",0.06,0.94,null,null,0.76700000000000002,0.72097999999999995,0.21901999999999999,null,null,null,9.4999999999999998E-3,0.78098000000000001,4.0000000000000001E-3,6.0000000000000001E-3,null,84.4,305,0.30499999999999999,"N","Mixed Paper",null,"Levis et al. 2013; Priadi et al. 2014; Zheng et al. 2013; WRAP 2009"]
["Junk Mail & Paper",0.09,0.91,null,null,0.751,0.68341000000000007,0.22658999999999996,null,null,null,9.4999999999999998E-3,0.77341000000000004,4.0000000000000001E-3,6.0000000000000001E-3,null,84.4,431,0.43099999999999999,"N","Mixed Paper",null,"Levis et al. 2013; Priadi et al. 2014; Zheng et al. 2013; WRAP 2009"]
["Folding Cartons",0.22,0.78,null,null,0.88800000000000001,0.69264000000000003,8.7359999999999993E-2,null,null,null,9.4999999999999998E-3,0.91264000000000001,4.0000000000000001E-3,6.0000000000000001E-3,null,152.30000000000001,366,0.36599999999999999,"N","Mixed Paper",null,"Levis et al. 2013; Priadi et al. 2014; Zheng et al. 2013; WRAP 2009"]
["Paper Bags And Sacks",0.22,0.78,null,null,0.88800000000000001,0.69264000000000003,8.7359999999999993E-2,null,null,null,9.4999999999999998E-3,0.91264000000000001,4.0000000000000001E-3,6.0000000000000001E-3,null,152.30000000000001,900,0.9,"N","Mixed Paper",null,"Levis et al. 2013; Priadi et al. 2014; Zheng et al. 2013; WRAP 2009"]
["Paper Non‐Recyclable",0.25,0.75,null,null,0.91500000000000004,0.68625000000000003,6.3749999999999973E-2,null,null,null,9.4999999999999998E-3,0.93625000000000003,4.0000000000000001E-3,6.0000000000000001E-3,null,132.1,900,0.9,"N","Mixed Paper",null,"Levis et al. 2013; Priadi et al. 2014; Zheng et al. 2013; WRAP 2009"]
["Human Waste",0.89,0.10999999999999999,null,null,{"$f":"0.019/0.033","v":0.57575757575757569},{"$f":"F81*C81","v":6.3333333333333325E-2},4.6666666666666662E-2,null,null,null,2E-3,0.25,0.25,0.15,null,195,{"$f":"CONVERT(30/0.55,\"lbm\",\"kg\")*(1/0.0283168)","v":873.73580348061921},0.87373580348061919,"N","Sewage Sludge","These characteristics are mostly derived from USDA 2008. However, the USDA did not provide methane yields. Methane yields for primary sludge from general wastewater treatment facilities and converted from their original values into cubic meters per dry Mg from Bachmann 2015. They original range in Bachmann 2015 suggested methane yields range from 315 – 400 cubic meters per Mg of TS. Using USDA information, these values were converted into the values presented on the left. The presented value is an average of the range 315 - 400 cubic meters  per Mg range. ","USDA 2008; Bachmann 2015; Rose et al. 2015; WRAP 2009"]
["Graywater",0.99919999999999998,8.0000000000002292E-4,null,null,{"$f":"G82/C82","v":0.29999999999999144},2.4000000000000001E-4,{"$f":"C82-G82","v":5.6000000000002294E-4},null,null,null,1.0000000000000001E-5,0.25,0.02,0.02,null,89.375,{"$f":"CONVERT(1625/27,\"lbm\",\"kg\")*(1/0.0283168)","v":964.07577081580689},0.96407577081580687,"N","Sewage Sludge",null,"USDA 2008; Bachmann 2015; WRAP 2009"]
["Septage Tank Wastewater",0.99750000000000005,2.4999999999999467E-3,null,null,{"$f":"G83/C83","v":0.56000000000001193},1.4E-3,{"$f":"C83-G83","v":1.0999999999999467E-3},null,null,null,1.0000000000000001E-5,0.25,0.02,0.02,null,200.20000000000002,{"$f":"CONVERT(2200/35,\"lbm\",\"kg\")*(1/0.0283168)","v":1006.8764973443327},1.0068764973443327,"N","Sewage Sludge",null,"USDA 2008; Bachmann 2015; Rose et al. 2015; WRAP 2009"]
["Composite Wastewater",0.99650000000000005,3.4999999999999476E-3,null,null,{"$f":"G84/C84","v":0.57142857142857995},2E-3,{"$f":"C84-G84","v":1.4999999999999476E-3},null,null,null,1.0000000000000001E-5,0.25,0.02,0.02,null,204.28571428571428,{"$f":"CONVERT(2200/38,\"lbm\",\"kg\")*(1/0.0283168)","v":927.38624755399064},0.92738624755399068,"N","Sewage Sludge",null,"USDA 2008; Bachmann 2015; WRAP 2009"]
["Raw Sewage Sludge",{"$f":"1-C85","v":0.96},0.04,null,null,{"$f":"G85/C85","v":0.75},0.03,0.01,null,null,null,3.2000000000000002E-3,0.25,0.02,0.02,null,315,{"$f":"CONVERT(2200/35,\"lbm\",\"kg\")*(1/0.0283168)","v":1006.8764973443327},1.0068764973443327,"N","Sewage Sludge",null,"USDA 2008; Bachmann 2015; WRAP 2009"]
["Diverted Municipal Waste (Food Only)",{"$f":"1-C86","v":0.76259999999999994},0.2374,null,null,{"$f":"G86/C86","v":0.91449031171019368},0.21709999999999999,{"$f":"C86-G86","v":2.0300000000000012E-2},null,null,null,{"$f":"0.0344*C86","v":8.1665599999999998E-3},{"$f":"453/1000*G86","v":9.8346299999999998E-2},{"$f":"151/1000*G86","v":3.2782099999999995E-2},{"$f":"235/1000*G86","v":5.1018499999999994E-2},null,445,500,0.5,"N","Food Waste","Bulk densities taken from WRAP 2009","Zhang et al. 2012; Zhang et al. 2015; WRAP 2009"]
["Diverted Municipal Waste (All Organics)",{"$f":"1-C87","v":0.47170000000000001},0.52829999999999999,null,null,0.6350558394851411,0.33550000000000002,{"$f":"C87-G87","v":0.19279999999999997},null,null,null,{"$f":"0.0132*C87","v":6.9735600000000002E-3},{"$f":"340/1000*G87","v":0.11407000000000002},{"$f":"68.6/1000*G87","v":2.3015299999999999E-2},{"$f":"130/1000*G87","v":4.3615000000000001E-2},null,344,500,0.5,"N","Food Waste",null,"Zhang et al. 2012; Zhang et al. 2015; WRAP 2009"]
[null,"Kitchen Feedstocks And Food Scraps"]
["Mixed Vegetable Waste Only",0.77,{"$f":"1-B89","v":0.22999999999999998},null,null,0.96399999999999997,{"$f":"F89*C89","v":0.22171999999999997},{"$f":"C89-G89","v":8.2800000000000096E-3},null,null,null,5.0000000000000001E-3,0.59,0.19,0.18099999999999999,null,361,500,{"$f":"R89/DensityofWater","v":0.5},"N","Food Waste","Levis et al did not provide batch densities or nitrogen contents. Li et al values were used to determine bulk density and nitrogen content. These assumptions are based on a generic kitchen waste stream in China. Protein, Fat, and Sugar content taken from Browne and Murphy 2013.","Levis et al. 2013; Li et al. 2009; Browne and Murphy 2013"]
["Mixed Food Waste With Non‐Veg.",0.56999999999999995,{"$f":"1-B90","v":0.43000000000000005},null,null,0.94199999999999995,{"$f":"F90*C90","v":0.40506000000000003},{"$f":"C90-G90","v":2.4940000000000018E-2},null,null,null,5.0000000000000001E-3,0.59,0.19,0.18099999999999999,null,361,500,0.5,"N","Food Waste",null,"Levis et al. 2013; Li et al. 2009; Browne and Murphy 2013"]
["Bread Feedstocks",{"$f":"1-C91","v":0.32599999999999996},0.67400000000000004,null,null,{"$f":"G91/C91","v":0.97181008902077148},0.65500000000000003,{"$f":"C91-G91","v":1.9000000000000017E-2},null,null,null,{"$f":"0.37*B91","v":0.12061999999999998},{"$f":"1-SUM(N91:O91)-H91","v":0.84},{"$f":"2%","v":0.02},{"$f":"12.1%","v":0.121},null,306,200,0.2,"N","Food Waste","The waste density is estimated by the experiment design. Samples 200 grams in mass were stored in 1 Liter containers. Nitrogen content came from Mathias et al. 2011. The \"Hot trub\" was used as Brewery Grains Waste and \"Brewer's spent grain\" as the Bread Wastes nitrogen content. ","Kafle et al. 2013; Mathias et al. 2011"]
["Brewery Grain Feedstocks",{"$f":"1-C92","v":0.75800000000000001},0.24199999999999999,null,null,{"$f":"G92/C92","v":0.95041322314049592},0.23,{"$f":"C92-G92","v":1.1999999999999983E-2},null,null,null,{"$f":"0.14*B92","v":0.10612000000000001},{"$f":"1-SUM(N92:O92)-H92","v":0.64},{"$f":"8.7%","v":8.6999999999999994E-2},{"$f":"26.1%","v":0.26100000000000001},null,316,200,0.2,"N","Food Waste",null,"Kafle et al. 2013; Mathias et al. 2011"]
["Mixed Cafeteria Or Canteen Waste",{"$f":"1-C93","v":0.71},0.28999999999999998,null,null,0.95299999999999996,{"$f":"F93*C93","v":0.27636999999999995},{"$f":"C93-G93","v":1.3630000000000031E-2},null,null,null,3.5299999999999998E-2,0.59,0.19,0.18099999999999999,null,498,{"$f":"R89","v":500},0.5,"N","Food Waste",null,"Browne and Murphy 2013; Li et al. 2009"]
["Cooked Meat",0.47,0.53,null,null,{"$f":"G94/C94","v":0.97},0.5141,1.5900000000000025E-2,null,null,null,0.105,{"$f":"1-N94-O94-H94","v":0.53409999999999991},0.17,0.28000000000000003,null,482,1040,1.04,"N","Food Waste","Density values taken from Rittenschober et al. 2012. Cooked meat is the value for \"Beef and noodles in gravy.\" Protein, Fat and Sugar content taken from USDA 2016. Values are for ground beef and boiled wild rice. ","Rittenschober et al. 2012; Cho et al. 1995; USDA 2016"]
["Boiled Rice",0.65,0.35,null,null,{"$f":"G95/C95","v":0.99},0.34649999999999997,3.5000000000000031E-3,null,null,null,1.6E-2,{"$f":"B95-N95-O95-H95","v":0.57250000000000001},3.4000000000000002E-2,0.04,null,294,700,0.7,"N","Food Waste",null,"Rittenschober et al. 2012; Cho et al. 1995; USDA 2016"]
["Slaughterhouse Waste (Raw waste)",{"$f":"1-C96","v":0.54200000000000004},0.45800000000000002,null,null,0.376,{"$f":"F96*C96","v":0.172208},{"$f":"C96-G96","v":0.28579200000000005},null,null,null,{"$f":"22.3/1000","v":2.23E-2},{"$f":"0.108*G96","v":1.8598463999999999E-2},{"$f":"0.523*G96","v":9.0064784000000009E-2},{"$f":"0.37*G96","v":6.3716960000000003E-2},null,125,1100,1.1000000000000001,"N","Food Waste","measurements were derived from swine slaughterhouse waste","Hejnfelt et al. 2009"]
["Slaughterhouse Waste (Animal Hair)",{"$f":"1-C97","v":0.60299999999999998},0.39700000000000002,null,null,0.35799999999999998,{"$f":"F97*C97","v":0.142126},{"$f":"C97-G97","v":0.25487400000000004},null,null,null,{"$f":"47.4/1000","v":4.7399999999999998E-2},{"$f":"0.062*G97","v":8.8118120000000005E-3},{"$f":"0.111*G97","v":1.5775985999999999E-2},{"$f":"0.822*G97","v":0.11682757199999999},null,266,{"$f":"0.560646*1000","v":560.64599999999996},0.56064599999999998,"N","Sewage Sludge","some values read from Figure 1","Hejnfelt et al. 2009; Hapman 2019"]
["Slaughterhouse Waste (Blood)",{"$f":"1-C98","v":0.82099999999999995},0.17899999999999999,null,null,0.16800000000000001,{"$f":"F98*C98","v":3.0072000000000002E-2},{"$f":"C98-G98","v":0.148928},null,null,null,{"$f":"25.4/1000","v":2.5399999999999999E-2},{"$f":"0.053*G98","v":1.5938160000000001E-3},{"$f":"0.003*G98","v":9.0216000000000005E-5},{"$f":"0.944*G98","v":2.8387968E-2},null,250,1000,1,"N","Food Waste","some values read from Figure 1","Hejnfelt et al. 2009"]
["Slaughterhouse Waste (Carcass/Paunch)",{"$f":"1-C99","v":0.77800000000000002},0.222,null,null,0.92700000000000005,{"$f":"F99*C99","v":0.205794},{"$f":"C99-G99","v":1.6205999999999998E-2},null,null,null,{"$f":"0.02*C99","v":4.4400000000000004E-3},{"$f":"0.784*C99","v":0.17404800000000001},{"$f":"0.005*C99","v":1.1100000000000001E-3},{"$f":"0.134*C99","v":2.9748000000000004E-2},null,228.8,999.5521,0.99955209999999994,"N","Food Waste",null,"Ware et al. 2016; Hapman 2019"]
[null,"Seafood Waste Silages"]
["Pacific Saury Fish Waste Silage",{"$f":"1-C101","v":0.68599999999999994},0.314,null,null,{"$f":"G101/C101","v":0.88},{"$f":"C101*0.88","v":0.27632000000000001},{"$f":"C101-G101","v":3.7679999999999991E-2},null,null,null,0.26,{"$f":"1-SUM(N101:O101)-H101","v":0.1953200000000001},{"$f":"36.4%","v":0.36399999999999999},{"$f":"40.3%","v":0.40299999999999997},null,435,200,{"$f":"R101/DensityofWater","v":0.2},"N","Food Waste","Fish silage are defined as a liquid product made from whole fish or parts of fish that are liquefied. Often this waste is generated from fish canning operations. The waste density is estimated by the experiment design. Samples 200 grams in mass were stored in 1 Liter containers. ","Kafle et al. 2013; Ramirez et al. 2013"]
["Cuttle Fish Waste Silage",{"$f":"1-C102","v":0.61499999999999999},0.38500000000000001,null,null,{"$f":"G102/C102","v":0.94},{"$f":"C102*0.94","v":0.3619},{"$f":"C102-G102","v":2.3100000000000009E-2},null,null,null,0.26,{"$f":"1-SUM(N102:O102)-H102","v":0.1069},{"$f":"46.7%","v":0.46700000000000003},{"$f":"40.3%","v":0.40299999999999997},null,543,200,{"$f":"R102/DensityofWater","v":0.2},"N","Food Waste",null,"Kafle et al. 2013; Ramirez et al. 2013"]
["Mackerel Fish Waste Silage",{"$f":"1-C103","v":0.64400000000000002},0.35599999999999998,null,null,0.86011235955056187,0.30620000000000003,4.9799999999999955E-2,null,null,null,0.26,4.1200000000000014E-2,{"$f":"49.5%","v":0.495},{"$f":"41.4%","v":0.41399999999999998},null,526,200,{"$f":"R103/DensityofWater","v":0.2},"N","Food Waste",null,"Kafle et al. 2013; Ramirez et al. 2013"]
[null,"Energy And Cash Crops"]
["Agave (Agave sisalana)",0.69289999999999996,{"$f":"1-B105","v":0.30710000000000004},null,null,{"$f":"67.7%","v":0.67700000000000005},{"$f":"F105*C105","v":0.20790670000000003},{"$f":"C105-G105","v":9.9193300000000012E-2},null,null,null,0.02,0.99,5.0000000000000001E-3,5.0000000000000001E-3,null,301,{"$f":"0.52/(1.04* 0.079 *0.018)","v":351.61744022503518},{"$f":"R105/DensityofWater","v":0.35161744022503516},"N","Yard Waste","Values used are for sisal leaf decortications waste (fresh). This type of agave is traditonally used for making textiles. ","Maik et al. 2016; Muthangya et al. 2013"]
["Sugarcane Pretreated (Bagasse)",{"$f":"1-C106","v":0.2036},0.7964,null,null,{"$f":"G106/C106","v":0.98982923154193869},0.7883,{"$f":"C106-G106","v":8.0999999999999961E-3},null,null,null,7.4000000000000003E-3,{"$f":"1-N106-O106-H106","v":0.92289999999999994},3.5000000000000003E-2,3.4000000000000002E-2,null,420,400.5,0.40050000000000002,"N","Yard Waste",null,"Sumardiono et al. 2017; Inyang 2010"]
["Sugarcane Untreated (Bagasse)",{"$f":"1-C107","v":0.2036},0.7964,null,null,{"$f":"G107/C107","v":0.98982923154193869},0.7883,{"$f":"C107-G107","v":8.0999999999999961E-3},null,null,null,7.4000000000000003E-3,{"$f":"1-N107-O107-H107","v":0.92289999999999994},3.5000000000000003E-2,3.4000000000000002E-2,null,84.75,400.5,0.40050000000000002,"N","Yard Waste",null,"Sumardiono et al. 2017; Inyang 2010"]
["Sugar Beet Tops",{"$f":"1-C108","v":0.88400000000000001},0.11600000000000001,null,null,0.85,9.9000000000000005E-2,{"$f":"C108-G108","v":1.7000000000000001E-2},null,null,null,{"$f":"0.022*C108","v":2.552E-3},{"$f":"0.07*0.304","v":2.128E-2},{"$f":"0.015*0.304%","v":4.5599999999999997E-5},{"$f":"0.087*0.304","v":2.6447999999999996E-2},null,340,380,0.38,"N","Yard Waste",null,"Lehtomäki et al. 2008; Kythreotou et al. 2014; Hapman 2019"]
["Rapeseed Meal",{"$f":"1-C109","v":8.7999999999999967E-2},0.91200000000000003,null,null,0.86799999999999999,{"$f":"F109*C109","v":0.79161599999999999},{"$f":"C109-G109","v":0.12038400000000005},null,null,null,8.9999999999999993E-3,0.63400000000000001,0,0,null,420,704,0.70399999999999996,"N","Yard Waste","A value for protein and fat content of Rapeseed could not be identified so these values were assumed to be zero. A source for nitrogen content could not be identified so the value was assumed to be 0.9%, the same as the general grass default.","Antonopoulou et al. 2010; Petersson et al. 2007"]
["Sunflower Meal",{"$f":"1-C110","v":7.8999999999999959E-2},0.92100000000000004,null,null,0.89200000000000002,{"$f":"F110*C110","v":0.82153200000000004},{"$f":"C110-G110","v":9.9468000000000001E-2},null,null,null,8.9999999999999993E-3,{"$f":"1-N110-O110-H110","v":0.17813200000000007},0.51459999999999995,0.20780000000000001,null,481,289,0.28899999999999998,"N","Yard Waste",null,"Antonopoulou et al. 2010; USDA 2016"]
["Palms (Empty Fruit)",6.7999999999999949E-2,0.93200000000000005,null,null,{"$f":"G111/C111","v":0.80826180257510727},0.75329999999999997,{"$f":"C111-G111","v":0.17870000000000008},null,null,null,1.0699999999999999E-2,{"$f":"1-N111-O111-H111","v":0.77399999999999991},4.7300000000000002E-2,0,null,112,707.55,0.7075499999999999,"N","Yard Waste","Empty fruit density is taken from Alucilja et al. 2013. Due to lack of available substitutes, this bulk density is assumed for pressed fibers and decanter cake as well. ","Chaikitkaew et al. 2015; Alucilja et al. 2013"]
["Palms (Pressed Fibers)",6.1000000000000054E-2,0.93899999999999995,null,null,{"$f":"G112/C112","v":0.87113951011714585},0.81799999999999995,{"$f":"C112-G112","v":0.121},null,null,null,1.49E-2,{"$f":"1-N112-O112-H112","v":0.79710000000000003},8.1900000000000001E-2,0,null,108,707.55,0.7075499999999999,"N","Yard Waste",null,"Chaikitkaew et al. 2015; Alucilja et al. 2013"]
["Palms (Decanter Cake)",5.8100000000000041E-2,0.94189999999999996,null,null,{"$f":"G113/C113","v":0.81388682450366279},0.76659999999999995,0.17530000000000001,null,null,null,3.3000000000000002E-2,0.70899999999999996,0.1157,0,null,100,707.55,0.7075499999999999,"N","Yard Waste",null,"Chaikitkaew et al. 2015; Alucilja et al. 2013"]
["Pressmud",{"$f":"1-C114","v":0.90910000000000002},{"$f":"0.0909","v":9.0899999999999995E-2},null,null,0.80840000000000001,{"$f":"F114*C114","v":7.3483560000000003E-2},1.7416439999999991E-2,null,null,null,{"$f":"0.017*((100-B114)/100)","v":1.6845453000000003E-2},5.7000000000000002E-2,0,0.155,null,225,30,0.03,"N","Yard Waste",null,"Agrawal et al. 2009; Sundaranayagi et al. 2017"]
["De-oiled Cake",8.299999999999999E-2,0.91874999999999996,null,null,0.84738368982774115,0.77729999999999999,0.14145000000000002,null,null,null,3.8374999999999999E-2,0.85854999999999992,6.7999999999999988E-3,1.5579999999999997E-2,null,91.224808286873852,517.5,1.0024,"N","Yard Waste",null,"Suresh et al. 2017; Jimoh et al. 2018"]
[null,"Other Inputs"]
["Added Water",1,0,null,null,0,0,0,null,null,null,0,0,0,0,null,0,1000,{"$f":"R117/DensityofWater","v":1},"N","Sewage Sludge"]
["CHOOSE AT LEAST ONE"]

{"sheet":"10-Feedstock Toxicity Info","index":13,"n_rows":114,"n_cols":20,"rows_kept":114,"cut":false,"hidden":false,"merged":[[1,0,2,9],[95,1,95,9],[99,1,99,9],[111,1,111,9],[3,3,3,7],[5,1,5,9],[27,1,27,9],[56,1,56,9],[60,1,60,9],[66,1,66,9],[83,1,83,9]]}
["Waste Toxicity Characteristics"]
["The table below lists waste category and the anaerobic digestion inhibitors commonly associated with that type of waste. Sources for this table include Chen et al. 2007, Lefebvre et al. 2007, and Arinbaatar et al. 2014. Some information was also sourced from the sources listed on the Default Waste Assumptions tab for individual waste types."]
[null,null,null,null,null,null,null,null,null,null,null,null,null,null,null,null,null,null,null,"Light Metals"]
["Inhibitor Category","Ammonia","Sulfides","Light Metals",null,null,null,null,"Heavy Metals","Organic Contaminants"]
["Inhibitor Name or Example","Ammonia Ions, free Ammonia","Sulfides","Aluminum","Calcium","Magnesium","Potassium","Sodium","e.g. Fe, Co, Cu, Zn, Pb, etc.","e.g. Chlorophenols, Halogenated, Alophatics, N-substituted aromatics, LCFAs, and Lignins"]
[null,"Livestock Excreted Feedstocks"]
["Lactating Cow (100 Lb./Day)","✔",null,null,null,null,null,null,null,"✔",null,null,null,null,null,null,null,null,null,{"$f":"COUNTA(D7:H7)","v":0}]
["Calf","✔",null,null,null,null,null,null,null,"✔",null,null,null,null,null,null,null,null,null,0]
["Heifer","✔",null,null,null,null,null,null,null,"✔",null,null,null,null,null,null,null,null,null,0]
["Dry Dairy Cow","✔",null,null,null,null,null,null,null,"✔",null,null,null,null,null,null,null,null,null,0]
["Beef Cattle In Confinement","✔",null,null,null,null,null,null,null,"✔",null,null,null,null,null,null,null,null,null,0]
["Calf In Confinement (450 -750 Lbs.)","✔",null,null,null,null,null,null,null,"✔",null,null,null,null,null,null,null,null,null,0]
["Finishing Cattle With Corn Supplement","✔",null,null,null,null,null,null,null,"✔",null,null,null,null,null,null,null,null,null,0]
["Finishing Cattle Without Corn Supplement","✔",null,null,null,null,null,null,null,"✔",null,null,null,null,null,null,null,null,null,0]
["Swine - Gestating (423 Lb.)","✔","✔",null,null,null,null,null,null,"✔",null,null,null,null,null,null,null,null,null,0]
["Swine - Lactating (423 Lb.)","✔","✔",null,null,null,null,null,null,"✔",null,null,null,null,null,null,null,null,null,0]
["Boar (440 Lb.)","✔","✔",null,null,null,null,null,null,"✔",null,null,null,null,null,null,null,null,null,0]
["Piglets","✔","✔",null,null,null,null,null,null,"✔",null,null,null,null,null,null,null,null,null,0]
["Adolescents Pigs","✔","✔",null,null,null,null,null,null,"✔",null,null,null,null,null,null,null,null,null,0]
["Poultry Chicken","✔",null,null,null,null,null,null,null,"✔",null,null,null,null,null,null,null,null,null,0]
["Broiler Chicken","✔",null,null,null,null,null,null,null,"✔",null,null,null,null,null,null,null,null,null,0]
["Turkey Male","✔",null,null,null,null,null,null,null,"✔",null,null,null,null,null,null,null,null,null,0]
["Turkey Female","✔",null,null,null,null,null,null,null,"✔",null,null,null,null,null,null,null,null,null,0]
["Duck","✔",null,null,null,null,null,null,null,"✔",null,null,null,null,null,null,null,null,null,0]
["Lamb/Sheep/Goat","✔",null,null,null,null,null,null,null,"✔",null,null,null,null,null,null,null,null,null,0]
["Veal","✔",null,null,null,null,null,null,null,"✔",null,null,null,null,null,null,null,null,null,0]
["Horse","✔",null,null,null,null,null,null,null,"✔",null,null,null,null,null,null,null,null,null,0]
[null,"Fruit And Vegetable Feedstocks",null,null,null,null,null,null,null,null,null,null,null,null,null,null,null,null,null,0]
["Alfalfa",null,null,null,null,null,null,null,null,null,null,null,null,null,null,null,null,null,null,0]
["Bananas",null,null,null,null,null,null,null,null,null,null,null,null,null,null,null,null,null,null,0]
["Broccoli",null,null,null,null,null,null,null,null,null,null,null,null,null,null,null,null,null,null,0]
["Cabbage",null,null,null,null,null,null,null,null,null,null,null,null,null,null,null,null,null,null,0]
["Chinese Cabbage (Pak-Choi)",null,null,null,null,null,null,null,null,null,null,null,null,null,null,null,null,null,null,0]
["Carrot Root",null,null,null,null,null,null,null,null,null,null,null,null,null,null,null,null,null,null,0]
["Cauliflower",null,null,null,null,null,null,null,null,null,null,null,null,null,null,null,null,null,null,0]
["Sweet Corn",null,null,null,null,null,null,null,null,null,null,null,null,null,null,null,null,null,null,0]
["Kale",null,null,null,null,null,null,null,null,null,null,null,null,null,null,null,null,null,null,0]
["Lettuce",null,null,null,null,null,null,null,null,null,null,null,null,null,null,null,null,null,null,0]
["Onions",null,null,null,null,null,null,null,null,null,null,null,null,null,null,null,null,null,null,{"$f":"COUNTA(D39:H39)","v":0}]
["Orange Flesh",null,null,null,null,null,null,null,null,null,null,null,null,null,null,null,null,null,null,0]
["Orange Pulp",null,null,null,null,null,null,null,null,null,null,null,null,null,null,null,null,null,null,0]
["Potato, Top, Mature",null,null,null,null,null,null,null,null,null,null,null,null,null,null,null,null,null,null,0]
["Potato Peel",null,null,null,null,null,null,null,null,null,null,null,null,null,null,null,null,null,null,0]
["Pumpkins",null,null,null,null,null,null,null,null,null,null,null,null,null,null,null,null,null,null,0]
["Spinach",null,null,null,null,null,null,null,null,null,null,null,null,null,null,null,null,null,null,0]
["Tomatoes",null,null,null,null,null,null,null,null,null,null,null,null,null,null,null,null,null,null,0]
["Tomatoes (Solid Waste)",null,null,null,null,null,null,null,null,null,null,null,null,null,null,null,null,null,null,0]
["Maize (Early Harvest Or Milk Ripeness)",null,null,null,null,null,null,null,null,"✔",null,null,null,null,null,null,null,null,null,0]
["Maize (Middle Harvest Or Wax Ripeness)",null,null,null,null,null,null,null,null,"✔",null,null,null,null,null,null,null,null,null,0]
["Rice Straw",null,null,null,null,null,null,null,null,"✔",null,null,null,null,null,null,null,null,null,0]
["Rice Husk",null,null,null,null,null,null,null,null,"✔",null,null,null,null,null,null,null,null,null,0]
["Rice Residue (Dried)",null,null,null,null,null,null,null,null,"✔",null,null,null,null,null,null,null,null,null,0]
["Wheat Straw",null,null,null,null,null,null,null,null,null,null,null,null,null,null,null,null,null,null,0]
["Maize Cob",null,null,null,null,null,null,null,null,null,null,null,null,null,null,null,null,null,null,0]
["Coffee Grounds",null,null,null,null,null,null,null,null,null,null,null,null,null,null,null,null,null,null,0]
["Tea Leaves",null,null,null,null,null,null,null,null,null,null,null,null,null,null,null,null,null,null,0]
[null,"Dairy Feedstocks",null,null,null,null,null,null,null,null,null,null,null,null,null,null,null,null,null,0]
["Dairy Wastewater",null,null,null,null,null,null,"✔",null,null,null,null,null,null,null,null,null,null,null,{"$f":"COUNTA(D58:H58)","v":1}]
["Whey - Sweet Cheese",null,null,null,null,null,null,"✔",null,null,null,null,null,null,null,null,null,null,null,1]
["Whey - Acid Cheese",null,null,null,null,null,null,"✔",null,null,null,null,null,null,null,null,null,null,null,1]
[null,"Garden Feedstocks",null,null,null,null,null,null,null,null,null,null,null,null,null,null,null,null,null,0]
["Water Hyacinths",null,null,null,null,null,null,null,null,null,null,null,null,null,null,null,null,null,null,0]
["Leaves",null,null,null,null,null,null,null,null,null,null,null,null,null,null,null,null,null,null,0]
["Grass",null,null,null,null,null,null,null,null,null,null,null,null,null,null,null,null,null,null,0]
["Branches",null,null,null,null,null,null,null,null,"✔",null,null,null,null,null,null,null,null,null,0]
["Wood",null,null,null,null,null,null,null,null,"✔",null,null,null,null,null,null,null,null,null,0]
[null,"Other Organic Municipal Feedstocks",null,null,null,null,null,null,null,null,null,null,null,null,null,null,null,null,null,0]
["Textiles",null,null,null,null,null,null,null,"✔","✔",null,null,null,null,null,null,null,null,null,0]
["Newsprint",null,"✔",null,null,null,null,null,null,"✔",null,null,null,null,null,null,null,null,null,0]
["Corrugated Cardboard",null,"✔",null,null,null,null,null,null,"✔",null,null,null,null,null,null,null,null,null,0]
["Office Paper",null,"✔",null,null,null,null,null,null,"✔",null,null,null,null,null,null,null,null,null,{"$f":"COUNTA(D71:H71)","v":0}]
["Magazines",null,"✔",null,null,null,null,null,null,"✔",null,null,null,null,null,null,null,null,null,0]
["Junk Mail & Paper",null,"✔",null,null,null,null,null,null,"✔",null,null,null,null,null,null,null,null,null,0]
["Folding Cartons",null,"✔",null,null,null,null,null,null,"✔",null,null,null,null,null,null,null,null,null,0]
["Paper Bags And Sacks",null,"✔",null,null,null,null,null,null,"✔",null,null,null,null,null,null,null,null,null,0]
["Paper Non‐Recyclable",null,"✔",null,null,null,null,null,null,"✔",null,null,null,null,null,null,null,null,null,0]
["Human Waste","✔","✔",null,null,null,null,null,null,null,null,null,null,null,null,null,null,null,null,0]
["Graywater","✔","✔",null,null,null,null,"✔","✔",null,null,null,null,null,null,null,null,null,null,1]
["Septage Tank Wastewater","✔","✔",null,null,null,null,"✔","✔","✔",null,null,null,null,null,null,null,null,null,1]
["Composite Wastewater","✔","✔",null,null,null,null,"✔","✔","✔",null,null,null,null,null,null,null,null,null,1]
["Raw Sewage Sludge","✔","✔",null,null,null,null,"✔","✔","✔",null,null,null,null,null,null,null,null,null,1]
["Diverted Municipal Waste (Food Only)",null,null,null,null,null,null,"✔",null,null,null,null,null,null,null,null,null,null,null,1]
["Diverted Municipal Waste (All Organics)","✔","✔",null,null,null,null,"✔","✔","✔",null,null,null,null,null,null,null,null,null,1]
[null,"Kitchen Feedstocks And Food Scraps",null,null,null,null,null,null,null,null,null,null,null,null,null,null,null,null,null,0]
["Mixed Vegetable Waste Only",null,null,null,null,null,null,"✔",null,null,null,null,null,null,null,null,null,null,null,1]
["Mixed Food Waste With Non‐Veg.",null,null,null,null,null,null,"✔",null,"✔",null,null,null,null,null,null,null,null,null,1]
["Bread Feedstocks",null,null,null,null,null,null,"✔",null,null,null,null,null,null,null,null,null,null,null,1]
["Brewery Grain Feedstocks",null,"✔",null,null,null,null,"✔",null,null,null,null,null,null,null,null,null,null,null,1]
["Mixed Cafeteria Or Canteen Waste",null,null,null,null,null,null,"✔",null,null,null,null,null,null,null,null,null,null,null,1]
["Cooked Meat","✔",null,null,null,null,null,"✔",null,"✔",null,null,null,null,null,null,null,null,null,1]
["Boiled Rice",null,null,null,null,null,null,"✔",null,null,null,null,null,null,null,null,null,null,null,1]
["Slaughterhouse Waste (Raw waste)","✔",null,null,null,null,null,null,null,"✔"]
["Slaughterhouse Waste (Animal Hair)","✔",null,null,null,null,null,null,null,"✔"]
["Slaughterhouse Waste (Blood)","✔",null,null,null,null,null,null,null,"✔"]
["Slaughterhouse Waste (Carcass/Paunch)","✔",null,null,null,null,null,null,null,"✔"]
[null,"Seafood Waste Silages",null,null,null,null,null,null,null,null,null,null,null,null,null,null,null,null,null,0]
["Pacific Saury Fish Waste Silage",null,null,null,null,null,null,"✔",null,"✔",null,null,null,null,null,null,null,null,null,1]
["Cuttle Fish Waste Silage",null,null,null,null,null,null,"✔",null,"✔",null,null,null,null,null,null,null,null,null,1]
["Mackerel Fish Waste Silage",null,null,null,null,null,null,"✔",null,"✔",null,null,null,null,null,null,null,null,null,1]
[null,"Energy And Cash Crops",null,null,null,null,null,null,null,null,null,null,null,null,null,null,null,null,null,0]
["Agave (Agave sisalana)",null,null,null,null,null,null,null,null,"✔",null,null,null,null,null,null,null,null,null,0]
["Tequila Vinasses",null,"✔",null,null,null,null,"✔",null,"✔",null,null,null,null,null,null,null,null,null,1]
["Sugarcane Pretreated (Bagasse)",null,null,null,null,null,null,null,null,"✔",null,null,null,null,null,null,null,null,null,0]
["Sugarcane Untreated (Bagasse)",null,null,null,null,null,null,null,null,"✔",null,null,null,null,null,null,null,null,null,0]
["Rapeseed Meal",null,null,null,null,null,null,null,null,null,null,null,null,null,null,null,null,null,null,0]
["Sunflower Meal",null,null,null,null,null,null,null,null,null,null,null,null,null,null,null,null,null,null,0]
["Palms (Empty Fruit)",null,null,null,null,null,null,null,null,null,null,null,null,null,null,null,null,null,null,{"$f":"COUNTA(D107:H107)","v":0}]
["Palms (Pressed Fibers)",null,null,null,null,null,null,null,null,null,null,null,null,null,null,null,null,null,null,0]
["Palms (Decanter Cake)",null,null,null,null,null,null,null,null,null,null,null,null,null,null,null,null,null,null,0]
["Pressmud"]
["De-oiled Cake","✔","✔"]
[null,"Other Inputs",null,null,null,null,null,null,null,null,null,null,null,null,null,null,null,null,null,0]
["Added Water",null,null,null,null,null,null,null,null,null,null,null,null,null,null,null,null,null,null,0]
[null,null,null,null,null,null,null,null,null,null,null,null,null,null,null,null,null,null,null,0]

{"sheet":"11-Calibration Factors","index":14,"n_rows":17,"n_cols":3,"rows_kept":17,"cut":false,"hidden":false,"merged":[]}
["Calibration Factors"]
[]
["System Type","Calibration Factor  - low","Calibration Factor  - high"]
["Wet_Mesophilic",0.4008493115035045,0.7304181796609337]
["Wet_Thermophilic",0.57471264367816088,0.57471264367816088]
["Wet_Unheated/Ambient",1.1761938367442956E-2,1.1761938367442956E-2]
["Dry_Mesophilic",0.4008493115035045,0.7304181796609337]
["Dry_Thermophilic",0.57471264367816088,0.57471264367816088]
["Dry_Unheated/Ambient",1.1761938367442956E-2,1.1761938367442956E-2]
[]
[]
["Mesophilic_Wet"]
["Thermophilic_Wet"]
["Unheated/Ambient_Wet"]
["Mesophilic_Dry"]
["Thermophilic_Dry"]
["Unheated/Ambient_Dry"]

{"sheet":"12-OrganEcs Input Sheet","index":15,"n_rows":19,"n_cols":7,"rows_kept":19,"cut":false,"hidden":false,"merged":[[1,0,6,6]]}
["OrganEcs Input Sheet"]
["Instructions:\nThe OrganEcs is a tool for estimating the costs associated with an organic waste management project. It provides planning-level assistance to local governments, waste professionals, policymakers, facility operators, and project developers to help them make financial decisions about their potential organic waste management projects.This sheet allows you the ability to directly copy the results from AD Screening Tool to OrganEcs - Anaerobic Digestion Version 3.1. You may manually enter the results generated in the yellow/blue cells into the “Waste Inputs” tab in OrganEcs. More information about OrganEcs can be accessed at https://www.globalmethane.org/resources/details.aspx?resourceid=5175\n"]
[]
[]
[]
[]
[]
[null,"Yard Waste","Food Waste","Manure","Sewage Sludge","Mixed Paper","Corrugated\nCardboard"]
["Tonnes Per Year",{"$f":"SUMIFS('3-Digester Inputs'!$BE$17:$BE$31,'3-Digester Inputs'!$S$17:$S$31,'12-OrganEcs Input Sheet'!B8)*365/1000","v":0},{"$f":"SUMIFS('3-Digester Inputs'!$BE$17:$BE$31,'3-Digester Inputs'!$S$17:$S$31,'12-OrganEcs Input Sheet'!C8)*365/1000","v":0},{"$f":"SUMIFS('3-Digester Inputs'!$BE$17:$BE$31,'3-Digester Inputs'!$S$17:$S$31,'12-OrganEcs Input Sheet'!D8)*365/1000","v":0},{"$f":"SUMIFS('3-Digester Inputs'!$BE$17:$BE$31,'3-Digester Inputs'!$S$17:$S$31,'12-OrganEcs Input Sheet'!E8)*365/1000","v":0},{"$f":"SUMIFS('3-Digester Inputs'!$BE$17:$BE$31,'3-Digester Inputs'!$S$17:$S$31,'12-OrganEcs Input Sheet'!F8)*365/1000","v":0},{"$f":"SUMIFS('3-Digester Inputs'!$BE$17:$BE$31,'3-Digester Inputs'!$S$17:$S$31,'12-OrganEcs Input Sheet'!G8)*365/1000","v":0}]
["Carbon (% dry weight)",{"$f":"IFERROR(B11*B12,\"\")","v":""},{"$f":"IFERROR(C11*C12,\"\")","v":""},"","","",""]
["Nitrogen (% dry weight)",{"$f":"IFERROR(SUMPRODUCT('3-Digester Inputs'!T17:T31,'3-Digester Inputs'!Z17:Z31)/SUM('3-Digester Inputs'!T17:T31),\"\")","v":""},{"$f":"IFERROR(SUMPRODUCT('3-Digester Inputs'!U17:U31,'3-Digester Inputs'!AA17:AA31)/SUM('3-Digester Inputs'!U17:U31),\"\")","v":""},{"$f":"IFERROR(SUMPRODUCT('3-Digester Inputs'!V17:V31,'3-Digester Inputs'!AB17:AB31)/SUM('3-Digester Inputs'!V17:V31),\"\")","v":""},{"$f":"IFERROR(SUMPRODUCT('3-Digester Inputs'!W17:W31,'3-Digester Inputs'!AC17:AC31)/SUM('3-Digester Inputs'!W17:W31),\"\")","v":""},{"$f":"IFERROR(SUMPRODUCT('3-Digester Inputs'!X17:X31,'3-Digester Inputs'!AD17:AD31)/SUM('3-Digester Inputs'!X17:X31),\"\")","v":""},{"$f":"IFERROR(SUMPRODUCT('3-Digester Inputs'!Y17:Y31,'3-Digester Inputs'!AE17:AE31)/SUM('3-Digester Inputs'!Y17:Y31),\"\")","v":""}]
["C:N Ratio (parts carbon to 1 part nitrogen)",{"$f":"IFERROR(SUMPRODUCT('3-Digester Inputs'!AF17:AF31,'3-Digester Inputs'!T17:T31)/SUM('3-Digester Inputs'!T17:T31),\"\")","v":""},{"$f":"IFERROR(SUMPRODUCT('3-Digester Inputs'!AG17:AG31,'3-Digester Inputs'!U17:U31)/SUM('3-Digester Inputs'!U17:U31),\"\")","v":""},{"$f":"IFERROR(SUMPRODUCT('3-Digester Inputs'!AH17:AH31,'3-Digester Inputs'!V17:V31)/SUM('3-Digester Inputs'!V17:V31),\"\")","v":""},{"$f":"IFERROR(SUMPRODUCT('3-Digester Inputs'!AI17:AI31,'3-Digester Inputs'!W17:W31)/SUM('3-Digester Inputs'!W17:W31),\"\")","v":""},{"$f":"IFERROR(SUMPRODUCT('3-Digester Inputs'!AJ17:AJ31,'3-Digester Inputs'!X17:X31)/SUM('3-Digester Inputs'!X17:X31),\"\")","v":""},{"$f":"IFERROR(SUMPRODUCT('3-Digester Inputs'!AK17:AK31,'3-Digester Inputs'!Y17:Y31)/SUM('3-Digester Inputs'!Y17:Y31),\"\")","v":""}]
["Moisture %",{"$f":"IFERROR(SUMPRODUCT('3-Digester Inputs'!AL17:AL31,'3-Digester Inputs'!T17:T31)/SUM('3-Digester Inputs'!T17:T31),\"\")","v":""},{"$f":"IFERROR(SUMPRODUCT('3-Digester Inputs'!AM17:AM31,'3-Digester Inputs'!U17:U31)/SUM('3-Digester Inputs'!U17:U31),\"\")","v":""},{"$f":"IFERROR(SUMPRODUCT('3-Digester Inputs'!AN17:AN31,'3-Digester Inputs'!V17:V31)/SUM('3-Digester Inputs'!V17:V31),\"\")","v":""},{"$f":"IFERROR(SUMPRODUCT('3-Digester Inputs'!AO17:AO31,'3-Digester Inputs'!W17:W31)/SUM('3-Digester Inputs'!W17:W31),\"\")","v":""},{"$f":"IFERROR(SUMPRODUCT('3-Digester Inputs'!AP17:AP31,'3-Digester Inputs'!X17:X31)/SUM('3-Digester Inputs'!X17:X31),\"\")","v":""},{"$f":"IFERROR(SUMPRODUCT('3-Digester Inputs'!AQ17:AQ31,'3-Digester Inputs'!Y17:Y31)/SUM('3-Digester Inputs'!Y17:Y31),\"\")","v":""}]
["Volatile Solids ",{"$f":"IFERROR(SUMPRODUCT('3-Digester Inputs'!AR17:AR31,'3-Digester Inputs'!T17:T31)/SUM('3-Digester Inputs'!T17:T31),\"\")","v":""},{"$f":"IFERROR(SUMPRODUCT('3-Digester Inputs'!AS17:AS31,'3-Digester Inputs'!U17:U31)/SUM('3-Digester Inputs'!U17:U31),\"\")","v":""},{"$f":"IFERROR(SUMPRODUCT('3-Digester Inputs'!AT17:AT31,'3-Digester Inputs'!V17:V31)/SUM('3-Digester Inputs'!V17:V31),\"\")","v":""},{"$f":"IFERROR(SUMPRODUCT('3-Digester Inputs'!AU17:AU31,'3-Digester Inputs'!W17:W31)/SUM('3-Digester Inputs'!W17:W31),\"\")","v":""},{"$f":"IFERROR(SUMPRODUCT('3-Digester Inputs'!AV17:AV31,'3-Digester Inputs'!X17:X31)/SUM('3-Digester Inputs'!X17:X31),\"\")","v":""},{"$f":"IFERROR(SUMPRODUCT('3-Digester Inputs'!AW17:AW31,'3-Digester Inputs'!Y17:Y31)/SUM('3-Digester Inputs'!Y17:Y31),\"\")","v":""}]
["Tonnes Carbon",{"$f":"IFERROR(B10*B9,\"\")","v":""},{"$f":"IFERROR(C10*C9,\"\")","v":""},"","","",""]
["Tonnes Nitrogen",{"$f":"IFERROR(B9*B11,\"\")","v":""},{"$f":"IFERROR(C9*C11,\"\")","v":""},"","","",""]
["Tonnes of Moisture",{"$f":"IFERROR(B13*B9,\"\")","v":""},{"$f":"IFERROR(C13*C9,\"\")","v":""},"","","",""]
["Tonnes of Volatile Solids",{"$f":"IFERROR(B9*B14,\"\")","v":""},{"$f":"IFERROR(C9*C14,\"\")","v":""},"","","",""]
["Methane Yield (m3 CH4/dry metric tonne)",{"$f":"IFERROR(SUMPRODUCT('3-Digester Inputs'!T17:T31,'3-Digester Inputs'!AX17:AX31)/SUM('3-Digester Inputs'!T17:T31)*1000,\"\")","v":""},{"$f":"IFERROR(SUMPRODUCT('3-Digester Inputs'!U17:U31,'3-Digester Inputs'!AY17:AY31)/SUM('3-Digester Inputs'!U17:U31)*1000,\"\")","v":""},{"$f":"IFERROR(SUMPRODUCT('3-Digester Inputs'!V17:V31,'3-Digester Inputs'!AZ17:AZ31)/SUM('3-Digester Inputs'!V17:V31)*1000,\"\")","v":""},{"$f":"IFERROR(SUMPRODUCT('3-Digester Inputs'!W17:W31,'3-Digester Inputs'!BA17:BA31)/SUM('3-Digester Inputs'!W17:W31)*1000,\"\")","v":""},{"$f":"IFERROR(SUMPRODUCT('3-Digester Inputs'!X17:X31,'3-Digester Inputs'!BB17:BB31)/SUM('3-Digester Inputs'!X17:X31)*1000,\"\")","v":""},{"$f":"IFERROR(SUMPRODUCT('3-Digester Inputs'!Y17:Y31,'3-Digester Inputs'!BC17:BC31)/SUM('3-Digester Inputs'!Y17:Y31)*1000,\"\")","v":""}]

{"sheet":"13-MCF","index":16,"n_rows":35,"n_cols":25,"rows_kept":35,"cut":false,"hidden":false,"merged":[[7,2,7,6],[7,7,7,17],[7,18,7,20],[6,2,6,20]]}
["Methane Conversion Factors (MCF)"]
[]
[]
[]
[]
[null,"MCF Values By Temperature for Manure Management Systems"]
[null,null,"Temperature (°C)"]
[null,null,"Cool",null,null,null,null,"Temperate",null,null,null,null,null,null,null,null,null,null,"Warm"]
[null,"System",10,11,12,13,14,15,16,17,18,19,20,21,22,23,24,25,26,27,28]
[null,"Aerobic Treatment",0,0,0,0,0,0,0,0,0,0,0,0,0,0,0,0,0,0,0]
[null,"Alternative Anaerobic Digester",1,1,1,1,1,1,1,1,1,1,1,1,1,1,1,1,1,1,1]
[null,"Cattle and Swine deep bedding <1 mo.",0.03,0.03,0.03,0.03,0.03,0.03,0.03,0.03,0.03,0.03,0.03,0.03,0.03,0.03,0.03,0.03,0.3,0.3,0.3,null,null,null,"Dry lot"]
[null,"Cattle and Swine deep bedding >1 mo.",0.17,0.19,0.2,0.22,0.25,0.27,0.28999999999999998,0.32,0.35,0.39,0.42,0.46,0.5,0.55000000000000004,0.6,0.65,0.71,0.78,0.9,null,null,null,"Liquid Slurry w/ natural crust cover"]
[null,"Composting in Vessel",5.0000000000000001E-3,5.0000000000000001E-3,5.0000000000000001E-3,5.0000000000000001E-3,5.0000000000000001E-3,5.0000000000000001E-3,5.0000000000000001E-3,5.0000000000000001E-3,5.0000000000000001E-3,5.0000000000000001E-3,5.0000000000000001E-3,5.0000000000000001E-3,5.0000000000000001E-3,5.0000000000000001E-3,5.0000000000000001E-3,5.0000000000000001E-3,5.0000000000000001E-3,5.0000000000000001E-3,5.0000000000000001E-3,null,null,null,"Liquid Slurry w/o natural crust cover"]
[null,"Composting Intensive windrow",5.0000000000000001E-3,5.0000000000000001E-3,5.0000000000000001E-3,5.0000000000000001E-3,5.0000000000000001E-3,0.01,0.01,0.01,0.01,0.01,0.01,0.01,0.01,0.01,0.01,0.01,1.4999999999999999E-2,1.4999999999999999E-2,1.4999999999999999E-2,null,null,null,"Pit storage below animal confinements <1 mo."]
[null,"Composting Passive window",5.0000000000000001E-3,5.0000000000000001E-3,5.0000000000000001E-3,5.0000000000000001E-3,5.0000000000000001E-3,0.01,0.01,0.01,0.01,0.01,0.01,0.01,0.01,0.01,0.01,0.01,1.4999999999999999E-2,1.4999999999999999E-2,1.4999999999999999E-2,null,null,null,"Pit storage below animal confinements >1 mo."]
[null,"Composting Static Pile",5.0000000000000001E-3,5.0000000000000001E-3,5.0000000000000001E-3,5.0000000000000001E-3,5.0000000000000001E-3,5.0000000000000001E-3,5.0000000000000001E-3,5.0000000000000001E-3,5.0000000000000001E-3,5.0000000000000001E-3,5.0000000000000001E-3,5.0000000000000001E-3,5.0000000000000001E-3,5.0000000000000001E-3,5.0000000000000001E-3,5.0000000000000001E-3,5.0000000000000001E-3,5.0000000000000001E-3,5.0000000000000001E-3,null,null,null,"Solid Storage"]
[null,"Daily Spread",1E-3,1E-3,1E-3,1E-3,1E-3,0.02,0.02,0.02,0.02,0.02,0.02,0.02,0.02,0.02,0.02,0.02,0.01,0.01,0.01,null,null,null,"Uncovered anaerobic lagoon"]
[null,"Dry lot",0.01,0.01,0.01,0.01,0.01,0.02,0.02,0.02,0.02,0.02,0.02,0.02,0.02,0.02,0.02,0.02,0.02,0.02,0.02]
[null,"Landfill",1,1,1,1,1,1,1,1,1,1,1,1,1,1,1,1,1,1,1]
[null,"Landfill (semi-aerobic) ",0.5,0.5,0.5,0.5,0.5,0.5,0.5,0.5,0.5,0.5,0.5,0.5,0.5,0.5,0.5,0.5,0.5,0.5,0.5]
[null,"Liquid Slurry w/ natural crust cover",0.17,0.19,0.2,0.22,0.25,0.27,0.28999999999999998,0.32,0.35,0.39,0.42,0.46,0.5,0.55000000000000004,0.6,0.65,0.71,0.78,0.8]
[null,"Liquid Slurry w/o natural crust cover",0.1,0.11,0.13,0.14000000000000001,0.15,0.17,0.18,0.2,0.22,0.24,0.26,0.28999999999999998,0.31,0.34,0.37,0.41,0.44,0.48,0.5]
[null,"Open Burning or Burned for Fuel",0.1,0.1,0.1,0.1,0.1,0.1,0.1,0.1,0.1,0.1,0.1,0.1,0.1,0.1,0.1,0.1,0.1,0.1,0.1]
[null,"Pasture/Range/Paddock",0.01,0.01,0.01,0.01,0.01,0.02,0.02,0.02,0.02,0.02,0.02,0.02,0.02,0.02,0.02,0.02,0.02,0.02,0.02]
[null,"Pit storage below animal confinements <1 mo.",0.03,0.03,0.03,0.03,0.03,0.03,0.03,0.03,0.03,0.03,0.03,0.03,0.03,0.03,0.03,0.03,0.03,0.03,0.03]
[null,"Pit storage below animal confinements >1 mo.",0.19,0.19,0.2,0.22,0.25,0.27,0.28999999999999998,0.32,0.35,0.39,0.42,0.46,0.5,0.55000000000000004,0.6,0.65,0.71,0.78,0.8]
[null,"Solid Storage",0.02,0.02,0.02,0.02,0.02,0.04,0.04,0.04,0.04,0.04,0.04,0.04,0.04,0.04,0.04,0.04,0.05,0.05,0.05]
[null,"Uncategoizable Dumpsite",0.6,0.6,0.6,0.6,0.6,0.6,0.6,0.6,0.6,0.6,0.6,0.6,0.6,0.6,0.6,0.6,0.6,0.6,0.6]
[null,"Uncovered anaerobic lagoon",0.66,0.68,0.7,0.71,0.73,0.74,0.75,0.76,0.77,0.77,0.78,0.78,0.78,0.79,0.79,0.79,0.79,0.8,0.8]
[null,"Unmanaged Dumpsite ( <5 m deep)",0.4,0.4,0.4,0.4,0.4,0.4,0.4,0.4,0.4,0.4,0.4,0.4,0.4,0.4,0.4,0.4,0.4,0.4,0.4]
[null,"Unmanaged Dumpsite ( >5 m deep) and /or high water table ",0.8,0.8,0.8,0.8,0.8,0.8,0.8,0.8,0.8,0.8,0.8,0.8,0.8,0.8,0.8,0.8,0.8,0.8,0.8]
[null,"Sources: \n"]
[null,"(1) California Air Resources Board. “Compliance Offset Protocol Livestock Projects Capturing and Destroying Methane FromManure Management Systems,” November 14, 2014. https://www.arb.ca.gov/regact/2014/capandtrade14/ctlivestockprotocol.pdf."]
[null,"(2) Pipatti, Ritta, et al. “Chapter 3: Solid Waste Disposal.” In 2006 IPCC Guidelines for National Greenhouse Gas Inventories, 2006. https://www.ipcc-nggip.iges.or.jp/public/2006gl/pdf/5_Volume5/V5_3_Ch3_SWDS.pdf.\n"]

{"sheet":"14-References","index":17,"n_rows":73,"n_cols":2,"rows_kept":73,"cut":false,"hidden":false,"merged":[]}
[null,"References and Background Information"]
[]
[null,"Agrawal, Karan, B. R. Barbe, and Shareena Khan. 2009. “Biogas from Pressmud.” IOSR Journal of Mechanical and Civil Engineering, 37–41."]
[null,"Alucilja, Renel M., Pepito M. Bato, Delfin S. Suministrado, and Engelbert K. Peralta. “Determination of Some Physical and Mechanical Properties of Oil Palm Fruit.” USM R&D Journal 21, no. 2 (December 31, 2013): 61–70."]
[null,"Antonopoulou, Georgia, Katerina Stamatelatou, Nikolaos Venetsaneas, Michael Kornaros, and Gerasimos Lyberatos. “Biohydrogen and Methane Production from Cheese Whey in a Two-Stage Anaerobic Process.” Industrial & Engineering Chemistry Research 47, no. 15 (August 1, 2008): 5227–33. https://doi.org/10.1021/ie071622x."]
[null,"Antonopoulou, G, Katerina Stamatelatou, and Gerasimos Lyberatos. Exploitation of Rapeseed and Sunflower Residues for Methane Generation through Anaerobic Digestion: The Effect of Pretreatment. Vol. 20, 2010. https://doi.org/10.3303/CET1020043."]
[null,"Ariunbaatar, Javkhlan, Antonio Panico, Giovanni Esposito, Francesco Pirozzi, and Piet N. L. Lens. “Pretreatment Methods to Enhance Anaerobic Digestion of Organic Solid Waste.” Applied Energy 123 (June 15, 2014): 143–56. https://doi.org/10.1016/j.apenergy.2014.02.035.\n"]
[null,"Bachmann, Nathalie. “Sustainable Biogas Production in Municipal Wastewater Treatment Plants.” IEA Bioenergy, n.d. https://ec.europa.eu/jrc/en/publication/sustainable-biogas-production-municipal-wastewater-treatment-plants."]
[null,"Barua, Visva, and Ajay Kalamdhad. “Water Hyacinth to Biogas: A Review.” Pollution Research 35 (May 15, 2016): 491–501."]
[null,"BP. \"Statistical Review of World Energy,\" June 2018. https://www.bp.com/en/global/corporate/energy-economics/statistical-review-of-world-energy.html"]
[null,"Browne, James D., and Jerry D. Murphy. “Assessment of the Resource Associated with Biomethane from Food Waste.” Applied Energy 104, no. Supplement C (April 1, 2013): 170–77. https://doi.org/10.1016/j.apenergy.2012.11.017."]
[null,"Carolinas Composting Council, and Carolina Recycling Association. “Yes You Can! (Compost and Naturescape),” n.d. www.carolinascompostingcouncil.org."]
[null,"California Air Resources Board. “Compliance Offset Protocol Livestock Projects Capturing and Destroying Methane FromManure Management Systems,” November 14, 2014. https://www.arb.ca.gov/regact/2014/capandtrade14/ctlivestockprotocol.pdf."]
[null,"Chaikitkaew, Srisuda, Prawit Kongjan, and Sompong O-Thong. “Biogas Production from Biomass Residues of Palm Oil Mill by Solid State Anaerobic Digestion.” Energy Procedia, 2015 International Conference on Alternative Energy in Developing Countries and Emerging Economies, 79 (November 1, 2015): 838–44. https://doi.org/10.1016/j.egypro.2015.11.575."]
[null,"Chavez-Vazquez, Mariana, and David M. Bagley. 2002. “Evaluation Of The Performance Of Different Anaerobic Digestion Technologies For Solid Waste Treatment.” In . Niagara."]
[null,"Chen, Ye, Jay J. Cheng, and Kurt S. Creamer. “Inhibition of Anaerobic Digestion Process: A Review.” Bioresource Technology 99, no. 10 (July 1, 2008): 4044–64. https://doi.org/10.1016/j.biortech.2007.01.057.\n"]
[null,"Contreras, L. M., H. Schelle, C. R. Sebrango, and I. Pereda. “Methane Potential and Biodegradability of Rice Straw, Rice Husk and Rice Residues from the Drying Process.” Water Science and Technology 65, no. 6 (February 1, 2012): 1142–49. https://doi.org/10.2166/wst.2012.951."]
[null,"Cornell Waste Management Institute. “Yard Waste Composting.” Cornell University, 1990."]
[null,"Dubrovskis, V., and I. Plume. “Biogas from Wastes of Pumpkin, Marrow and Apple.” Agronomy Research 15, no. 1 (2017): 69–78."]
[null,"Environmental Protection Agency (EPA).\"eGRID Summary Tables 2022.\" 2024. https://www.epa.gov/system/files/documents/2024-01/egrid2022_summary_tables.pdf"]
[null,"Food and Agriculture Orginization of the United Nations (FAO). “Table 32. Description of Major Feedstuffs Available in the Philippines.” Aquaculture Feed and Fertilizer Resource Atlas of the Philippines, 1997. http://www.fao.org/docrep/003/W6928E/w6928e17.htm."]
[null,"Fen, Chen, Yu Gao, Li Wei, Liu Fenwu, Zhang Wuping, Bu Yushan, and Li Xiaomei. “Maximal Methane Potential of Different Animal Manures Collected in Northwest Region of China.” International Journal of Agricultural and Biological Engineering 10, no. 1 (January 23, 2017): 202–8. https://doi.org/10.3965/ijabe.v10i1.2469."]
[null,"Gao, Ruifang, Xufeng Yuan, Wanbin Zhu, Xiaofen Wang, Shaojiang Chen, Xu Cheng, and Zongjun Cui. “Methane Yield through Anaerobic Digestion for Various Maize Varieties in China.” Bioresource Technology 118, no. Supplement C (August 1, 2012): 611–14. https://doi.org/10.1016/j.biortech.2012.05.051."]
[null,"Gautam, Dhan Prasad, Shafiqur Rahman, Md Saidul Borhan, and Chanda Engel. “The Effect of Feeding High Fat Diet to Beef Cattle on Manure Composition and Gaseous Emission from a Feedlot Pen Surface.” Journal of Animal Science and Technology 58 (June 10, 2016). https://doi.org/10.1186/s40781-016-0104-6."]
[null,"Goel, B, D. C Pant, and V. V. N Kishore. “Two-Phase Anaerobic Digestion of Spent Tea Leaves for Biogas and Manure Generation.” Bioresource Technology 80, no. 2 (November 1, 2001): 153–56. https://doi.org/10.1016/S0960-8524(01)00083-9."]
[null,"Hamilton, Douglas. “Methane Production Potential of Waste Materials.” Oklahoma State University, n.d. pods.dasnr.okstate.edu/docushare/dsweb/Get/Document-8544/BAE-1762web.pdf."]
[null,"Hapman. 2019. “Bulk Material Density Guide.” Hapman. 2019. https://www.hapman.com/education-support/bulk-material-density-guide/.\n"]
[null,"Hejnfelt, Anette, and Irini Angelidaki. 2009. “Anaerobic Digestion of Slaughterhouse By-Products.” Biomass and Bioenergy 33 (8): 1046–54. https://doi.org/10.1016/j.biombioe.2009.03.004.\n"]
[null,"International Energy Agency (IEA). \"CO2 Emissions from Fuel Combustion (2018 Edition).\" OECD/IEA, Paris, 2018. https://webstore.iea.org/co2-emissions-from-fuel-combustion-2018-highlights"]
[null,"International Renewable Energy Agency (IRENA). “Measuring Small-Scale Biogas Capacity and Production.” Abu Dhabi: IRENA, 2016. http://www.irena.org/menu/index.aspx?mnu=Subcat&PriMenuID=36&CatID=141&SubcatID=3798."]
[null,"Inyang, Mandu, Bin Gao, Pratap Pullammanappallil, Wenchuan Ding, and Andrew R. Zimmerman. “Biochar from Anaerobically Digested Sugarcane Bagasse.” Bioresource Technology 101, no. 22 (November 1, 2010): 8868–72. https://doi.org/10.1016/j.biortech.2010.06.088."]
[null,"Intergovernmental Panel on Climate Change (IPCC). \"2006 IPCC Guidelines for National Greenhouse Has Inventories, Volume 2: Energy, Chapter 2: Stationary Combustion.\" https://www.ipcc-nggip.iges.or.jp/public/2006gl/pdf/2_Volume2/V2_2_Ch2_Stationary_Combustion.pdf"]
[null,"Jimoh, M. O., and J. O. Babatola. 2018. “Investigative Study on the Use of De-Oiled Palm Kernel Cake for Biogas Production.” Nigerian Journal of Technological Development 15 (3): 72. https://doi.org/10.4314/njtd.v15i3.1."]
[null,"Kafle, Gopi Krishna, Sang Hun Kim, and Kyung Ill Sung. “Ensiling of Fish Industry Waste for Biogas Production: A Lab Scale Evaluation of Biochemical Methane Potential (BMP) and Kinetics.” Bioresource Technology 127, no. Supplement C (January 1, 2013): 326–36. https://doi.org/10.1016/j.biortech.2012.09.032."]
[null,"Kryvoruchko, Vitaliy, Andrea Machmüller, Vitomir Bodiroza, Barbara Amon, and Thomas Amon. 2009. “Anaerobic Digestion of By-Products of Sugar Beet and Starch Potato Processing.” Biomass and Bioenergy 33 (4): 620–27. https://doi.org/10.1016/j.biombioe.2008.10.003."]
[null,"Lefebvre, O., S. Quentin, M. Torrijos, J. J. Godon, J. P. Delgenès, and R. Moletta. “Impact of Increasing NaCl Concentrations on the Performance and Community Composition of Two Anaerobic Reactors.” Applied Microbiology and Biotechnology 75, no. 1 (May 1, 2007): 61–69. https://doi.org/10.1007/s00253-006-0799-2.\n"]
[null,"Lehtomäki, A., T. A. Viinikainen, and J. A. Rintala. 2008. “Screening Boreal Energy Crops and Crop Residues for Methane Biofuel Production.” Biomass and Bioenergy 32 (6): 541–50. https://doi.org/10.1016/j.biombioe.2007.11.013.\n"]
[null,"Leke, Luter, Anne Ada Ogbanje, Dekaa Henry Terfa, and Tyoalumun Ikyaagba. “Production of Bio-Gas from Maize Cobs.” International Journal of Energy and Environment 4, no. 1 (2013): 153–60."]
[null,"Levis, James, and Morton Barlaz. “Anaerobic Digestion Process Model Documentation.” Raleigh, NC: North Carolina State University, 2013."]
[null,"Liu, Z., Xu, A., & Long, B. (2011). Energy from combustion of rice straw: status and challenges to China. Energy and Power Engineering, 3(03), 325."]
[null,"Mathias, Thiago Rocha dos Santos, Verônica Marinho Fontes Alexandre, Magali Christe Cammarota, Pedro Paulo Moretzsohn de Mello, and Eliana Flávia Camporese Sérvulo. “Characterization and Determination of Brewer’s Solid Wastes Composition.” Journal of the Institute of Brewing 121, no. 3 (July 1, 2015): 400–404. https://doi.org/10.1002/jib.229."]
[null,"Merrick, Norma C. “Measurement of Density and Medullation in Wool.” Thesis, Lincoln University, 1998. https://researcharchive.lincoln.ac.nz/handle/10182/3014."]
[null,"Mes, T.Z.D. de, A.J.M. Stams, J.H. Reith, and G. Zeeman. “Chapter 4. Methane Production by Anaerobic Digestion of Wastewater and Solid Wastes.” In Biomethane and Biohydrogen. Status and Perspectives of Biological Methane and Hydrogen Production. Netherlands Agency for Energy and the Environment, 2003."]
[null,"Mönch-Tegeder, Matthias, Andreas Lemmer, Hans Oechsner, and Thomas Jungbluth. “Investigation of the Methane Potential of Horse Manure.” Agricultural Engineering International: CIGR Journal 15, no. 2 (July 1, 2013): 161–72."]
[null,"Muthangya, M, S.O. Hashim, J.M Amana, A.M. Mshandete, and A.K. Kivasi. “Auditing and Characteristics of Sisal Processing Waste: A Bioresource for Value Addition.” ARPN Journal of Agricultural and Biological Science 8, no. 7 (July 2013): 518–24."]
[null,"Naik, R.K, R.C. Dash, D Behera, and A.K. Goel. “Studies On Physical Properties Of Sisal (Agave Sisalana) Plant Leaves.” International Journal of Agriculture Sciences 8, no. 48 (2016): 2004–7."]
[null,"Petersson, Anneli, Mette H. Thomsen, Henrik Hauggaard-Nielsen, and Anne-Belinda Thomsen. “Potential Bioethanol and Biogas Production Using Lignocellulosic Biomass from Winter Rye, Oilseed Rape and Faba Bean.” Biomass and Bioenergy 31, no. 11 (November 1, 2007): 812–19. https://doi.org/10.1016/j.biombioe.2007.06.001."]
[null,"Pipatti, Ritta, and et al. “Chapter 3: Solid Waste Disposal.” In 2006 IPCC Guidelines for National Greenhouse Gas Inventories, 2006. https://www.ipcc-nggip.iges.or.jp/public/2006gl/pdf/5_Volume5/V5_3_Ch3_SWDS.pdf."]
[null,"Priadi, Cindy, Dwica Wulandari, Iftita Rahmatika, and Setyo Sarwanto Moersidik. “Biogas Production in the Anaerobic Digestion of Paper Sludge.” APCBEE Procedia, 5th International Conference on Chemical, Biological and Environmental Engineering - ICBEE 2013 & 2nd International Conference on Civil Engineering - ICCEN 2013, 9, no. Supplement C (January 1, 2014): 65–69. https://doi.org/10.1016/j.apcbee.2014.01.012."]
[null,"Ramírez, José Carmen Ramírez, José Inés Ibarra, Francisco Arce Romero, Petra Rosas Ulloa, José Armando Ulloa, Keiko Shirai Matsumoto, Belinda Vallejo Cordoba, and Miguel Ángel Mazorra Manzano. “Preparation of Biological Fish Silage and Its Effect on the Performance and Meat Quality Characteristics of Quails (Coturnix Coturnix Japonica).” Brazilian Archives of Biology and Technology 56, no. 6 (December 2013): 1002–10. https://doi.org/10.1590/S1516-89132013000600016."]
[null,"Rittenschober, Doris, Barbara Stadlmayr, Ruth Charrondiere, Diedelinde Persijn, and Verena Nowak. 2012. “FAO/INFOODS Databases Density Database Version 2.0.” Food and Agriculture Organization of the United Nations."]
[null,"Sacher, Niels, Maria Isabel R. Dumlao, Robert Gensch, and Swiss Federal Institute of Aquatic Science and Technology. 2014. “Direct Use of Biogas.” Sustainable Sanitation and Water Management Toolbox. 2014. https://www.sswm.info/category/implementation-tools/reuse-and-recharge/hardware/energy-products-sludge/direct-use-biogas#reference_book7934."]
[null,"Salman, A. Kh., M. A. E. Al- Rajhi, A. I. El-Rayes, and A. F. Abd El-Mottaleb. “Rapid Composting Of Rice Straw With Some Agriculture Green Residues And Animal Waste Under Full Control Systems.” J.Soil Sci. and Agric. Eng 2, no. 12 (2011): 1229–42."]
[null,"Salter, Andrew. “Crops for Biogas Production; Yields, Suitability and Energy Balances.” presented at the 15th European Biomass Conference, Berlin, Germany, 2007."]
[null,"Sumardiono, Siswo, Aldi Budi Riyanta, Hashfi Hawali Abdul Matin, Tutuk Djoko Kusworo, and Bakti Jos. “Increasing Biogas Production from Sugar Cane Baggase by Anaerobic Co-Digestion with Animal Manure.” MATEC Web of Conferences 101 (2017): 02014. https://doi.org/10.1051/matecconf/201710102014."]
[null,"Sundaranayagi, S., A. Sirajunnisa, and V. Ramasamy. 2017. “Production Of Biogas By Anaerobic Digestion Of Press Mud Using Iron, Cobalt And Nickel.” Indian Journal of Scientific Research 14 (1): 374–77."]
[null,"Suresh, R, and S Vivekanandan. 2017. “Investigation On Edible De-Oiled And Non Edible De-Oiled Cakes In Anaerobic Co- Digestion For Biogas Production.” International Journal of Mechanical Engineering and Technology 8 (1): 7."]
[null,"Tiwari, Ghanshyam, Ajay Kumar Sharma, and Pratap Singh. “Short Communication: Volume-Weight Relationship of Water Hyacinth Plant (Eichhornia Crassipes) Under Axial Loading.” Annals of Arid Zone 44, no. 1 (2005): 101–3."]
[null,"United Nations Framework Convention on Climate Change/Clean Development Mechanism (UNFCCC CDM). \"AMS-III.D. Small-scale Methodology: Methane recovery in animal manure management systems v21,\" September 2017. https://cdm.unfccc.int/filestorage/1/A/W/1AWXEKHVTYF423LCN56Z9GIMQOS8JR/EB96_repan09_AMS-III.Dv21.pdf?t=N1d8cG8wY3ZmfDDEJvUs6CfSuwO8P4-bPZ2h"]
[null,"United States Dept. of Agriculture (USDA). “Chapter 4: Agricultural Waste Characteristics.” In Agricultural Waste Management Field Handbook. Washington D.C.: USDA, 2008."]
[null,"United States Dept. of Agriculture (USDA). “National Nutrient Database for Standard Reference Release 28.” United States Dept. of Agriculture, May 2016. https://www.ars.usda.gov/northeast-area/beltsville-md/beltsville-human-nutrition-research-center/nutrient-data-laboratory/."]
[null,"United States Environmental Protection Agency AgSTAR Program. \"Protocol for Quantifying and Reporting the Performance of Anaerobic Digestion Systems for Livestock Manures, March 2011. https://www.epa.gov/sites/production/files/2014-12/documents/protocol.pdf "]
[null,"Vitez, Tomas, Tomas Koutny, Martin Sotnar, and Jan Chovanec. “On The Spent Coffee Grounds Biogas Production.” ACTA UNIVERSITATIS AGRICULTURAE ET SILVICULTURAE MENDELIANAE BRUNENSIS 64 (November 4, 2016). https://doi.org/http://dx.doi.org/10.11118/actaun201664041279."]
[null,"Ward, Alastair J., Phil J. Hobbs, Peter J. Holliman, and David L. Jones. “Optimisation of the Anaerobic Digestion of Agricultural Resources.” Bioresource Technology 99, no. 17 (November 1, 2008): 7928–40. https://doi.org/10.1016/j.biortech.2008.02.044."]
[null,"Ware, Aidan, and Niamh Power. 2016. “Biogas from Cattle Slaughterhouse Waste: Energy Recovery towards an Energy Self-Sufficient Industry in Ireland.” Renewable Energy 97 (November): 541–49. https://doi.org/10.1016/j.renene.2016.05.068."]
[null,"Wikandari, Rachma, Huong Nguyen, Ria Millati, Claes Niklasson, and Mohammad J. Taherzadeh. “Improvement of Biogas Production from Orange Peel Waste by Leaching of Limonene.” BioMed Research International 2015 (2015). https://doi.org/http://dx.doi.org/10.1155/2015/494182."]
[null,"Wisconsin Department of Natural Resources Bureau of Science Services. “Advanced Anaerobic Digestion Study Guide.” Wisconsin Department of Natural Resources Bureau of Science Services, June 1992.\n"]
[null,"The Waste and Resources Action Programme. “Summary Report – Material Bulk Densities,” 2009.\n"]
[null,"Yan, Hu, Chen Zhao, Jiafu Zhang, Ruihong Zhang, Chunyu Xue, Guangqing Liu, and Chang Chen. “Study on Biomethane Production and Biodegradability of Different Leafy Vegetables in Anaerobic Digestion.” AMB Express 7 (January 25, 2017). https://doi.org/10.1186/s13568-017-0325-1."]
[null,"Yavini, Tsunatu, Kiman Silas, Mustapha Grema, and Jang Luria. “Kinetic Study of Agricultural Wastes Conversion to Biogas Using Cow Dung/Poultry Droppings as Inoculums.” IOSR Journal Of Environmental Science, Toxicology And Food Technology 8, no. 1 (February 2014): 46–51."]
[null,"Zhang, Yue, Charles J. Banks, and Sonia Heaven. “Anaerobic Digestion of Two Biodegradable Municipal Waste Streams.” Journal of Environmental Management 104, no. Supplement C (August 15, 2012): 166–74. https://doi.org/10.1016/j.jenvman.2012.03.043."]
[null,"Zhang, Hai-long, Xiang-ping Li, Jian-ying Qi, Yong-heng Chen, and Jian-de Fang. “Analysis of composition characteristics of municipal solid waste in south China.” Huan Jing Ke Xue Huanjing Kexue 36, no. 1 (January 2015): 325–32."]
[null,"Zheng, Wei, Khamphe Phoungthong, Fan Lü, Li-Ming Shao, and Pin-Jing He. “Evaluation of a Classification Method for Biodegradable Solid Wastes Using Anaerobic Degradation Parameters.” Waste Management 33, no. 12 (December 1, 2013): 2632–40. https://doi.org/10.1016/j.wasman.2013.08.015."]

{"sheet":"15-Help","index":18,"n_rows":1,"n_cols":1,"rows_kept":1,"cut":false,"hidden":false,"merged":[]}
["Help"]

{"sheet":"16-Methodology","index":19,"n_rows":1,"n_cols":2,"rows_kept":1,"cut":false,"hidden":false,"merged":[]}
[null,"Tool Concept Notes"]

{"sheet":"17-Manure Related Reductions","index":20,"n_rows":20,"n_cols":6,"rows_kept":20,"cut":false,"hidden":false,"merged":[]}
["Baseline Emissions from Manure"]
[]
["Annual Manure Volatile Solids",null,null,null,null,"Annual Methane Emissions from Manure"]
["Waste Category","Volatile Solids (% d.w.)","Total Volatile Solids (Mg/year)","Max. Methane Production (B0)  m3 / Mg of VS","Methane Conversion Factor (MCF)","kg CH4 per year"]
[{"$f":"'3-Digester Inputs'!B17","v":0},{"$f":"IFERROR(IF(VLOOKUP(A5,Waste_Item_Table,20,FALSE)=\"Y\",('3-Digester Inputs'!H17*100)/(100-'3-Digester Inputs'!H17),\"\"),\"\")","v":""},{"$f":"IFERROR(IF(VLOOKUP(A5,Waste_Item_Table,20,FALSE)=\"Y\",B5*'3-Digester Inputs'!BE17/1000*365,\"\"),\"\")","v":""},{"$f":"IFERROR(IF(VLOOKUP(A5,Waste_Item_Table,20,FALSE)=\"Y\",VLOOKUP(A5,Waste_Item_Table,17),\"\"),\"\")","v":""},{"$f":"IF(B5<>\"\",IFERROR(VLOOKUP(PrimaryManureMang,'13-MCF'!$B$9:$U$32,MATCH(AvgTemp,'13-MCF'!$B$9:$U$9,0),FALSE),0),\"\")","v":""},{"$f":"IF(LEN(B5)>0,VLOOKUP(A5,'6-Biogas Production'!$O$58:$T$72,4,FALSE)*E5*365*ConversionFactor,\"\")","v":""}]
[{"$f":"'3-Digester Inputs'!B18","v":0},{"$f":"IFERROR(IF(VLOOKUP(A6,Waste_Item_Table,20,FALSE)=\"Y\",('3-Digester Inputs'!H18*100)/(100-'3-Digester Inputs'!H18),\"\"),\"\")","v":""},{"$f":"IFERROR(IF(VLOOKUP(A6,Waste_Item_Table,20,FALSE)=\"Y\",B6*'3-Digester Inputs'!BE18/1000*365,\"\"),\"\")","v":""},{"$f":"IFERROR(IF(VLOOKUP(A6,Waste_Item_Table,20,FALSE)=\"Y\",VLOOKUP(A6,Waste_Item_Table,17),\"\"),\"\")","v":""},{"$f":"IF(B6<>\"\",IFERROR(VLOOKUP(PrimaryManureMang,'13-MCF'!$B$9:$U$32,MATCH(AvgTemp,'13-MCF'!$B$9:$U$9,0),FALSE),0),\"\")","v":""},{"$f":"IF(LEN(B6)>0,VLOOKUP(A6,'6-Biogas Production'!$O$58:$T$72,4,FALSE)*E6*365*ConversionFactor,\"\")","v":""}]
[{"$f":"'3-Digester Inputs'!B19","v":0},{"$f":"IFERROR(IF(VLOOKUP(A7,Waste_Item_Table,20,FALSE)=\"Y\",('3-Digester Inputs'!H19*100)/(100-'3-Digester Inputs'!H19),\"\"),\"\")","v":""},{"$f":"IFERROR(IF(VLOOKUP(A7,Waste_Item_Table,20,FALSE)=\"Y\",B7*'3-Digester Inputs'!BE19/1000*365,\"\"),\"\")","v":""},"",{"$f":"IF(B7<>\"\",IFERROR(VLOOKUP(PrimaryManureMang,'13-MCF'!$B$9:$U$32,MATCH(AvgTemp,'13-MCF'!$B$9:$U$9,0),FALSE),0),\"\")","v":""},{"$f":"IF(LEN(B7)>0,VLOOKUP(A7,'6-Biogas Production'!$O$58:$T$72,4,FALSE)*E7*365*ConversionFactor,\"\")","v":""}]
[{"$f":"'3-Digester Inputs'!B20","v":0},{"$f":"IFERROR(IF(VLOOKUP(A8,Waste_Item_Table,20,FALSE)=\"Y\",('3-Digester Inputs'!H20*100)/(100-'3-Digester Inputs'!H20),\"\"),\"\")","v":""},{"$f":"IFERROR(IF(VLOOKUP(A8,Waste_Item_Table,20,FALSE)=\"Y\",B8*'3-Digester Inputs'!BE20/1000*365,\"\"),\"\")","v":""},"",{"$f":"IF(B8<>\"\",IFERROR(VLOOKUP(PrimaryManureMang,'13-MCF'!$B$9:$U$32,MATCH(AvgTemp,'13-MCF'!$B$9:$U$9,0),FALSE),0),\"\")","v":""},{"$f":"IF(LEN(B8)>0,VLOOKUP(A8,'6-Biogas Production'!$O$58:$T$72,4,FALSE)*E8*365*ConversionFactor,\"\")","v":""}]
[{"$f":"'3-Digester Inputs'!B21","v":0},{"$f":"IFERROR(IF(VLOOKUP(A9,Waste_Item_Table,20,FALSE)=\"Y\",('3-Digester Inputs'!H21*100)/(100-'3-Digester Inputs'!H21),\"\"),\"\")","v":""},{"$f":"IFERROR(IF(VLOOKUP(A9,Waste_Item_Table,20,FALSE)=\"Y\",B9*'3-Digester Inputs'!BE21/1000*365,\"\"),\"\")","v":""},"",{"$f":"IF(B9<>\"\",IFERROR(VLOOKUP(PrimaryManureMang,'13-MCF'!$B$9:$U$32,MATCH(AvgTemp,'13-MCF'!$B$9:$U$9,0),FALSE),0),\"\")","v":""},{"$f":"IF(LEN(B9)>0,VLOOKUP(A9,'6-Biogas Production'!$O$58:$T$72,4,FALSE)*E9*365*ConversionFactor,\"\")","v":""}]
[{"$f":"'3-Digester Inputs'!B22","v":0},{"$f":"IFERROR(IF(VLOOKUP(A10,Waste_Item_Table,20,FALSE)=\"Y\",('3-Digester Inputs'!H22*100)/(100-'3-Digester Inputs'!H22),\"\"),\"\")","v":""},{"$f":"IFERROR(IF(VLOOKUP(A10,Waste_Item_Table,20,FALSE)=\"Y\",B10*'3-Digester Inputs'!BE22/1000*365,\"\"),\"\")","v":""},"",{"$f":"IF(B10<>\"\",IFERROR(VLOOKUP(PrimaryManureMang,'13-MCF'!$B$9:$U$32,MATCH(AvgTemp,'13-MCF'!$B$9:$U$9,0),FALSE),0),\"\")","v":""},{"$f":"IF(LEN(B10)>0,VLOOKUP(A10,'6-Biogas Production'!$O$58:$T$72,4,FALSE)*E10*365*ConversionFactor,\"\")","v":""}]
[{"$f":"'3-Digester Inputs'!B23","v":0},{"$f":"IFERROR(IF(VLOOKUP(A11,Waste_Item_Table,20,FALSE)=\"Y\",('3-Digester Inputs'!H23*100)/(100-'3-Digester Inputs'!H23),\"\"),\"\")","v":""},{"$f":"IFERROR(IF(VLOOKUP(A11,Waste_Item_Table,20,FALSE)=\"Y\",B11*'3-Digester Inputs'!BE23/1000*365,\"\"),\"\")","v":""},"",{"$f":"IF(B11<>\"\",IFERROR(VLOOKUP(PrimaryManureMang,'13-MCF'!$B$9:$U$32,MATCH(AvgTemp,'13-MCF'!$B$9:$U$9,0),FALSE),0),\"\")","v":""},{"$f":"IF(LEN(B11)>0,VLOOKUP(A11,'6-Biogas Production'!$O$58:$T$72,4,FALSE)*E11*365*ConversionFactor,\"\")","v":""}]
[{"$f":"'3-Digester Inputs'!B24","v":0},{"$f":"IFERROR(IF(VLOOKUP(A12,Waste_Item_Table,20,FALSE)=\"Y\",('3-Digester Inputs'!H24*100)/(100-'3-Digester Inputs'!H24),\"\"),\"\")","v":""},{"$f":"IFERROR(IF(VLOOKUP(A12,Waste_Item_Table,20,FALSE)=\"Y\",B12*'3-Digester Inputs'!BE24/1000*365,\"\"),\"\")","v":""},"",{"$f":"IF(B12<>\"\",IFERROR(VLOOKUP(PrimaryManureMang,'13-MCF'!$B$9:$U$32,MATCH(AvgTemp,'13-MCF'!$B$9:$U$9,0),FALSE),0),\"\")","v":""},{"$f":"IF(LEN(B12)>0,VLOOKUP(A12,'6-Biogas Production'!$O$58:$T$72,4,FALSE)*E12*365*ConversionFactor,\"\")","v":""}]
[{"$f":"'3-Digester Inputs'!B25","v":0},{"$f":"IFERROR(IF(VLOOKUP(A13,Waste_Item_Table,20,FALSE)=\"Y\",('3-Digester Inputs'!H25*100)/(100-'3-Digester Inputs'!H25),\"\"),\"\")","v":""},{"$f":"IFERROR(IF(VLOOKUP(A13,Waste_Item_Table,20,FALSE)=\"Y\",B13*'3-Digester Inputs'!BE25/1000*365,\"\"),\"\")","v":""},"",{"$f":"IF(B13<>\"\",IFERROR(VLOOKUP(PrimaryManureMang,'13-MCF'!$B$9:$U$32,MATCH(AvgTemp,'13-MCF'!$B$9:$U$9,0),FALSE),0),\"\")","v":""},{"$f":"IF(LEN(B13)>0,VLOOKUP(A13,'6-Biogas Production'!$O$58:$T$72,4,FALSE)*E13*365*ConversionFactor,\"\")","v":""}]
[{"$f":"'3-Digester Inputs'!B26","v":0},{"$f":"IFERROR(IF(VLOOKUP(A14,Waste_Item_Table,20,FALSE)=\"Y\",('3-Digester Inputs'!H26*100)/(100-'3-Digester Inputs'!H26),\"\"),\"\")","v":""},{"$f":"IFERROR(IF(VLOOKUP(A14,Waste_Item_Table,20,FALSE)=\"Y\",B14*'3-Digester Inputs'!BE26/1000*365,\"\"),\"\")","v":""},"",{"$f":"IF(B14<>\"\",IFERROR(VLOOKUP(PrimaryManureMang,'13-MCF'!$B$9:$U$32,MATCH(AvgTemp,'13-MCF'!$B$9:$U$9,0),FALSE),0),\"\")","v":""},{"$f":"IF(LEN(B14)>0,VLOOKUP(A14,'6-Biogas Production'!$O$58:$T$72,4,FALSE)*E14*365*ConversionFactor,\"\")","v":""}]
[{"$f":"'3-Digester Inputs'!B27","v":0},{"$f":"IFERROR(IF(VLOOKUP(A15,Waste_Item_Table,20,FALSE)=\"Y\",('3-Digester Inputs'!H27*100)/(100-'3-Digester Inputs'!H27),\"\"),\"\")","v":""},{"$f":"IFERROR(IF(VLOOKUP(A15,Waste_Item_Table,20,FALSE)=\"Y\",B15*'3-Digester Inputs'!BE27/1000*365,\"\"),\"\")","v":""},"",{"$f":"IF(B15<>\"\",IFERROR(VLOOKUP(PrimaryManureMang,'13-MCF'!$B$9:$U$32,MATCH(AvgTemp,'13-MCF'!$B$9:$U$9,0),FALSE),0),\"\")","v":""},{"$f":"IF(LEN(B15)>0,VLOOKUP(A15,'6-Biogas Production'!$O$58:$T$72,4,FALSE)*E15*365*ConversionFactor,\"\")","v":""}]
[{"$f":"'3-Digester Inputs'!B28","v":0},{"$f":"IFERROR(IF(VLOOKUP(A16,Waste_Item_Table,20,FALSE)=\"Y\",('3-Digester Inputs'!H28*100)/(100-'3-Digester Inputs'!H28),\"\"),\"\")","v":""},{"$f":"IFERROR(IF(VLOOKUP(A16,Waste_Item_Table,20,FALSE)=\"Y\",B16*'3-Digester Inputs'!BE28/1000*365,\"\"),\"\")","v":""},"",{"$f":"IF(B16<>\"\",IFERROR(VLOOKUP(PrimaryManureMang,'13-MCF'!$B$9:$U$32,MATCH(AvgTemp,'13-MCF'!$B$9:$U$9,0),FALSE),0),\"\")","v":""},{"$f":"IF(LEN(B16)>0,VLOOKUP(A16,'6-Biogas Production'!$O$58:$T$72,4,FALSE)*E16*365*ConversionFactor,\"\")","v":""}]
[{"$f":"'3-Digester Inputs'!B29","v":0},{"$f":"IFERROR(IF(VLOOKUP(A17,Waste_Item_Table,20,FALSE)=\"Y\",('3-Digester Inputs'!H29*100)/(100-'3-Digester Inputs'!H29),\"\"),\"\")","v":""},{"$f":"IFERROR(IF(VLOOKUP(A17,Waste_Item_Table,20,FALSE)=\"Y\",B17*'3-Digester Inputs'!BE29/1000*365,\"\"),\"\")","v":""},"",{"$f":"IF(B17<>\"\",IFERROR(VLOOKUP(PrimaryManureMang,'13-MCF'!$B$9:$U$32,MATCH(AvgTemp,'13-MCF'!$B$9:$U$9,0),FALSE),0),\"\")","v":""},{"$f":"IF(LEN(B17)>0,VLOOKUP(A17,'6-Biogas Production'!$O$58:$T$72,4,FALSE)*E17*365*ConversionFactor,\"\")","v":""}]
[{"$f":"'3-Digester Inputs'!B30","v":0},{"$f":"IFERROR(IF(VLOOKUP(A18,Waste_Item_Table,20,FALSE)=\"Y\",('3-Digester Inputs'!H30*100)/(100-'3-Digester Inputs'!H30),\"\"),\"\")","v":""},{"$f":"IFERROR(IF(VLOOKUP(A18,Waste_Item_Table,20,FALSE)=\"Y\",B18*'3-Digester Inputs'!BE30/1000*365,\"\"),\"\")","v":""},"",{"$f":"IF(B18<>\"\",IFERROR(VLOOKUP(PrimaryManureMang,'13-MCF'!$B$9:$U$32,MATCH(AvgTemp,'13-MCF'!$B$9:$U$9,0),FALSE),0),\"\")","v":""},{"$f":"IF(LEN(B18)>0,VLOOKUP(A18,'6-Biogas Production'!$O$58:$T$72,4,FALSE)*E18*365*ConversionFactor,\"\")","v":""}]
[{"$f":"'3-Digester Inputs'!B31","v":0},{"$f":"IFERROR(IF(VLOOKUP(A19,Waste_Item_Table,20,FALSE)=\"Y\",('3-Digester Inputs'!H31*100)/(100-'3-Digester Inputs'!H31),\"\"),\"\")","v":""},{"$f":"IFERROR(IF(VLOOKUP(A19,Waste_Item_Table,20,FALSE)=\"Y\",B19*'3-Digester Inputs'!BE31/1000*365,\"\"),\"\")","v":""},"",{"$f":"IF(B19<>\"\",IFERROR(VLOOKUP(PrimaryManureMang,'13-MCF'!$B$9:$U$32,MATCH(AvgTemp,'13-MCF'!$B$9:$U$9,0),FALSE),0),\"\")","v":""},{"$f":"IF(LEN(B19)>0,VLOOKUP(A19,'6-Biogas Production'!$O$58:$T$72,4,FALSE)*E19*365*ConversionFactor,\"\")","v":""}]
["Total","na",null,"na","na",{"$f":"SUM(F5:F19)","v":0}]

{"sheet":"18-Other Wastes Reductions","index":21,"n_rows":20,"n_cols":6,"rows_kept":20,"cut":false,"hidden":false,"merged":[]}
["Baseline Emissions from Co-Digested Waste"]
[]
["Annual Manure Volatile Solids",null,null,null,null,"Annual Methane Emissions from Waste"]
["Waste Category","Volatile Solids (% d.w.)","Total Volatile Solids (Mg/year)","Max. Methane Production (B0)  m3 / Mg of VS","Methane Conversion Factor","kg CH4 per year"]
[{"$f":"IFERROR('3-Digester Inputs'!B17,\"-\")","v":0},{"$f":"IFERROR(IF(VLOOKUP(A5,Waste_Item_Table,20,FALSE)=\"N\",('3-Digester Inputs'!H17*100)/(100-'3-Digester Inputs'!H17),\"\"),\"\")","v":""},{"$f":"IFERROR(IF(VLOOKUP(A5,Waste_Item_Table,20,FALSE)=\"N\",B5*'3-Digester Inputs'!BE17/1000*365,\"\"),\"\")","v":""},{"$f":"IFERROR(IF(VLOOKUP(A5,Waste_Item_Table,20,FALSE)=\"N\",VLOOKUP(A5,Waste_Item_Table,17,FALSE),\"\"),\"\")","v":""},{"$f":"IF(B5<>\"\",IFERROR(VLOOKUP(PrimaryOtherWasteMng,'13-MCF'!$B$9:$U$32,MATCH(AvgTemp,'13-MCF'!$B$9:$U$9,0),FALSE),0),\"\")","v":""},{"$f":"IF(LEN(B5)>0,VLOOKUP(A5,'6-Biogas Production'!$O$58:$T$72,4,FALSE)*365*E5*ConversionFactor,\"\")","v":""}]
[{"$f":"IFERROR('3-Digester Inputs'!B18,\"-\")","v":0},{"$f":"IFERROR(IF(VLOOKUP(A6,Waste_Item_Table,20,FALSE)=\"N\",('3-Digester Inputs'!H18*100)/(100-'3-Digester Inputs'!H18),\"\"),\"\")","v":""},{"$f":"IFERROR(IF(VLOOKUP(A6,Waste_Item_Table,20,FALSE)=\"N\",B6*'3-Digester Inputs'!BE18/1000*365,\"\"),\"\")","v":""},"",{"$f":"IF(B6<>\"\",IFERROR(VLOOKUP(PrimaryOtherWasteMng,'13-MCF'!$B$9:$U$32,MATCH(AvgTemp,'13-MCF'!$B$9:$U$9,0),FALSE),0),\"\")","v":""},{"$f":"IF(LEN(B6)>0,VLOOKUP(A6,'6-Biogas Production'!$O$58:$T$72,4,FALSE)*365*E6*ConversionFactor,\"\")","v":""}]
[{"$f":"IFERROR('3-Digester Inputs'!B19,\"-\")","v":0},{"$f":"IFERROR(IF(VLOOKUP(A7,Waste_Item_Table,20,FALSE)=\"N\",('3-Digester Inputs'!H19*100)/(100-'3-Digester Inputs'!H19),\"\"),\"\")","v":""},{"$f":"IFERROR(IF(VLOOKUP(A7,Waste_Item_Table,20,FALSE)=\"N\",B7*'3-Digester Inputs'!BE19/1000*365,\"\"),\"\")","v":""},"",{"$f":"IF(B7<>\"\",IFERROR(VLOOKUP(PrimaryOtherWasteMng,'13-MCF'!$B$9:$U$32,MATCH(AvgTemp,'13-MCF'!$B$9:$U$9,0),FALSE),0),\"\")","v":""},{"$f":"IF(LEN(B7)>0,VLOOKUP(A7,'6-Biogas Production'!$O$58:$T$72,4,FALSE)*365*E7*ConversionFactor,\"\")","v":""}]
[{"$f":"IFERROR('3-Digester Inputs'!B20,\"-\")","v":0},{"$f":"IFERROR(IF(VLOOKUP(A8,Waste_Item_Table,20,FALSE)=\"N\",('3-Digester Inputs'!H20*100)/(100-'3-Digester Inputs'!H20),\"\"),\"\")","v":""},{"$f":"IFERROR(IF(VLOOKUP(A8,Waste_Item_Table,20,FALSE)=\"N\",B8*'3-Digester Inputs'!BE20/1000*365,\"\"),\"\")","v":""},"",{"$f":"IF(B8<>\"\",IFERROR(VLOOKUP(PrimaryOtherWasteMng,'13-MCF'!$B$9:$U$32,MATCH(AvgTemp,'13-MCF'!$B$9:$U$9,0),FALSE),0),\"\")","v":""},{"$f":"IF(LEN(B8)>0,VLOOKUP(A8,'6-Biogas Production'!$O$58:$T$72,4,FALSE)*365*E8*ConversionFactor,\"\")","v":""}]
[{"$f":"IFERROR('3-Digester Inputs'!B21,\"-\")","v":0},{"$f":"IFERROR(IF(VLOOKUP(A9,Waste_Item_Table,20,FALSE)=\"N\",('3-Digester Inputs'!H21*100)/(100-'3-Digester Inputs'!H21),\"\"),\"\")","v":""},{"$f":"IFERROR(IF(VLOOKUP(A9,Waste_Item_Table,20,FALSE)=\"N\",B9*'3-Digester Inputs'!BE21/1000*365,\"\"),\"\")","v":""},"",{"$f":"IF(B9<>\"\",IFERROR(VLOOKUP(PrimaryOtherWasteMng,'13-MCF'!$B$9:$U$32,MATCH(AvgTemp,'13-MCF'!$B$9:$U$9,0),FALSE),0),\"\")","v":""},{"$f":"IF(LEN(B9)>0,VLOOKUP(A9,'6-Biogas Production'!$O$58:$T$72,4,FALSE)*365*E9*ConversionFactor,\"\")","v":""}]
[{"$f":"IFERROR('3-Digester Inputs'!B22,\"-\")","v":0},{"$f":"IFERROR(IF(VLOOKUP(A10,Waste_Item_Table,20,FALSE)=\"N\",('3-Digester Inputs'!H22*100)/(100-'3-Digester Inputs'!H22),\"\"),\"\")","v":""},{"$f":"IFERROR(IF(VLOOKUP(A10,Waste_Item_Table,20,FALSE)=\"N\",B10*'3-Digester Inputs'!BE22/1000*365,\"\"),\"\")","v":""},"",{"$f":"IF(B10<>\"\",IFERROR(VLOOKUP(PrimaryOtherWasteMng,'13-MCF'!$B$9:$U$32,MATCH(AvgTemp,'13-MCF'!$B$9:$U$9,0),FALSE),0),\"\")","v":""},{"$f":"IF(LEN(B10)>0,VLOOKUP(A10,'6-Biogas Production'!$O$58:$T$72,4,FALSE)*365*E10*ConversionFactor,\"\")","v":""}]
[{"$f":"IFERROR('3-Digester Inputs'!B23,\"-\")","v":0},{"$f":"IFERROR(IF(VLOOKUP(A11,Waste_Item_Table,20,FALSE)=\"N\",('3-Digester Inputs'!H23*100)/(100-'3-Digester Inputs'!H23),\"\"),\"\")","v":""},{"$f":"IFERROR(IF(VLOOKUP(A11,Waste_Item_Table,20,FALSE)=\"N\",B11*'3-Digester Inputs'!BE23/1000*365,\"\"),\"\")","v":""},"",{"$f":"IF(B11<>\"\",IFERROR(VLOOKUP(PrimaryOtherWasteMng,'13-MCF'!$B$9:$U$32,MATCH(AvgTemp,'13-MCF'!$B$9:$U$9,0),FALSE),0),\"\")","v":""},{"$f":"IF(LEN(B11)>0,VLOOKUP(A11,'6-Biogas Production'!$O$58:$T$72,4,FALSE)*365*E11*ConversionFactor,\"\")","v":""}]
[{"$f":"IFERROR('3-Digester Inputs'!B24,\"-\")","v":0},{"$f":"IFERROR(IF(VLOOKUP(A12,Waste_Item_Table,20,FALSE)=\"N\",('3-Digester Inputs'!H24*100)/(100-'3-Digester Inputs'!H24),\"\"),\"\")","v":""},{"$f":"IFERROR(IF(VLOOKUP(A12,Waste_Item_Table,20,FALSE)=\"N\",B12*'3-Digester Inputs'!BE24/1000*365,\"\"),\"\")","v":""},"",{"$f":"IF(B12<>\"\",IFERROR(VLOOKUP(PrimaryOtherWasteMng,'13-MCF'!$B$9:$U$32,MATCH(AvgTemp,'13-MCF'!$B$9:$U$9,0),FALSE),0),\"\")","v":""},{"$f":"IF(LEN(B12)>0,VLOOKUP(A12,'6-Biogas Production'!$O$58:$T$72,4,FALSE)*365*E12*ConversionFactor,\"\")","v":""}]
[{"$f":"IFERROR('3-Digester Inputs'!B25,\"-\")","v":0},{"$f":"IFERROR(IF(VLOOKUP(A13,Waste_Item_Table,20,FALSE)=\"N\",('3-Digester Inputs'!H25*100)/(100-'3-Digester Inputs'!H25),\"\"),\"\")","v":""},{"$f":"IFERROR(IF(VLOOKUP(A13,Waste_Item_Table,20,FALSE)=\"N\",B13*'3-Digester Inputs'!BE25/1000*365,\"\"),\"\")","v":""},"",{"$f":"IF(B13<>\"\",IFERROR(VLOOKUP(PrimaryOtherWasteMng,'13-MCF'!$B$9:$U$32,MATCH(AvgTemp,'13-MCF'!$B$9:$U$9,0),FALSE),0),\"\")","v":""},{"$f":"IF(LEN(B13)>0,VLOOKUP(A13,'6-Biogas Production'!$O$58:$T$72,4,FALSE)*365*E13*ConversionFactor,\"\")","v":""}]
[{"$f":"IFERROR('3-Digester Inputs'!B26,\"-\")","v":0},{"$f":"IFERROR(IF(VLOOKUP(A14,Waste_Item_Table,20,FALSE)=\"N\",('3-Digester Inputs'!H26*100)/(100-'3-Digester Inputs'!H26),\"\"),\"\")","v":""},{"$f":"IFERROR(IF(VLOOKUP(A14,Waste_Item_Table,20,FALSE)=\"N\",B14*'3-Digester Inputs'!BE26/1000*365,\"\"),\"\")","v":""},"",{"$f":"IF(B14<>\"\",IFERROR(VLOOKUP(PrimaryOtherWasteMng,'13-MCF'!$B$9:$U$32,MATCH(AvgTemp,'13-MCF'!$B$9:$U$9,0),FALSE),0),\"\")","v":""},{"$f":"IF(LEN(B14)>0,VLOOKUP(A14,'6-Biogas Production'!$O$58:$T$72,4,FALSE)*365*E14*ConversionFactor,\"\")","v":""}]
[{"$f":"IFERROR('3-Digester Inputs'!B27,\"-\")","v":0},{"$f":"IFERROR(IF(VLOOKUP(A15,Waste_Item_Table,20,FALSE)=\"N\",('3-Digester Inputs'!H27*100)/(100-'3-Digester Inputs'!H27),\"\"),\"\")","v":""},{"$f":"IFERROR(IF(VLOOKUP(A15,Waste_Item_Table,20,FALSE)=\"N\",B15*'3-Digester Inputs'!BE27/1000*365,\"\"),\"\")","v":""},"",{"$f":"IF(B15<>\"\",IFERROR(VLOOKUP(PrimaryOtherWasteMng,'13-MCF'!$B$9:$U$32,MATCH(AvgTemp,'13-MCF'!$B$9:$U$9,0),FALSE),0),\"\")","v":""},{"$f":"IF(LEN(B15)>0,VLOOKUP(A15,'6-Biogas Production'!$O$58:$T$72,4,FALSE)*365*E15*ConversionFactor,\"\")","v":""}]
[{"$f":"IFERROR('3-Digester Inputs'!B28,\"-\")","v":0},{"$f":"IFERROR(IF(VLOOKUP(A16,Waste_Item_Table,20,FALSE)=\"N\",('3-Digester Inputs'!H28*100)/(100-'3-Digester Inputs'!H28),\"\"),\"\")","v":""},{"$f":"IFERROR(IF(VLOOKUP(A16,Waste_Item_Table,20,FALSE)=\"N\",B16*'3-Digester Inputs'!BE28/1000*365,\"\"),\"\")","v":""},"",{"$f":"IF(B16<>\"\",IFERROR(VLOOKUP(PrimaryOtherWasteMng,'13-MCF'!$B$9:$U$32,MATCH(AvgTemp,'13-MCF'!$B$9:$U$9,0),FALSE),0),\"\")","v":""},{"$f":"IF(LEN(B16)>0,VLOOKUP(A16,'6-Biogas Production'!$O$58:$T$72,4,FALSE)*365*E16*ConversionFactor,\"\")","v":""}]
[{"$f":"IFERROR('3-Digester Inputs'!B29,\"-\")","v":0},{"$f":"IFERROR(IF(VLOOKUP(A17,Waste_Item_Table,20,FALSE)=\"N\",('3-Digester Inputs'!H29*100)/(100-'3-Digester Inputs'!H29),\"\"),\"\")","v":""},{"$f":"IFERROR(IF(VLOOKUP(A17,Waste_Item_Table,20,FALSE)=\"N\",B17*'3-Digester Inputs'!BE29/1000*365,\"\"),\"\")","v":""},"",{"$f":"IF(B17<>\"\",IFERROR(VLOOKUP(PrimaryOtherWasteMng,'13-MCF'!$B$9:$U$32,MATCH(AvgTemp,'13-MCF'!$B$9:$U$9,0),FALSE),0),\"\")","v":""},{"$f":"IF(LEN(B17)>0,VLOOKUP(A17,'6-Biogas Production'!$O$58:$T$72,4,FALSE)*365*E17*ConversionFactor,\"\")","v":""}]
[{"$f":"IFERROR('3-Digester Inputs'!B30,\"-\")","v":0},{"$f":"IFERROR(IF(VLOOKUP(A18,Waste_Item_Table,20,FALSE)=\"N\",('3-Digester Inputs'!H30*100)/(100-'3-Digester Inputs'!H30),\"\"),\"\")","v":""},{"$f":"IFERROR(IF(VLOOKUP(A18,Waste_Item_Table,20,FALSE)=\"N\",B18*'3-Digester Inputs'!BE30/1000*365,\"\"),\"\")","v":""},"",{"$f":"IF(B18<>\"\",IFERROR(VLOOKUP(PrimaryOtherWasteMng,'13-MCF'!$B$9:$U$32,MATCH(AvgTemp,'13-MCF'!$B$9:$U$9,0),FALSE),0),\"\")","v":""},{"$f":"IF(LEN(B18)>0,VLOOKUP(A18,'6-Biogas Production'!$O$58:$T$72,4,FALSE)*365*E18*ConversionFactor,\"\")","v":""}]
[{"$f":"IFERROR('3-Digester Inputs'!B31,\"-\")","v":0},{"$f":"IFERROR(IF(VLOOKUP(A19,Waste_Item_Table,20,FALSE)=\"N\",('3-Digester Inputs'!H31*100)/(100-'3-Digester Inputs'!H31),\"\"),\"\")","v":""},{"$f":"IFERROR(IF(VLOOKUP(A19,Waste_Item_Table,20,FALSE)=\"N\",B19*'3-Digester Inputs'!BE31/1000*365,\"\"),\"\")","v":""},"",{"$f":"IF(B19<>\"\",IFERROR(VLOOKUP(PrimaryOtherWasteMng,'13-MCF'!$B$9:$U$32,MATCH(AvgTemp,'13-MCF'!$B$9:$U$9,0),FALSE),0),\"\")","v":""},{"$f":"IF(LEN(B19)>0,VLOOKUP(A19,'6-Biogas Production'!$O$58:$T$72,4,FALSE)*365*E19*ConversionFactor,\"\")","v":""}]
["Total","na",{"$f":"SUM(C5:C19)","v":0},"na","na",{"$f":"SUM(F5:F19)","v":0}]

{"sheet":"19-Storage","index":22,"n_rows":20,"n_cols":6,"rows_kept":20,"cut":false,"hidden":false,"merged":[]}
["Temporary Storage Emissions from all Wastes"]
[]
["Annual Manure Volatile Solids",null,null,null,null,"Annual Methane Emissions from Storage"]
["Waste Category","Volatile Solids (% d.w.)","Total Volatile Solids (Mg/day)","Max. Methane Production (B0)  m3 / Mg of VS","Methane Conversion Factor","kg CH4 per year"]
[{"$f":"IFERROR('3-Digester Inputs'!B17,\"-\")","v":0},{"$f":"IFERROR(('3-Digester Inputs'!H17*100)/(100-'3-Digester Inputs'!H17),\"\")","v":""},{"$f":"IFERROR(B5*'3-Digester Inputs'!BE17/1000,\"\")","v":""},{"$f":"IFERROR(VLOOKUP(A5,Waste_Item_Table,17),\"\")","v":""},{"$f":"IF(B5<>\"\",IFERROR(VLOOKUP(StorageMng,'13-MCF'!$B$9:$U$32,MATCH(AvgTemp,'13-MCF'!$B$9:$U$9,0),FALSE),0),\"\")","v":""},{"$f":"IF(LEN(B5)>0,VLOOKUP(A5,'6-Biogas Production'!$O$58:$T$72,4,FALSE)*E5*ConversionFactor*Average_Days_Waste_Stored,\"\")","v":""}]
[{"$f":"IFERROR('3-Digester Inputs'!B18,\"-\")","v":0},{"$f":"IFERROR(('3-Digester Inputs'!H18*100)/(100-'3-Digester Inputs'!H18),\"\")","v":""},{"$f":"IFERROR(B6*'3-Digester Inputs'!BE18/1000,\"\")","v":""},"",{"$f":"IF(B6<>\"\",IFERROR(VLOOKUP(StorageMng,'13-MCF'!$B$9:$U$32,MATCH(AvgTemp,'13-MCF'!$B$9:$U$9,0),FALSE),0),\"\")","v":""},{"$f":"IF(LEN(B6)>0,VLOOKUP(A6,'6-Biogas Production'!$O$58:$T$72,4,FALSE)*E6*ConversionFactor*Average_Days_Waste_Stored,\"\")","v":""}]
[{"$f":"IFERROR('3-Digester Inputs'!B19,\"-\")","v":0},{"$f":"IFERROR(('3-Digester Inputs'!H19*100)/(100-'3-Digester Inputs'!H19),\"\")","v":""},{"$f":"IFERROR(B7*'3-Digester Inputs'!BE19/1000,\"\")","v":""},"",{"$f":"IF(B7<>\"\",IFERROR(VLOOKUP(StorageMng,'13-MCF'!$B$9:$U$32,MATCH(AvgTemp,'13-MCF'!$B$9:$U$9,0),FALSE),0),\"\")","v":""},{"$f":"IF(LEN(B7)>0,VLOOKUP(A7,'6-Biogas Production'!$O$58:$T$72,4,FALSE)*E7*ConversionFactor*Average_Days_Waste_Stored,\"\")","v":""}]
[{"$f":"IFERROR('3-Digester Inputs'!B20,\"-\")","v":0},{"$f":"IFERROR(('3-Digester Inputs'!H20*100)/(100-'3-Digester Inputs'!H20),\"\")","v":""},{"$f":"IFERROR(B8*'3-Digester Inputs'!BE20/1000,\"\")","v":""},"",{"$f":"IF(B8<>\"\",IFERROR(VLOOKUP(StorageMng,'13-MCF'!$B$9:$U$32,MATCH(AvgTemp,'13-MCF'!$B$9:$U$9,0),FALSE),0),\"\")","v":""},{"$f":"IF(LEN(B8)>0,VLOOKUP(A8,'6-Biogas Production'!$O$58:$T$72,4,FALSE)*E8*ConversionFactor*Average_Days_Waste_Stored,\"\")","v":""}]
[{"$f":"IFERROR('3-Digester Inputs'!B21,\"-\")","v":0},{"$f":"IFERROR(('3-Digester Inputs'!H21*100)/(100-'3-Digester Inputs'!H21),\"\")","v":""},{"$f":"IFERROR(B9*'3-Digester Inputs'!BE21/1000,\"\")","v":""},"",{"$f":"IF(B9<>\"\",IFERROR(VLOOKUP(StorageMng,'13-MCF'!$B$9:$U$32,MATCH(AvgTemp,'13-MCF'!$B$9:$U$9,0),FALSE),0),\"\")","v":""},{"$f":"IF(LEN(B9)>0,VLOOKUP(A9,'6-Biogas Production'!$O$58:$T$72,4,FALSE)*E9*ConversionFactor*Average_Days_Waste_Stored,\"\")","v":""}]
[{"$f":"IFERROR('3-Digester Inputs'!B22,\"-\")","v":0},{"$f":"IFERROR(('3-Digester Inputs'!H22*100)/(100-'3-Digester Inputs'!H22),\"\")","v":""},{"$f":"IFERROR(B10*'3-Digester Inputs'!BE22/1000,\"\")","v":""},"",{"$f":"IF(B10<>\"\",IFERROR(VLOOKUP(StorageMng,'13-MCF'!$B$9:$U$32,MATCH(AvgTemp,'13-MCF'!$B$9:$U$9,0),FALSE),0),\"\")","v":""},{"$f":"IF(LEN(B10)>0,VLOOKUP(A10,'6-Biogas Production'!$O$58:$T$72,4,FALSE)*E10*ConversionFactor*Average_Days_Waste_Stored,\"\")","v":""}]
[{"$f":"IFERROR('3-Digester Inputs'!B23,\"-\")","v":0},{"$f":"IFERROR(('3-Digester Inputs'!H23*100)/(100-'3-Digester Inputs'!H23),\"\")","v":""},{"$f":"IFERROR(B11*'3-Digester Inputs'!BE23/1000,\"\")","v":""},"",{"$f":"IF(B11<>\"\",IFERROR(VLOOKUP(StorageMng,'13-MCF'!$B$9:$U$32,MATCH(AvgTemp,'13-MCF'!$B$9:$U$9,0),FALSE),0),\"\")","v":""},{"$f":"IF(LEN(B11)>0,VLOOKUP(A11,'6-Biogas Production'!$O$58:$T$72,4,FALSE)*E11*ConversionFactor*Average_Days_Waste_Stored,\"\")","v":""}]
[{"$f":"IFERROR('3-Digester Inputs'!B24,\"-\")","v":0},{"$f":"IFERROR(('3-Digester Inputs'!H24*100)/(100-'3-Digester Inputs'!H24),\"\")","v":""},{"$f":"IFERROR(B12*'3-Digester Inputs'!BE24/1000,\"\")","v":""},"",{"$f":"IF(B12<>\"\",IFERROR(VLOOKUP(StorageMng,'13-MCF'!$B$9:$U$32,MATCH(AvgTemp,'13-MCF'!$B$9:$U$9,0),FALSE),0),\"\")","v":""},{"$f":"IF(LEN(B12)>0,VLOOKUP(A12,'6-Biogas Production'!$O$58:$T$72,4,FALSE)*E12*ConversionFactor*Average_Days_Waste_Stored,\"\")","v":""}]
[{"$f":"IFERROR('3-Digester Inputs'!B25,\"-\")","v":0},{"$f":"IFERROR(('3-Digester Inputs'!H25*100)/(100-'3-Digester Inputs'!H25),\"\")","v":""},{"$f":"IFERROR(B13*'3-Digester Inputs'!BE25/1000,\"\")","v":""},"",{"$f":"IF(B13<>\"\",IFERROR(VLOOKUP(StorageMng,'13-MCF'!$B$9:$U$32,MATCH(AvgTemp,'13-MCF'!$B$9:$U$9,0),FALSE),0),\"\")","v":""},{"$f":"IF(LEN(B13)>0,VLOOKUP(A13,'6-Biogas Production'!$O$58:$T$72,4,FALSE)*E13*ConversionFactor*Average_Days_Waste_Stored,\"\")","v":""}]
[{"$f":"IFERROR('3-Digester Inputs'!B26,\"-\")","v":0},{"$f":"IFERROR(('3-Digester Inputs'!H26*100)/(100-'3-Digester Inputs'!H26),\"\")","v":""},{"$f":"IFERROR(B14*'3-Digester Inputs'!BE26/1000,\"\")","v":""},"",{"$f":"IF(B14<>\"\",IFERROR(VLOOKUP(StorageMng,'13-MCF'!$B$9:$U$32,MATCH(AvgTemp,'13-MCF'!$B$9:$U$9,0),FALSE),0),\"\")","v":""},{"$f":"IF(LEN(B14)>0,VLOOKUP(A14,'6-Biogas Production'!$O$58:$T$72,4,FALSE)*E14*ConversionFactor*Average_Days_Waste_Stored,\"\")","v":""}]
[{"$f":"IFERROR('3-Digester Inputs'!B27,\"-\")","v":0},{"$f":"IFERROR(('3-Digester Inputs'!H27*100)/(100-'3-Digester Inputs'!H27),\"\")","v":""},{"$f":"IFERROR(B15*'3-Digester Inputs'!BE27/1000,\"\")","v":""},"",{"$f":"IF(B15<>\"\",IFERROR(VLOOKUP(StorageMng,'13-MCF'!$B$9:$U$32,MATCH(AvgTemp,'13-MCF'!$B$9:$U$9,0),FALSE),0),\"\")","v":""},{"$f":"IF(LEN(B15)>0,VLOOKUP(A15,'6-Biogas Production'!$O$58:$T$72,4,FALSE)*E15*ConversionFactor*Average_Days_Waste_Stored,\"\")","v":""}]
[{"$f":"IFERROR('3-Digester Inputs'!B28,\"-\")","v":0},{"$f":"IFERROR(('3-Digester Inputs'!H28*100)/(100-'3-Digester Inputs'!H28),\"\")","v":""},{"$f":"IFERROR(B16*'3-Digester Inputs'!BE28/1000,\"\")","v":""},"",{"$f":"IF(B16<>\"\",IFERROR(VLOOKUP(StorageMng,'13-MCF'!$B$9:$U$32,MATCH(AvgTemp,'13-MCF'!$B$9:$U$9,0),FALSE),0),\"\")","v":""},{"$f":"IF(LEN(B16)>0,VLOOKUP(A16,'6-Biogas Production'!$O$58:$T$72,4,FALSE)*E16*ConversionFactor*Average_Days_Waste_Stored,\"\")","v":""}]
[{"$f":"IFERROR('3-Digester Inputs'!B29,\"-\")","v":0},{"$f":"IFERROR(('3-Digester Inputs'!H29*100)/(100-'3-Digester Inputs'!H29),\"\")","v":""},{"$f":"IFERROR(B17*'3-Digester Inputs'!BE29/1000,\"\")","v":""},"",{"$f":"IF(B17<>\"\",IFERROR(VLOOKUP(StorageMng,'13-MCF'!$B$9:$U$32,MATCH(AvgTemp,'13-MCF'!$B$9:$U$9,0),FALSE),0),\"\")","v":""},{"$f":"IF(LEN(B17)>0,VLOOKUP(A17,'6-Biogas Production'!$O$58:$T$72,4,FALSE)*E17*ConversionFactor*Average_Days_Waste_Stored,\"\")","v":""}]
[{"$f":"IFERROR('3-Digester Inputs'!B30,\"-\")","v":0},{"$f":"IFERROR(('3-Digester Inputs'!H30*100)/(100-'3-Digester Inputs'!H30),\"\")","v":""},{"$f":"IFERROR(B18*'3-Digester Inputs'!BE30/1000,\"\")","v":""},"",{"$f":"IF(B18<>\"\",IFERROR(VLOOKUP(StorageMng,'13-MCF'!$B$9:$U$32,MATCH(AvgTemp,'13-MCF'!$B$9:$U$9,0),FALSE),0),\"\")","v":""},{"$f":"IF(LEN(B18)>0,VLOOKUP(A18,'6-Biogas Production'!$O$58:$T$72,4,FALSE)*E18*ConversionFactor*Average_Days_Waste_Stored,\"\")","v":""}]
[{"$f":"IFERROR('3-Digester Inputs'!B31,\"-\")","v":0},{"$f":"IFERROR(('3-Digester Inputs'!H31*100)/(100-'3-Digester Inputs'!H31),\"\")","v":""},{"$f":"IFERROR(B19*'3-Digester Inputs'!BE31/1000,\"\")","v":""},"",{"$f":"IF(B19<>\"\",IFERROR(VLOOKUP(StorageMng,'13-MCF'!$B$9:$U$32,MATCH(AvgTemp,'13-MCF'!$B$9:$U$9,0),FALSE),0),\"\")","v":""},{"$f":"IF(LEN(B19)>0,VLOOKUP(A19,'6-Biogas Production'!$O$58:$T$72,4,FALSE)*E19*ConversionFactor*Average_Days_Waste_Stored,\"\")","v":""}]
["Total","na",{"$f":"SUM(C5:C19)","v":0},"na","na",{"$f":"SUM(F5:F19)","v":0}]

{"sheet":"20-Methane Gen. & Utilization","index":23,"n_rows":15,"n_cols":3,"rows_kept":15,"cut":false,"hidden":false,"merged":[]}
["Methane Generation and Utilization"]
[]
[]
["Methane Utilization"]
["Combustion Process","Destruction Efficiency"]
["none",0]
["Lean Burn internal combustion engine",0.93600000000000005]
["Rich Burn internal combustion engine",0.995]
["Boiler or Furnace",0.98]
["Other Assumptions"]
["Conversion Factor ",0.68,"kg of CH4 per m3 (density of methane, 1 atm, 60 deg F)"]
["Methane Utilization Related Emissions"]
["Methane Utilization Related Emissions",{"$f":"IFERROR((Methane_Utilization*365*ConversionFactor)*(1-(VLOOKUP('4-Emissions Inputs'!B23,'20-Methane Gen. & Utilization'!A6:B9,2,FALSE))),\"\")","v":""},"kg of CH4 per year"]
["Daily Methane Utilization "]
["Daily Methane Utilization (methane utilization*utilization %)",{"$f":"Estimated_Avg_Daily_Methane_Production*Methane_Utilization_Percentage","v":0},"m3 CH4 per day "]

{"sheet":"21-Electricity Use","index":24,"n_rows":55,"n_cols":9,"rows_kept":55,"cut":false,"hidden":false,"merged":[]}
["Electricity Use Emissions"]
[]
["Electricity Use"]
["Emissions Factor s","Value","Unit"]
["Default Grid Emisisons Factor",{"$f":"'4-Emissions Inputs'!$B$43","v":""},"kgCO2/kWh"]
["User Grid Emissions Factor",{"$f":"IF('4-Emissions Inputs'!B42=\"No\",'4-Emissions Inputs'!B44,0)","v":0},"kgCO2/kWh"]
["CO2 Emissions Factor for Biogas",57.61,"kg/MMBtu"]
["CH4 Emissions Factor for Biogas",{"$f":"1.06/1000","v":1.06E-3},"kg/MMBtu"]
["Other Assumptions","Value","Unit"]
["Grid Electricity Use Per Year",{"$f":"Estimated_Electricity_Use*365","v":0},"kWh"]
["Electricity Generated and Used Onsite Per Year",{"$f":"Electricity_from_Biogas*365","v":0},"kWh"]
["Grid Gross Loss",{"$f":"GridGrossLoss","v":5.0999999999999997E-2}]
["MMBtu to kWh",3.3999999999999998E-3]
["Electricity Related Carbon Emissions","Value"]
["CO2 Emissions from Grid Electricity Use",{"$f":"IFERROR(IF($B$6>0,$B$6*($B$10*(1+$B$12)),$B$5*($B$10*(1+$B$12))),\"-\")","v":"-"},"kgCO2"]
["CO2 Emissions from Generation Used Onsite",{"$f":"$B$11*$B$13*$B$7","v":0},"kgCO2"]
["CH4 Emissions from Generation Used Onsite",{"$f":"B11*$B$13*$B$8","v":0},"kgCH4"]
[]
[]
[]
["Country","CO2 Emissions from Electricity and Heat Production","Unit","Electricity Generation","Unit","Emissions Factor","Unit","Emissions Factor ","Unit"]
["Argentina",55174670,"Tonnes CO2",147.19282085720954,"TWh",{"$f":"B22/D22","v":374846.20295119192},"TCO2/TWh",{"$f":"$F22*$D$54/$D$55","v":0.37484620295119192},"kg CO2/kWh"]
["Australia",194547378,"Tonnes CO2",259.367009,"TWh",750085.28937464056,"TCO2/TWh",0.75008528937464058,"kg CO2/kWh"]
["Brazil",69486733,"Tonnes CO2",578.89830886670256,"TWh",120032.71029765619,"TCO2/TWh",0.12003271029765619,"kg CO2/kWh"]
["Canada",101200691,"Tonnes CO2",664.64903715422497,"TWh",152261.84849872492,"TCO2/TWh",0.15226184849872496,"kg CO2/kWh"]
["China",4386420462.999999,"Tonnes CO2",6133.16,"TWh",715197.46150434669,"TCO2/TWh",0.71519746150434671,"kg CO2/kWh"]
["Egypt",89300294,"Tonnes CO2",188.19109872922775,"TWh",474519.22329486284,"TCO2/TWh",0.47451922329486285,"kg CO2/kWh"]
["Germany",321808485,"Tonnes CO2",649.11698543,"TWh",495763.463633326,"TCO2/TWh",0.49576346363332602,"kg CO2/kWh"]
["India",1072472691,"Tonnes CO2",1421.5037574297523,"TWh",754463.49360282952,"TCO2/TWh",0.75446349360282949,"kg CO2/kWh"]
["Indonesia",181266140,"Tonnes CO2",248.61229,"TWh",729111.742625435,"TCO2/TWh",0.72911174262543499,"kg CO2/kWh"]
["Iran",153602395,"Tonnes CO2",286.14299999999997,"TWh",536802.90973394422,"TCO2/TWh",0.53680290973394429,"kg CO2/kWh"]
["Italy",108225192,"Tonnes CO2",289.76820000000004,"TWh",373488.85074345628,"TCO2/TWh",0.37348885074345628,"kg CO2/kWh"]
["Japan",572800439,"Tonnes CO2",1002.3360179369458,"TWh",571465.48537581658,"TCO2/TWh",0.57146548537581665,"kg CO2/kWh"]
["Kazakhstan",91587684,"Tonnes CO2",94.642384000000007,"TWh",967723.76317147713,"TCO2/TWh",0.96772376317147712,"kg CO2/kWh"]
["Malaysia",102599164,"Tonnes CO2",159.25207313299998,"TWh",644256.37909475702,"TCO2/TWh",0.64425637909475708,"kg CO2/kWh"]
["Mexico",148755123,"Tonnes CO2",320.344722478498,"TWh",464359.52448064648,"TCO2/TWh",0.46435952448064649,"kg CO2/kWh"]
["Netherlands",60749994,"Tonnes CO2",115.17027499999999,"TWh",527479.80327389168,"TCO2/TWh",0.52747980327389166,"kg CO2/kWh"]
["Poland",150042386,"Tonnes CO2",166.63399999999999,"TWh",900430.80043688568,"TCO2/TWh",0.90043080043688573,"kg CO2/kWh"]
["Russian Federation",776785371,"Tonnes CO2",1090.9702240000001,"TWh",712013.35647085437,"TCO2/TWh",0.7120133564708544,"kg CO2/kWh"]
["Saudi Arabia",246055506,"Tonnes CO2",370.42819847642761,"TWh",664246.15353805979,"TCO2/TWh",0.66424615353805982,"kg CO2/kWh"]
["South Africa",235781046,"Tonnes CO2",252.74700000000001,"TWh",932873.76704767998,"TCO2/TWh",0.93287376704767999,"kg CO2/kWh"]
["South Korea",310232263,"Tonnes CO2",560.98458999999991,"TWh",553013.87690524629,"TCO2/TWh",0.55301387690524628,"kg CO2/kWh"]
["Spain",66684037,"Tonnes CO2",274.63007297833207,"TWh",242814.03808701344,"TCO2/TWh",0.24281403808701346,"kg CO2/kWh"]
["Taiwan",153110680,"Tonnes CO2",264.11415927600001,"TWh",579714.0161652558,"TCO2/TWh",0.57971401616525586,"kg CO2/kWh"]
["Thailand",91296297,"Tonnes CO2",179.74147517199995,"TWh",507931.16565131041,"TCO2/TWh",0.50793116565131047,"kg CO2/kWh"]
["Turkey",130021324.99999999,"Tonnes CO2",274.40776222883221,"TWh",473825.24438785191,"TCO2/TWh",0.47382524438785195,"kg CO2/kWh"]
["Ukraine",101444091,"Tonnes CO2",164.57300000000001,"TWh",616407.8615568775,"TCO2/TWh",0.61640786155687755,"kg CO2/kWh"]
["United Arab Emirates",85635964,"Tonnes CO2",129.59625042499999,"TWh",660790.44508744706,"TCO2/TWh",0.66079044508744711,"kg CO2/kWh"]
["United Kingdom",99373423,"Tonnes CO2",339.39750518545372,"TWh",292793.61657564435,"TCO2/TWh",0.2927936165756444,"kg CO2/kWh"]
["United States",1893664413,"Tonnes CO2",4347.9108141445004,"TWh",435534.32762226503,"TCO2/TWh",0.43553432762226502,"kg CO2/kWh"]
["Vietnam",73935412,"Tonnes CO2",174.56382001836548,"TWh",423543.73312993161,"TCO2/TWh",0.4235437331299316,"kg CO2/kWh"]
[]
["Emissions Data Source: OECD/IEA, Paris, 2018",null,"Conversions"]
["Electricity Generation Data Source: BP Statistical Review of World Energy, 2018",null,"TWh to kWh",{"$f":"1/1000000000","v":1.0000000000000001E-9}]
[null,null,"Tonnes to kg",{"$f":"1/1000","v":1E-3}]

{"sheet":"22-Flaring & Leakage","index":25,"n_rows":19,"n_cols":3,"rows_kept":19,"cut":false,"hidden":false,"merged":[[2,0,2,1]]}
["Flaring & Leakage Emissions"]
[]
["Flaring"]
["Combustion Process (Ceff)","Value","Units"]
["Open Flare Continuous",0.96]
["Open Flare Non-continuous",0.5]
["Enclosed Flare",0.995]
["User Value",{"$f":"IF('4-Emissions Inputs'!B29=\"No\",'4-Emissions Inputs'!$B$30,\"\")","v":""}]
["Flare Analysis Value",{"$f":"IF(Use_Defaults_Flare=\"Yes\",VLOOKUP(FlareType,'22-Flaring & Leakage'!$A$5:$B$7,2,FALSE),$B$8)","v":""}]
["Other Assumptions","Value","Units"]
["Conversion Factor",0.68,"kg of CH4 per m3 (density of methane, 1 atm, 60 deg F)"]
["Flare Related Methane Emissions","Value","Units"]
["Flare Related Methane Emissions",{"$f":"IFERROR(ConversionFactor*((1-AnalysisCombustionEffValue)*Measured_Methane_sent_to_Flare)*365,0)","v":0},"kg CH4 per year"]
[]
["Leakage","Value","Units"]
["Project Methane Leakage",{"$f":"Estimated_Avg_Daily_Methane_Production*ConversionFactor*Assumed_Fraction_of_Methane_Leakage*365","v":0},"kg CH4 per year"]
[]
["Average Methane Emissions (average of the high and low calibration values) ","Value","Units"]
["Average daily methane emissions",{"$f":"Estimated_Avg_Daily_Methane_Production*Methane_Flare_Percentage","v":0},"m3 CH4 per day "]

{"sheet":"23-Look up values","index":26,"n_rows":102,"n_cols":10,"rows_kept":102,"cut":false,"hidden":true,"merged":[]}
["Lookup Values"]
[]
["Input Units","Conversion",null,null,null,"Feedstock List",null,"General",null,"Specific"]
["kg/day",1,null,null,null,"General",null,"Lactating Cow",null,"Lactating Cow"]
["lb/day",0.453592,null,null,null,"Specific",null,"Calf",null,"Calf"]
["metric tons/day",1000,null,null,null,null,null,"Swine - Gestating (190 kg.)",null,"Heifer"]
["short tons/day",907.18499999999995,null,null,null,null,null,"Swine - Lactating (190 kg.)",null,"Dry Dairy Cow"]
["liters/day",1,null,null,null,null,null,"Adolescents Pigs",null,"Cattle with Primarily Grain/Grass Diet"]
["gallons/day",3.7850000000000001,null,null,null,null,null,"Poultry Chicken",null,"Calf In Shelter (200 -350 kg.)"]
[null,null,null,null,null,null,null,"Broiler Chicken",null,"Cattle With Corn Supplement to Diet"]
[null,null,null,null,null,null,null,"Mixed Food Waste With Non‐Veg.",null,"Cattle With Other Diet Supplements"]
["Biogas Output Units","Conversion",null,null,null,null,null,"Composite Wastewater",null,"Swine - Gestating (190 kg.)"]
["m3/year",1,null,null,null,null,null,null,null,"Swine - Lactating (190 kg.)"]
["scf/year",35.314666711511585,null,null,null,null,null,null,null,"Boar (200 kg.)"]
["m3/day",1,null,null,null,null,null,null,null,"Piglets"]
["scf/day",35.314666711511585,null,null,null,null,null,null,null,"Adolescents Pigs"]
["Digestate Output Units","Conversion",null,null,null,null,null,null,null,"Poultry Chicken"]
["kg/year",1,null,null,null,null,null,null,null,"Broiler Chicken"]
["lb/year",0.453592,null,null,null,null,null,null,null,"Turkey Male"]
["metric tons/year",1000,null,null,null,null,null,null,null,"Turkey Female"]
["short tons/year",907.18499999999995,null,null,null,null,null,null,null,"Duck"]
[null,null,null,null,null,null,null,null,null,"Lamb/Sheep/Goat"]
["Methane Utilization",null,null,null,null,null,null,null,null,"Veal"]
["none",null,null,null,null,null,null,null,null,"Horse"]
["Lean Burn internal combustion engine",null,null,null,null,null,null,null,null,"Alfalfa"]
["Rich Burn internal combustion engine",null,null,null,null,null,null,null,null,"Bananas"]
["Boiler or Furnace",null,null,null,null,null,null,null,null,"Broccoli"]
[null,null,null,null,null,null,null,null,null,"Cabbage"]
["Flare Type",null,null,null,null,null,null,null,null,"Chinese Cabbage (Pak-Choi)"]
["Open Flare Continuous",null,null,null,null,null,null,null,null,"Carrot Root"]
["Open Flare Non-Continuous",null,null,null,null,null,null,null,null,"Cauliflower"]
["Enclosed Flare",null,null,null,null,null,null,null,null,"Sweet Corn"]
[null,null,null,null,null,null,null,null,null,"Kale"]
["Average Temperature ",null,null,null,null,null,null,null,null,"Lettuce"]
["Temperature conversion",{"$f":"ROUND(IF('4-Emissions Inputs'!C14=\"Fahrenheit\",('4-Emissions Inputs'!B14-32)/1.8,'4-Emissions Inputs'!B14),0)","v":0},null,null,null,null,null,null,null,"Onions"]
[null,null,null,null,null,null,null,null,null,"Orange Flesh"]
[null,null,null,null,null,null,null,null,null,"Orange Pulp"]
[null,null,null,null,null,null,null,null,null,"Potato, Top, Mature"]
[null,null,null,null,null,null,null,null,null,"Potato Peel"]
[null,null,null,null,null,null,null,null,null,"Pumpkins"]
[null,null,null,null,null,null,null,null,null,"Spinach"]
[null,null,null,null,null,null,null,null,null,"Tomatoes"]
[null,null,null,null,null,null,null,null,null,"Tomatoes (Solid Waste)"]
[null,null,null,null,null,null,null,null,null,"Maize (Early Harvest Or Milk Ripeness)"]
[null,null,null,null,null,null,null,null,null,"Maize (Middle Harvest Or Wax Ripeness)"]
[null,null,null,null,null,null,null,null,null,"Rice Straw"]
[null,null,null,null,null,null,null,null,null,"Rice Husk"]
[null,null,null,null,null,null,null,null,null,"Rice Residue (Dried)"]
[null,null,null,null,null,null,null,null,null,"Wheat Straw"]
[null,null,null,null,null,null,null,null,null,"Maize Cob"]
[null,null,null,null,null,null,null,null,null,"Coffee Grounds"]
[null,null,null,null,null,null,null,null,null,"Tea Leaves"]
[null,null,null,null,null,null,null,null,null,"Dairy Wastewater"]
[null,null,null,null,null,null,null,null,null,"Whey - Sweet Cheese"]
[null,null,null,null,null,null,null,null,null,"Whey - Acid Cheese"]
[null,null,null,null,null,null,null,null,null,"Water Hyacinths"]
[null,null,null,null,null,null,null,null,null,"Leaves"]
[null,null,null,null,null,null,null,null,null,"Grass"]
[null,null,null,null,null,null,null,null,null,"Branches"]
[null,null,null,null,null,null,null,null,null,"Wood"]
[null,null,null,null,null,null,null,null,null,"Textiles"]
[null,null,null,null,null,null,null,null,null,"Newsprint"]
[null,null,null,null,null,null,null,null,null,"Corrugated Cardboard"]
[null,null,null,null,null,null,null,null,null,"Office Paper"]
[null,null,null,null,null,null,null,null,null,"Magazines"]
[null,null,null,null,null,null,null,null,null,"Junk Mail & Paper"]
[null,null,null,null,null,null,null,null,null,"Folding Cartons"]
[null,null,null,null,null,null,null,null,null,"Paper Bags And Sacks"]
[null,null,null,null,null,null,null,null,null,"Paper Non‐Recyclable"]
[null,null,null,null,null,null,null,null,null,"Human Waste"]
[null,null,null,null,null,null,null,null,null,"Graywater"]
[null,null,null,null,null,null,null,null,null,"Septage Tank Wastewater"]
[null,null,null,null,null,null,null,null,null,"Composite Wastewater"]
[null,null,null,null,null,null,null,null,null,"Raw Sewage Sludge"]
[null,null,null,null,null,null,null,null,null,"Diverted Municipal Waste (Food Only)"]
[null,null,null,null,null,null,null,null,null,"Diverted Municipal Waste (All Organics)"]
[null,null,null,null,null,null,null,null,null,"Mixed Vegetable Waste Only"]
[null,null,null,null,null,null,null,null,null,"Mixed Food Waste With Non‐Veg."]
[null,null,null,null,null,null,null,null,null,"Bread Feedstocks"]
[null,null,null,null,null,null,null,null,null,"Brewery Grain Feedstocks"]
[null,null,null,null,null,null,null,null,null,"Mixed Cafeteria Or Canteen Waste"]
[null,null,null,null,null,null,null,null,null,"Cooked Meat"]
[null,null,null,null,null,null,null,null,null,"Boiled Rice"]
[null,null,null,null,null,null,null,null,null,"Slaughterhouse Waste (Raw waste)"]
[null,null,null,null,null,null,null,null,null,"Slaughterhouse Waste (Animal Hair)"]
[null,null,null,null,null,null,null,null,null,"Slaughterhouse Waste (Blood)"]
[null,null,null,null,null,null,null,null,null,"Slaughterhouse Waste (Carcass/Paunch)"]
[null,null,null,null,null,null,null,null,null,"Pacific Saury Fish Waste Silage"]
[null,null,null,null,null,null,null,null,null,"Cuttle Fish Waste Silage"]
[null,null,null,null,null,null,null,null,null,"Mackerel Fish Waste Silage"]
[null,null,null,null,null,null,null,null,null,"Agave (Agave sisalana)"]
[null,null,null,null,null,null,null,null,null,"Sugarcane Pretreated (Bagasse)"]
[null,null,null,null,null,null,null,null,null,"Sugarcane Untreated (Bagasse)"]
[null,null,null,null,null,null,null,null,null,"Sugar Beet Tops"]
[null,null,null,null,null,null,null,null,null,"Rapeseed Meal"]
[null,null,null,null,null,null,null,null,null,"Sunflower Meal"]
[null,null,null,null,null,null,null,null,null,"Palms (Empty Fruit)"]
[null,null,null,null,null,null,null,null,null,"Palms (Pressed Fibers)"]
[null,null,null,null,null,null,null,null,null,"Palms (Decanter Cake)"]
[null,null,null,null,null,null,null,null,null,"Pressmud"]
[null,null,null,null,null,null,null,null,null,"De-oiled Cake"]
[null,null,null,null,null,null,null,null,null,"Added Water"]